Body Name,Body,Service Label    ,Service Code,Service Division Label,Service Division Code,Organisational Unit,Expenditure Category,Expenditure Code,CIPFA Detailed Expenditure Type,CIPFA Detailed Expenditure Code,Date,Transaction Number,  Net Amount  ,Supplier Name, Payment_Amount ,Payment Number
Liberty Leisure Limited,http://statistics.data.gov.uk/id/local-authority/37UD,Leisure,LEIS,Leisure Management,LMAN,Liberty Leisure Limited / Chilwell Olympia,Annual Projects Contingency,3710,Other Supplies & Services,OtherSS,09/04/2020,V005247,982,Arrow Ceilings,1178.4,BAC003411
Liberty Leisure Limited,http://statistics.data.gov.uk/id/local-authority/37UD,Leisure,LEIS,Leisure Centres,LCEN,Liberty Leisure Limited / Kimberley Leisure Centre,Vending Provisions  - Purchase,3204,Catering,Cat,09/04/2020,V005259,"1,113.91",Automatic Retailing northern Ltd,3251.25,BAC003408
Liberty Leisure Limited,http://statistics.data.gov.uk/id/local-authority/37UD,Leisure,LEIS,Leisure Centres,LCEN,Liberty Leisure Limited / Kimberley Leisure Centre,Vending Provisions  - Purchase,3204,Catering,Cat,09/04/2020,V005260,"1,345.06",Automatic Retailing northern Ltd,3251.25,BAC003408
Liberty Leisure Limited,http://statistics.data.gov.uk/id/local-authority/37UD,Leisure,LEIS,Leisure Centres,LCEN,Liberty Leisure Limited / Kimberley Leisure Centre,Vending Provisions  - Purchase,3204,Catering,Cat,09/04/2020,V005259,104.11,Automatic Retailing northern Ltd,3251.25,BAC003408
Liberty Leisure Limited,http://statistics.data.gov.uk/id/local-authority/37UD,Leisure,LEIS,Leisure Centres,LCEN,Liberty Leisure Limited / Kimberley Leisure Centre,Vending Provisions  - Purchase,3204,Catering,Cat,09/04/2020,V005260,196.38,Automatic Retailing northern Ltd,3251.25,BAC003408
Liberty Leisure Limited,http://statistics.data.gov.uk/id/local-authority/37UD,Culture and Heritage,CULT,Heritage,LHER,Liberty Leisure Limited / DHL Museum,Advertising,3412,Advertising,Advert,09/04/2020,V005246,360,Broxtowe Borough Council,432,BAC003394
Liberty Leisure Limited,http://statistics.data.gov.uk/id/local-authority/37UD,Leisure,LEIS,Leisure Management,LMAN,Liberty Leisure Limited / Kimberley Leisure Centre,Annual Projects Contingency,3710,Other Supplies & Services,OtherSS,09/04/2020,V005252,750,CBP Architects,900,BAC003412
Liberty Leisure Limited,http://statistics.data.gov.uk/id/local-authority/37UD,Leisure,LEIS,Leisure Centres,LCEN,Liberty Leisure Limited / Kimberley Leisure Centre,Repairs & Maintenance,1000,Central Pot,Central,09/04/2020,V005262,145,Dalesauna Limited,342,BAC003397
Liberty Leisure Limited,http://statistics.data.gov.uk/id/local-authority/37UD,Leisure,LEIS,Leisure Centres,LCEN,Liberty Leisure Limited / Kimberley Leisure Centre,Repairs & Maintenance,1000,Central Pot,Central,09/04/2020,V005262,140,Dalesauna Limited,342,BAC003397
Liberty Leisure Limited,http://statistics.data.gov.uk/id/local-authority/37UD,Leisure,LEIS,Leisure Centres,LCEN,Liberty Leisure Limited / Kimberley Leisure Centre,Electrical Testing,1043,Central Pot,Central,09/04/2020,V005257,"2,512.02",FREDK LAMB,3014.42,BAC003410
Liberty Leisure Limited,http://statistics.data.gov.uk/id/local-authority/37UD,Leisure,LEIS,Leisure Centres,LCEN,Liberty Leisure Limited / Kimberley Leisure Centre,Cleaning Materials,1510,Other Prem,OthPrem,09/04/2020,V005269,210,Grange Europe Ltd,252,BAC003405
Liberty Leisure Limited,http://statistics.data.gov.uk/id/local-authority/37UD,Leisure,LEIS,Leisure Management,LMAN,Liberty Leisure Limited / Kimberley Leisure Centre,Annual Projects Contingency,3710,Other Supplies & Services,OtherSS,09/04/2020,V005249,235,J P Carty Limited,671.09,BAC003395
Liberty Leisure Limited,http://statistics.data.gov.uk/id/local-authority/37UD,Leisure,LEIS,Leisure Centres,LCEN,Liberty Leisure Limited / Kimberley Leisure Centre,Electrical Testing,1043,Central Pot,Central,09/04/2020,V005248,54.04,J P Carty Limited,671.09,BAC003395
Liberty Leisure Limited,http://statistics.data.gov.uk/id/local-authority/37UD,Leisure,LEIS,Leisure Centres,LCEN,Liberty Leisure Limited / Kimberley Leisure Centre,Electrical Testing,1043,Central Pot,Central,09/04/2020,V005248,54.04,J P Carty Limited,671.09,BAC003395
Liberty Leisure Limited,http://statistics.data.gov.uk/id/local-authority/37UD,Leisure,LEIS,Leisure Centres,LCEN,Liberty Leisure Limited / Kimberley Leisure Centre,Electrical Testing,1043,Central Pot,Central,09/04/2020,V005248,54.04,J P Carty Limited,671.09,BAC003395
Liberty Leisure Limited,http://statistics.data.gov.uk/id/local-authority/37UD,Leisure,LEIS,Leisure Centres,LCEN,Liberty Leisure Limited / Kimberley Leisure Centre,Electrical Testing,1043,Central Pot,Central,09/04/2020,V005248,54.04,J P Carty Limited,671.09,BAC003395
Liberty Leisure Limited,http://statistics.data.gov.uk/id/local-authority/37UD,Leisure,LEIS,Leisure Centres,LCEN,Liberty Leisure Limited / Kimberley Leisure Centre,Electrical Testing,1043,Central Pot,Central,09/04/2020,V005248,54.04,J P Carty Limited,671.09,BAC003395
Liberty Leisure Limited,http://statistics.data.gov.uk/id/local-authority/37UD,Leisure,LEIS,Leisure Centres,LCEN,Liberty Leisure Limited / Kimberley Leisure Centre,Electrical Testing,1043,Central Pot,Central,09/04/2020,V005248,54.04,J P Carty Limited,671.09,BAC003395
Liberty Leisure Limited,http://statistics.data.gov.uk/id/local-authority/37UD,Culture and Heritage,CULT,Heritage,LHER,Liberty Leisure Limited / Kimberley Leisure Centre,Security - Cash Collection,3609,Security Costs,Secure,09/04/2020,V005251,27.6,Kings Armoured Security Services Limited,370.44,BAC003409
Liberty Leisure Limited,http://statistics.data.gov.uk/id/local-authority/37UD,Leisure,LEIS,Leisure Centres,LCEN,Liberty Leisure Limited / Kimberley Leisure Centre,Security - Cash Collection,3609,Security Costs,Secure,09/04/2020,V005251,90.6,Kings Armoured Security Services Limited,370.44,BAC003409
Liberty Leisure Limited,http://statistics.data.gov.uk/id/local-authority/37UD,Leisure,LEIS,Leisure Centres,LCEN,Liberty Leisure Limited / Kimberley Leisure Centre,Security - Cash Collection,3609,Security Costs,Secure,09/04/2020,V005251,90.6,Kings Armoured Security Services Limited,370.44,BAC003409
Liberty Leisure Limited,http://statistics.data.gov.uk/id/local-authority/37UD,Leisure,LEIS,Leisure Centres,LCEN,Liberty Leisure Limited / Kimberley Leisure Centre,Security - Cash Collection,3609,Security Costs,Secure,09/04/2020,V005251,99.9,Kings Armoured Security Services Limited,370.44,BAC003409
Liberty Leisure Limited,http://statistics.data.gov.uk/id/local-authority/37UD,Leisure,LEIS,Leisure Management,LMAN,Liberty Leisure Limited / Kimberley Leisure Centre,Annual Projects Contingency,3710,Other Supplies & Services,OtherSS,09/04/2020,V005254,114,Langley Mill Contract Floor,2055.6,BAC003398
Liberty Leisure Limited,http://statistics.data.gov.uk/id/local-authority/37UD,Leisure,LEIS,Leisure Management,LMAN,Liberty Leisure Limited / Kimberley Leisure Centre,Annual Projects Contingency,3710,Other Supplies & Services,OtherSS,09/04/2020,V005254,"1,325.00",Langley Mill Contract Floor,2055.6,BAC003398
Liberty Leisure Limited,http://statistics.data.gov.uk/id/local-authority/37UD,Leisure,LEIS,Leisure Management,LMAN,Liberty Leisure Limited / Kimberley Leisure Centre,Annual Projects Contingency,3710,Other Supplies & Services,OtherSS,09/04/2020,V005254,274,Langley Mill Contract Floor,2055.6,BAC003398
Liberty Leisure Limited,http://statistics.data.gov.uk/id/local-authority/37UD,Leisure,LEIS,Leisure Centres,LCEN,Liberty Leisure Limited / Kimberley Leisure Centre,Gas,1320,Utilities,Utility,09/04/2020,V005258,"3,834.25",NCC Kimberley School,13726.71,BAC003401
Liberty Leisure Limited,http://statistics.data.gov.uk/id/local-authority/37UD,Leisure,LEIS,Leisure Centres,LCEN,Liberty Leisure Limited / Kimberley Leisure Centre,Gas,1320,Utilities,Utility,09/04/2020,V005258,"4,211.06",NCC Kimberley School,13726.71,BAC003401
Liberty Leisure Limited,http://statistics.data.gov.uk/id/local-authority/37UD,Leisure,LEIS,Leisure Centres,LCEN,Liberty Leisure Limited / Kimberley Leisure Centre,Water Charges,1410,Utilities,Utility,09/04/2020,V005258,"3,001.29",NCC Kimberley School,13726.71,BAC003401
Liberty Leisure Limited,http://statistics.data.gov.uk/id/local-authority/37UD,Leisure,LEIS,Leisure Centres,LCEN,Liberty Leisure Limited / Kimberley Leisure Centre,Water Charges,1410,Utilities,Utility,09/04/2020,V005258,"2,680.11",NCC Kimberley School,13726.71,BAC003401
Liberty Leisure Limited,http://statistics.data.gov.uk/id/local-authority/37UD,Leisure,LEIS,Leisure Centres,LCEN,Liberty Leisure Limited / Kimberley Leisure Centre,Repairs & Maintenance,1000,Central Pot,Central,09/04/2020,V005267,175.69,Neuro Systems Ltd,4196.91,BAC003406
Liberty Leisure Limited,http://statistics.data.gov.uk/id/local-authority/37UD,Leisure,LEIS,Leisure Centres,LCEN,Liberty Leisure Limited / Kimberley Leisure Centre,Repairs & Maintenance,1000,Central Pot,Central,09/04/2020,V005256,"3,321.73",Neuro Systems Ltd,4196.91,BAC003406
Liberty Leisure Limited,http://statistics.data.gov.uk/id/local-authority/37UD,Leisure,LEIS,Leisure Centres,LCEN,Liberty Leisure Limited / Kimberley Leisure Centre,Service Contracts,3056,Other Supplies & Services,OtherSS,09/04/2020,V005261,94.2,REPLAY Maintenance Ltd,434.77,BAC003407
Liberty Leisure Limited,http://statistics.data.gov.uk/id/local-authority/37UD,Leisure,LEIS,Leisure Centres,LCEN,Liberty Leisure Limited / Kimberley Leisure Centre,Repairs & Maintenance,1000,Central Pot,Central,09/04/2020,V005261,268.11,REPLAY Maintenance Ltd,434.77,BAC003407
Liberty Leisure Limited,http://statistics.data.gov.uk/id/local-authority/37UD,Leisure,LEIS,Leisure Management,LMAN,Liberty Leisure Limited / Kimberley Leisure Centre,Annual Projects Contingency,3710,Other Supplies & Services,OtherSS,09/04/2020,V005250,"5,800.00",Sport & Leisure Services Limited,7314,BAC003413
Liberty Leisure Limited,http://statistics.data.gov.uk/id/local-authority/37UD,Leisure,LEIS,Leisure Centres,LCEN,Liberty Leisure Limited / Kimberley Leisure Centre,Repairs & Maintenance,1000,Central Pot,Central,09/04/2020,V005250,295,Sport & Leisure Services Limited,7314,BAC003413
Liberty Leisure Limited,http://statistics.data.gov.uk/id/local-authority/37UD,Leisure,LEIS,Leisure Management,LMAN,Liberty Leisure Limited / Kimberley Leisure Centre,NI,11,Employee Direct Costs,Direct,24/04/2020,V005284,182.1,Broxtowe Borough Council,448942.19,BAC003414
Liberty Leisure Limited,http://statistics.data.gov.uk/id/local-authority/37UD,Leisure,LEIS,Leisure Management,LMAN,Liberty Leisure Limited / Liberty Leisure Development,Childcare Vouchers Admin Fee,630,Indirect Employee Exp Oncosts,Oncosts,24/04/2020,V005293,111.81,Broxtowe Borough Council,448942.19,BAC003414
Liberty Leisure Limited,http://statistics.data.gov.uk/id/local-authority/37UD,Leisure,LEIS,Leisure Management,LMAN,Liberty Leisure Limited / Liberty Leisure Development,Childcare Vouchers Admin Fee,630,Indirect Employee Exp Oncosts,Oncosts,24/04/2020,V005294,120.6,Broxtowe Borough Council,448942.19,BAC003414
Liberty Leisure Limited,http://statistics.data.gov.uk/id/local-authority/37UD,Leisure,LEIS,Leisure Management,LMAN,Liberty Leisure Limited / Liberty Leisure Development,Professional Fees,730,Indirect Employee Exp Oncosts,Oncosts,24/04/2020,V005293,685,Broxtowe Borough Council,448942.19,BAC003414
Liberty Leisure Limited,http://statistics.data.gov.uk/id/local-authority/37UD,Leisure,LEIS,Leisure Management,LMAN,Liberty Leisure Limited / Liberty Leisure Development,Consultancy Fees,3603,Other Supplies & Services,OtherSS,24/04/2020,V005294,585,Broxtowe Borough Council,448942.19,BAC003414
Liberty Leisure Limited,http://statistics.data.gov.uk/id/local-authority/37UD,Leisure,LEIS,Leisure Management,LMAN,Liberty Leisure Limited / Kimberley Leisure Centre,Miscellaneous Expenses,3800,Miscellaneous,Msc,24/04/2020,V005284,6,Broxtowe Borough Council,448942.19,BAC003414
Liberty Leisure Limited,http://statistics.data.gov.uk/id/local-authority/37UD,Leisure,LEIS,Leisure Management,LMAN,Liberty Leisure Limited / Liberty Leisure Development,Childcare Vouchers,9181,Control,Crtl,24/04/2020,V005294,"7,747.00",Broxtowe Borough Council,448942.19,BAC003414
Liberty Leisure Limited,http://statistics.data.gov.uk/id/local-authority/37UD,Leisure,LEIS,Leisure Management,LMAN,Liberty Leisure Limited / Liberty Leisure Development,Superannuation - Lump Prepayment,9859,Control,Crtl,24/04/2020,V005294,"125,352.47",Broxtowe Borough Council,448942.19,BAC003414
Liberty Leisure Limited,http://statistics.data.gov.uk/id/local-authority/37UD,Culture and Heritage,CULT,Heritage,LHER,Liberty Leisure Limited / Liberty Leisure Development,Legionella Testing,1042,Central Pot,Central,24/04/2020,V005293,101.46,Broxtowe Borough Council,448942.19,BAC003414
Liberty Leisure Limited,http://statistics.data.gov.uk/id/local-authority/37UD,Culture and Heritage,CULT,Heritage,LHER,Liberty Leisure Limited / Kimberley Leisure Centre,Electricity,1310,Utilities,Utility,24/04/2020,V005296,317.46,Broxtowe Borough Council,448942.19,BAC003414
Liberty Leisure Limited,http://statistics.data.gov.uk/id/local-authority/37UD,Culture and Heritage,CULT,Heritage,LHER,Liberty Leisure Limited / Kimberley Leisure Centre,Electricity,1310,Utilities,Utility,24/04/2020,V005287,"2,284.15",Broxtowe Borough Council,448942.19,BAC003414
Liberty Leisure Limited,http://statistics.data.gov.uk/id/local-authority/37UD,Culture and Heritage,CULT,Heritage,LHER,Liberty Leisure Limited / Kimberley Leisure Centre,Gas,1320,Utilities,Utility,24/04/2020,V005287,159.96,Broxtowe Borough Council,448942.19,BAC003414
Liberty Leisure Limited,http://statistics.data.gov.uk/id/local-authority/37UD,Culture and Heritage,CULT,Heritage,LHER,Liberty Leisure Limited / Kimberley Leisure Centre,Gas,1320,Utilities,Utility,24/04/2020,V005296,62.49,Broxtowe Borough Council,448942.19,BAC003414
Liberty Leisure Limited,http://statistics.data.gov.uk/id/local-authority/37UD,Culture and Heritage,CULT,Heritage,LHER,Liberty Leisure Limited / Liberty Leisure Development,Water Charges,1410,Utilities,Utility,24/04/2020,V005295,393.73,Broxtowe Borough Council,448942.19,BAC003414
Liberty Leisure Limited,http://statistics.data.gov.uk/id/local-authority/37UD,Culture and Heritage,CULT,Heritage,LHER,Liberty Leisure Limited / Kimberley Leisure Centre,Water Charges,1410,Utilities,Utility,24/04/2020,V005287,81.93,Broxtowe Borough Council,448942.19,BAC003414
Liberty Leisure Limited,http://statistics.data.gov.uk/id/local-authority/37UD,Culture and Heritage,CULT,Heritage,LHER,Liberty Leisure Limited / Kimberley Leisure Centre,Water Charges,1410,Utilities,Utility,24/04/2020,V005296,77.42,Broxtowe Borough Council,448942.19,BAC003414
Liberty Leisure Limited,http://statistics.data.gov.uk/id/local-authority/37UD,Culture and Heritage,CULT,Heritage,LHER,Liberty Leisure Limited / Liberty Leisure Development,Printing & Stationery,3300,Printing,Print,24/04/2020,V005295,1.64,Broxtowe Borough Council,448942.19,BAC003414
Liberty Leisure Limited,http://statistics.data.gov.uk/id/local-authority/37UD,Culture and Heritage,CULT,Heritage,LHER,Liberty Leisure Limited / Kimberley Leisure Centre,Telephones,3400,Telephones,Tele,24/04/2020,V005287,7.58,Broxtowe Borough Council,448942.19,BAC003414
Liberty Leisure Limited,http://statistics.data.gov.uk/id/local-authority/37UD,Culture and Heritage,CULT,Heritage,LHER,Liberty Leisure Limited / Liberty Leisure Development,Postages,3411,Other Supplies & Services,OtherSS,24/04/2020,V005293,941.71,Broxtowe Borough Council,448942.19,BAC003414
Liberty Leisure Limited,http://statistics.data.gov.uk/id/local-authority/37UD,Culture and Heritage,CULT,Heritage,LHER,Liberty Leisure Limited / Kimberley Leisure Centre,Postages,3411,Other Supplies & Services,OtherSS,24/04/2020,V005287,7.28,Broxtowe Borough Council,448942.19,BAC003414
Liberty Leisure Limited,http://statistics.data.gov.uk/id/local-authority/37UD,Culture and Heritage,CULT,Heritage,LHER,Liberty Leisure Limited / Kimberley Leisure Centre,Security - Public Buildings,3626,Security Costs,Secure,24/04/2020,V005287,482.95,Broxtowe Borough Council,448942.19,BAC003414
Liberty Leisure Limited,http://statistics.data.gov.uk/id/local-authority/37UD,Culture and Heritage,CULT,Events,LEVE,Liberty Leisure Limited / Kimberley Leisure Centre,D.H. Lawrence Festival,3083,Other Supplies & Services,OtherSS,24/04/2020,V005284,899.15,Broxtowe Borough Council,448942.19,BAC003414
Liberty Leisure Limited,http://statistics.data.gov.uk/id/local-authority/37UD,Leisure,LEIS,Leisure Development,LDEV,Liberty Leisure Limited / Liberty Leisure Development,Postages,3411,Other Supplies & Services,OtherSS,24/04/2020,V005294,"2,117.63",Broxtowe Borough Council,448942.19,BAC003414
Liberty Leisure Limited,http://statistics.data.gov.uk/id/local-authority/37UD,Leisure,LEIS,Leisure Centres,LCEN,Liberty Leisure Limited / Liberty Leisure Development,Repairs & Maintenance,1000,Central Pot,Central,24/04/2020,V005300,408.5,Broxtowe Borough Council,448942.19,BAC003414
Liberty Leisure Limited,http://statistics.data.gov.uk/id/local-authority/37UD,Leisure,LEIS,Leisure Centres,LCEN,Liberty Leisure Limited / Liberty Leisure Development,Electricity,1310,Utilities,Utility,24/04/2020,V005300,"1,489.54",Broxtowe Borough Council,448942.19,BAC003414
Liberty Leisure Limited,http://statistics.data.gov.uk/id/local-authority/37UD,Leisure,LEIS,Leisure Centres,LCEN,Liberty Leisure Limited / Kimberley Leisure Centre,Electricity,1310,Utilities,Utility,24/04/2020,V005286,"9,193.40",Broxtowe Borough Council,448942.19,BAC003414
Liberty Leisure Limited,http://statistics.data.gov.uk/id/local-authority/37UD,Leisure,LEIS,Leisure Centres,LCEN,Liberty Leisure Limited / Liberty Leisure Development,Gas,1320,Utilities,Utility,24/04/2020,V005300,"10,907.20",Broxtowe Borough Council,448942.19,BAC003414
Liberty Leisure Limited,http://statistics.data.gov.uk/id/local-authority/37UD,Leisure,LEIS,Leisure Centres,LCEN,Liberty Leisure Limited / Kimberley Leisure Centre,Gas,1320,Utilities,Utility,24/04/2020,V005286,"22,237.01",Broxtowe Borough Council,448942.19,BAC003414
Liberty Leisure Limited,http://statistics.data.gov.uk/id/local-authority/37UD,Leisure,LEIS,Leisure Centres,LCEN,Liberty Leisure Limited / Liberty Leisure Development,Water Charges,1410,Utilities,Utility,24/04/2020,V005300,"3,897.13",Broxtowe Borough Council,448942.19,BAC003414
Liberty Leisure Limited,http://statistics.data.gov.uk/id/local-authority/37UD,Leisure,LEIS,Leisure Centres,LCEN,Liberty Leisure Limited / Liberty Leisure Development,Water Charges,1410,Utilities,Utility,24/04/2020,V005299,"47,411.84",Broxtowe Borough Council,448942.19,BAC003414
Liberty Leisure Limited,http://statistics.data.gov.uk/id/local-authority/37UD,Leisure,LEIS,Leisure Centres,LCEN,Liberty Leisure Limited / Kimberley Leisure Centre,Water Charges,1410,Utilities,Utility,24/04/2020,V005286,"15,368.80",Broxtowe Borough Council,448942.19,BAC003414
Liberty Leisure Limited,http://statistics.data.gov.uk/id/local-authority/37UD,Leisure,LEIS,Leisure Centres,LCEN,Liberty Leisure Limited / Liberty Leisure Development,Printing & Stationery,3300,Printing,Print,24/04/2020,V005300,3.22,Broxtowe Borough Council,448942.19,BAC003414
Liberty Leisure Limited,http://statistics.data.gov.uk/id/local-authority/37UD,Leisure,LEIS,Leisure Centres,LCEN,Liberty Leisure Limited / Liberty Leisure Development,Printing & Stationery,3300,Printing,Print,24/04/2020,V005299,73,Broxtowe Borough Council,448942.19,BAC003414
Liberty Leisure Limited,http://statistics.data.gov.uk/id/local-authority/37UD,Leisure,LEIS,Leisure Centres,LCEN,Liberty Leisure Limited / Kimberley Leisure Centre,Printing & Stationery,3300,Printing,Print,24/04/2020,V005286,37.5,Broxtowe Borough Council,448942.19,BAC003414
Liberty Leisure Limited,http://statistics.data.gov.uk/id/local-authority/37UD,Leisure,LEIS,Leisure Centres,LCEN,Liberty Leisure Limited / Liberty Leisure Development,Telephones,3400,Telephones,Tele,24/04/2020,V005299,720,Broxtowe Borough Council,448942.19,BAC003414
Liberty Leisure Limited,http://statistics.data.gov.uk/id/local-authority/37UD,Leisure,LEIS,Leisure Centres,LCEN,Liberty Leisure Limited / Liberty Leisure Development,Postages,3411,Other Supplies & Services,OtherSS,24/04/2020,V005300,49,Broxtowe Borough Council,448942.19,BAC003414
Liberty Leisure Limited,http://statistics.data.gov.uk/id/local-authority/37UD,Leisure,LEIS,Leisure Centres,LCEN,Liberty Leisure Limited / Liberty Leisure Development,Postages,3411,Other Supplies & Services,OtherSS,24/04/2020,V005299,3.22,Broxtowe Borough Council,448942.19,BAC003414
Liberty Leisure Limited,http://statistics.data.gov.uk/id/local-authority/37UD,Leisure,LEIS,Leisure Centres,LCEN,Liberty Leisure Limited / Kimberley Leisure Centre,Postages,3411,Other Supplies & Services,OtherSS,24/04/2020,V005286,51.58,Broxtowe Borough Council,448942.19,BAC003414
Liberty Leisure Limited,http://statistics.data.gov.uk/id/local-authority/37UD,Leisure,LEIS,Leisure Centres,LCEN,Liberty Leisure Limited / Kimberley Leisure Centre,Fees and Charges - D/D Income,8452,Fitness Income,Fitness,24/04/2020,V005286,"1,087.50",Broxtowe Borough Council,448942.19,BAC003414
Liberty Leisure Limited,http://statistics.data.gov.uk/id/local-authority/37UD,Leisure,LEIS,Leisure Centres,LCEN,Liberty Leisure Limited / Kimberley Leisure Centre,Repairs & Maintenance,1000,Central Pot,Central,24/04/2020,V005298,607.15,Broxtowe Borough Council,448942.19,BAC003414
Liberty Leisure Limited,http://statistics.data.gov.uk/id/local-authority/37UD,Leisure,LEIS,Leisure Centres,LCEN,Liberty Leisure Limited / Kimberley Leisure Centre,Water Charges,1410,Utilities,Utility,24/04/2020,V005279,40.48,Broxtowe Borough Council,448942.19,BAC003414
Liberty Leisure Limited,http://statistics.data.gov.uk/id/local-authority/37UD,Leisure,LEIS,Leisure Centres,LCEN,Liberty Leisure Limited / Kimberley Leisure Centre,Water Charges,1410,Utilities,Utility,24/04/2020,V005298,18.56,Broxtowe Borough Council,448942.19,BAC003414
Liberty Leisure Limited,http://statistics.data.gov.uk/id/local-authority/37UD,Leisure,LEIS,Leisure Centres,LCEN,Liberty Leisure Limited / Kimberley Leisure Centre,Water Charges,1410,Utilities,Utility,24/04/2020,V005297,57.6,Broxtowe Borough Council,448942.19,BAC003414
Liberty Leisure Limited,http://statistics.data.gov.uk/id/local-authority/37UD,Leisure,LEIS,Leisure Centres,LCEN,Liberty Leisure Limited / Kimberley Leisure Centre,Printing & Stationery,3300,Printing,Print,24/04/2020,V005297,48.68,Broxtowe Borough Council,448942.19,BAC003414
Liberty Leisure Limited,http://statistics.data.gov.uk/id/local-authority/37UD,Leisure,LEIS,Leisure Centres,LCEN,Liberty Leisure Limited / Kimberley Leisure Centre,Printing & Stationery,3300,Printing,Print,24/04/2020,V005298,48.68,Broxtowe Borough Council,448942.19,BAC003414
Liberty Leisure Limited,http://statistics.data.gov.uk/id/local-authority/37UD,Leisure,LEIS,Leisure Centres,LCEN,Liberty Leisure Limited / Kimberley Leisure Centre,Printing & Stationery,3300,Printing,Print,24/04/2020,V005279,64.2,Broxtowe Borough Council,448942.19,BAC003414
Liberty Leisure Limited,http://statistics.data.gov.uk/id/local-authority/37UD,Leisure,LEIS,Leisure Centres,LCEN,Liberty Leisure Limited / Kimberley Leisure Centre,Telephones,3400,Telephones,Tele,24/04/2020,V005298,37.5,Broxtowe Borough Council,448942.19,BAC003414
Liberty Leisure Limited,http://statistics.data.gov.uk/id/local-authority/37UD,Leisure,LEIS,Leisure Centres,LCEN,Liberty Leisure Limited / Kimberley Leisure Centre,Postages,3411,Other Supplies & Services,OtherSS,24/04/2020,V005279,40.64,Broxtowe Borough Council,448942.19,BAC003414
Liberty Leisure Limited,http://statistics.data.gov.uk/id/local-authority/37UD,Leisure,LEIS,Leisure Centres,LCEN,Liberty Leisure Limited / Kimberley Leisure Centre,Postages,3411,Other Supplies & Services,OtherSS,24/04/2020,V005298,1.82,Broxtowe Borough Council,448942.19,BAC003414
Liberty Leisure Limited,http://statistics.data.gov.uk/id/local-authority/37UD,Leisure,LEIS,Leisure Centres,LCEN,Liberty Leisure Limited / Kimberley Leisure Centre,Postages,3411,Other Supplies & Services,OtherSS,24/04/2020,V005297,22.55,Broxtowe Borough Council,448942.19,BAC003414
Liberty Leisure Limited,http://statistics.data.gov.uk/id/local-authority/37UD,Leisure,LEIS,Leisure Centres,LCEN,Liberty Leisure Limited / Liberty Leisure Development,Repairs & Maintenance,1000,Central Pot,Central,24/04/2020,V005302,422.75,Broxtowe Borough Council,448942.19,BAC003414
Liberty Leisure Limited,http://statistics.data.gov.uk/id/local-authority/37UD,Leisure,LEIS,Leisure Centres,LCEN,Liberty Leisure Limited / Liberty Leisure Development,Electricity,1310,Utilities,Utility,24/04/2020,V005302,"3,845.61",Broxtowe Borough Council,448942.19,BAC003414
Liberty Leisure Limited,http://statistics.data.gov.uk/id/local-authority/37UD,Leisure,LEIS,Leisure Centres,LCEN,Liberty Leisure Limited / Kimberley Leisure Centre,Electricity,1310,Utilities,Utility,24/04/2020,V005285,"15,974.58",Broxtowe Borough Council,448942.19,BAC003414
Liberty Leisure Limited,http://statistics.data.gov.uk/id/local-authority/37UD,Leisure,LEIS,Leisure Centres,LCEN,Liberty Leisure Limited / Liberty Leisure Development,Water Charges,1410,Utilities,Utility,24/04/2020,V005302,492.29,Broxtowe Borough Council,448942.19,BAC003414
Liberty Leisure Limited,http://statistics.data.gov.uk/id/local-authority/37UD,Leisure,LEIS,Leisure Centres,LCEN,Liberty Leisure Limited / Liberty Leisure Development,Water Charges,1410,Utilities,Utility,24/04/2020,V005301,"1,524.08",Broxtowe Borough Council,448942.19,BAC003414
Liberty Leisure Limited,http://statistics.data.gov.uk/id/local-authority/37UD,Leisure,LEIS,Leisure Centres,LCEN,Liberty Leisure Limited / Kimberley Leisure Centre,Water Charges,1410,Utilities,Utility,24/04/2020,V005285,"12,143.56",Broxtowe Borough Council,448942.19,BAC003414
Liberty Leisure Limited,http://statistics.data.gov.uk/id/local-authority/37UD,Leisure,LEIS,Leisure Centres,LCEN,Liberty Leisure Limited / Liberty Leisure Development,Printing & Stationery,3300,Printing,Print,24/04/2020,V005301,3.22,Broxtowe Borough Council,448942.19,BAC003414
Liberty Leisure Limited,http://statistics.data.gov.uk/id/local-authority/37UD,Leisure,LEIS,Leisure Centres,LCEN,Liberty Leisure Limited / Liberty Leisure Development,Printing & Stationery,3300,Printing,Print,24/04/2020,V005302,67,Broxtowe Borough Council,448942.19,BAC003414
Liberty Leisure Limited,http://statistics.data.gov.uk/id/local-authority/37UD,Leisure,LEIS,Leisure Centres,LCEN,Liberty Leisure Limited / Liberty Leisure Development,Printing & Stationery,3300,Printing,Print,24/04/2020,V005301,97.5,Broxtowe Borough Council,448942.19,BAC003414
Liberty Leisure Limited,http://statistics.data.gov.uk/id/local-authority/37UD,Leisure,LEIS,Leisure Centres,LCEN,Liberty Leisure Limited / Kimberley Leisure Centre,Printing & Stationery,3300,Printing,Print,24/04/2020,V005285,36,Broxtowe Borough Council,448942.19,BAC003414
Liberty Leisure Limited,http://statistics.data.gov.uk/id/local-authority/37UD,Leisure,LEIS,Leisure Centres,LCEN,Liberty Leisure Limited / Liberty Leisure Development,Telephones,3400,Telephones,Tele,24/04/2020,V005302,9.01,Broxtowe Borough Council,448942.19,BAC003414
Liberty Leisure Limited,http://statistics.data.gov.uk/id/local-authority/37UD,Leisure,LEIS,Leisure Centres,LCEN,Liberty Leisure Limited / Kimberley Leisure Centre,Mobile Phones/Pagers,3408,Telephones,Tele,24/04/2020,V005285,46.58,Broxtowe Borough Council,448942.19,BAC003414
Liberty Leisure Limited,http://statistics.data.gov.uk/id/local-authority/37UD,Leisure,LEIS,Leisure Centres,LCEN,Liberty Leisure Limited / Liberty Leisure Development,Postages,3411,Other Supplies & Services,OtherSS,24/04/2020,V005302,3.68,Broxtowe Borough Council,448942.19,BAC003414
Liberty Leisure Limited,http://statistics.data.gov.uk/id/local-authority/37UD,Leisure,LEIS,Leisure Centres,LCEN,Liberty Leisure Limited / Liberty Leisure Development,Postages,3411,Other Supplies & Services,OtherSS,24/04/2020,V005301,4.26,Broxtowe Borough Council,448942.19,BAC003414
Liberty Leisure Limited,http://statistics.data.gov.uk/id/local-authority/37UD,Leisure,LEIS,Leisure Centres,LCEN,Liberty Leisure Limited / Kimberley Leisure Centre,Fees and Charges - D/D Income,8452,Fitness Income,Fitness,24/04/2020,V005285,22.95,Broxtowe Borough Council,448942.19,BAC003414
Liberty Leisure Limited,http://statistics.data.gov.uk/id/local-authority/37UD,Leisure,LEIS,Leisure Management,LMAN,Liberty Leisure Limited / Kimberley Leisure Centre,Annual Projects Contingency,3710,Other Supplies & Services,OtherSS,24/04/2020,V005272,418.13,J P Carty Limited,1478.18,BAC003415
Liberty Leisure Limited,http://statistics.data.gov.uk/id/local-authority/37UD,Leisure,LEIS,Leisure Management,LMAN,Liberty Leisure Limited / Kimberley Leisure Centre,Annual Projects Contingency,3710,Other Supplies & Services,OtherSS,24/04/2020,V005275,218,J P Carty Limited,1478.18,BAC003415
Liberty Leisure Limited,http://statistics.data.gov.uk/id/local-authority/37UD,Leisure,LEIS,Leisure Centres,LCEN,Liberty Leisure Limited / Kimberley Leisure Centre,Repairs & Maintenance,1000,Central Pot,Central,24/04/2020,V005274,106,J P Carty Limited,1478.18,BAC003415
Liberty Leisure Limited,http://statistics.data.gov.uk/id/local-authority/37UD,Leisure,LEIS,Leisure Centres,LCEN,Liberty Leisure Limited / Kimberley Leisure Centre,Repairs & Maintenance,1000,Central Pot,Central,24/04/2020,V005271,489.68,J P Carty Limited,1478.18,BAC003415
Liberty Leisure Limited,http://statistics.data.gov.uk/id/local-authority/37UD,Leisure,LEIS,Leisure Management,LMAN,Liberty Leisure Limited / Kimberley Leisure Centre,Annual Projects Contingency,3710,Other Supplies & Services,OtherSS,24/04/2020,V005290,221.62,Les Mills Smart Tech,5493.92,BAC003424
Liberty Leisure Limited,http://statistics.data.gov.uk/id/local-authority/37UD,Leisure,LEIS,Leisure Management,LMAN,Liberty Leisure Limited / Kimberley Leisure Centre,Annual Projects Contingency,3710,Other Supplies & Services,OtherSS,24/04/2020,V005290,490,Les Mills Smart Tech,5493.92,BAC003424
Liberty Leisure Limited,http://statistics.data.gov.uk/id/local-authority/37UD,Leisure,LEIS,Leisure Management,LMAN,Liberty Leisure Limited / Kimberley Leisure Centre,Annual Projects Contingency,3710,Other Supplies & Services,OtherSS,24/04/2020,V005290,277.2,Les Mills Smart Tech,5493.92,BAC003424
Liberty Leisure Limited,http://statistics.data.gov.uk/id/local-authority/37UD,Leisure,LEIS,Leisure Management,LMAN,Liberty Leisure Limited / Kimberley Leisure Centre,Annual Projects Contingency,3710,Other Supplies & Services,OtherSS,24/04/2020,V005290,"1,050.00",Les Mills Smart Tech,5493.92,BAC003424
Liberty Leisure Limited,http://statistics.data.gov.uk/id/local-authority/37UD,Leisure,LEIS,Leisure Management,LMAN,Liberty Leisure Limited / Kimberley Leisure Centre,Annual Projects Contingency,3710,Other Supplies & Services,OtherSS,24/04/2020,V005290,459.45,Les Mills Smart Tech,5493.92,BAC003424
Liberty Leisure Limited,http://statistics.data.gov.uk/id/local-authority/37UD,Leisure,LEIS,Leisure Management,LMAN,Liberty Leisure Limited / Kimberley Leisure Centre,Annual Projects Contingency,3710,Other Supplies & Services,OtherSS,24/04/2020,V005290,52.5,Les Mills Smart Tech,5493.92,BAC003424
Liberty Leisure Limited,http://statistics.data.gov.uk/id/local-authority/37UD,Leisure,LEIS,Leisure Management,LMAN,Liberty Leisure Limited / Kimberley Leisure Centre,Annual Projects Contingency,3710,Other Supplies & Services,OtherSS,24/04/2020,V005290,280,Les Mills Smart Tech,5493.92,BAC003424
Liberty Leisure Limited,http://statistics.data.gov.uk/id/local-authority/37UD,Leisure,LEIS,Leisure Management,LMAN,Liberty Leisure Limited / Kimberley Leisure Centre,Annual Projects Contingency,3710,Other Supplies & Services,OtherSS,24/04/2020,V005290,367.5,Les Mills Smart Tech,5493.92,BAC003424
Liberty Leisure Limited,http://statistics.data.gov.uk/id/local-authority/37UD,Leisure,LEIS,Leisure Management,LMAN,Liberty Leisure Limited / Kimberley Leisure Centre,Annual Projects Contingency,3710,Other Supplies & Services,OtherSS,24/04/2020,V005290,"1,680.00",Les Mills Smart Tech,5493.92,BAC003424
Liberty Leisure Limited,http://statistics.data.gov.uk/id/local-authority/37UD,Leisure,LEIS,Leisure Development,LDEV,Liberty Leisure Limited / Kimberley Leisure Centre,Business Development,3088,Other Supplies & Services,OtherSS,24/04/2020,V004209,-300,Les Mills Smart Tech,5493.92,BAC003424
Liberty Leisure Limited,http://statistics.data.gov.uk/id/local-authority/37UD,Leisure,LEIS,Leisure Centres,LCEN,Liberty Leisure Limited / Kimberley Leisure Centre,Payments to KCS,3501,Other Supplies & Services,OtherSS,24/04/2020,V005277,"61,108.84",NCC Kimberley School,61108.84,BAC003419
Liberty Leisure Limited,http://statistics.data.gov.uk/id/local-authority/37UD,Leisure,LEIS,Leisure Management,LMAN,Liberty Leisure Limited / Kimberley Leisure Centre,Annual Projects Contingency,3710,Other Supplies & Services,OtherSS,24/04/2020,V005273,"6,120.00",Peter Burton Building Contractors Ltd,7344,BAC003420
Liberty Leisure Limited,http://statistics.data.gov.uk/id/local-authority/37UD,Leisure,LEIS,Leisure Centres,LCEN,Liberty Leisure Limited / Kimberley Leisure Centre,Legionella Testing,1042,Central Pot,Central,24/04/2020,V005281,726,Sterilizing Services,1585.2,BAC003418
Liberty Leisure Limited,http://statistics.data.gov.uk/id/local-authority/37UD,Leisure,LEIS,Leisure Centres,LCEN,Liberty Leisure Limited / Kimberley Leisure Centre,Legionella Testing,1042,Central Pot,Central,24/04/2020,V005280,595,Sterilizing Services,1585.2,BAC003418
Liberty Leisure Limited,http://statistics.data.gov.uk/id/local-authority/37UD,Leisure,LEIS,Leisure Development,LDEV,Liberty Leisure Limited / Liberty Leisure Development,Business Development,3088,Other Supplies & Services,OtherSS,24/04/2020,V005292,"1,450.00",Three65 Media Solutions Ltd,1975,BAC003423
Liberty Leisure Limited,http://statistics.data.gov.uk/id/local-authority/37UD,Leisure,LEIS,Leisure Development,LDEV,Liberty Leisure Limited / Liberty Leisure Development,Business Development,3088,Other Supplies & Services,OtherSS,24/04/2020,V005291,525,Three65 Media Solutions Ltd,1975,BAC003423
Liberty Leisure Limited,http://statistics.data.gov.uk/id/local-authority/37UD,Leisure,LEIS,Leisure Centres,LCEN,Liberty Leisure Limited / Kimberley Leisure Centre,Gas,1320,Utilities,Utility,24/04/2020,V005278,"5,776.29",Total Gas & Power Ltd,6931.55,BAC003421
Liberty Leisure Limited,http://statistics.data.gov.uk/id/local-authority/37UD,Leisure,LEIS,Leisure Centres,LCEN,Liberty Leisure Limited / Kimberley Leisure Centre,Sports Equipment - Sale,3004,Equipment,Equip,24/04/2020,V005282,20.4,ZOGGS International Limited,426.9,BAC003422
Liberty Leisure Limited,http://statistics.data.gov.uk/id/local-authority/37UD,Leisure,LEIS,Leisure Centres,LCEN,Liberty Leisure Limited / Kimberley Leisure Centre,Sports Equipment - Sale,3004,Equipment,Equip,24/04/2020,V005282,385.75,ZOGGS International Limited,426.9,BAC003422
Liberty Leisure Limited,http://statistics.data.gov.uk/id/local-authority/37UD,Leisure,LEIS,Leisure Centres,LCEN,Liberty Leisure Limited / Kimberley Leisure Centre,Sports Equipment - Sale,3004,Equipment,Equip,24/04/2020,V005283,-37,ZOGGS International Limited,426.9,BAC003422
Liberty Leisure Limited,http://statistics.data.gov.uk/id/local-authority/37UD,Leisure,LEIS,Leisure Centres,LCEN,Liberty Leisure Limited / Kimberley Leisure Centre,Sports Equipment - Sale,3004,Equipment,Equip,24/04/2020,V005283,-12,ZOGGS International Limited,426.9,BAC003422
Liberty Leisure Limited,http://statistics.data.gov.uk/id/local-authority/37UD,Leisure,LEIS,Leisure Management,LMAN,Liberty Leisure Limited / Liberty Leisure Development,Third Party Payments,4200,Other Third Party Payments,OtherTP,22/05/2020,V005175,845,Broxtowe Borough Council,191641.2,BAC003431
Liberty Leisure Limited,http://statistics.data.gov.uk/id/local-authority/37UD,Leisure,LEIS,Leisure Management,LMAN,Liberty Leisure Limited / Liberty Leisure Development,Third Party Payments,4200,Other Third Party Payments,OtherTP,22/05/2020,V005175,"25,368.00",Broxtowe Borough Council,191641.2,BAC003431
Liberty Leisure Limited,http://statistics.data.gov.uk/id/local-authority/37UD,Leisure,LEIS,Leisure Management,LMAN,Liberty Leisure Limited / Liberty Leisure Development,Third Party Payments,4200,Other Third Party Payments,OtherTP,22/05/2020,V005175,"9,385.00",Broxtowe Borough Council,191641.2,BAC003431
Liberty Leisure Limited,http://statistics.data.gov.uk/id/local-authority/37UD,Leisure,LEIS,Leisure Management,LMAN,Liberty Leisure Limited / Liberty Leisure Development,Third Party Payments,4200,Other Third Party Payments,OtherTP,22/05/2020,V005175,"2,295.00",Broxtowe Borough Council,191641.2,BAC003431
Liberty Leisure Limited,http://statistics.data.gov.uk/id/local-authority/37UD,Leisure,LEIS,Leisure Management,LMAN,Liberty Leisure Limited / Liberty Leisure Development,Third Party Payments,4200,Other Third Party Payments,OtherTP,22/05/2020,V005175,"29,845.00",Broxtowe Borough Council,191641.2,BAC003431
Liberty Leisure Limited,http://statistics.data.gov.uk/id/local-authority/37UD,Leisure,LEIS,Leisure Management,LMAN,Liberty Leisure Limited / Liberty Leisure Development,Third Party Payments,4200,Other Third Party Payments,OtherTP,22/05/2020,V005175,872,Broxtowe Borough Council,191641.2,BAC003431
Liberty Leisure Limited,http://statistics.data.gov.uk/id/local-authority/37UD,Leisure,LEIS,Leisure Management,LMAN,Liberty Leisure Limited / Liberty Leisure Development,Third Party Payments,4200,Other Third Party Payments,OtherTP,22/05/2020,V005175,"91,091.00",Broxtowe Borough Council,191641.2,BAC003431
Liberty Leisure Limited,http://statistics.data.gov.uk/id/local-authority/37UD,Leisure,LEIS,Leisure Centres,LCEN,Liberty Leisure Limited / Bramcote Leisure Centre,Chemicals,3152,Other Supplies & Services,OtherSS,22/05/2020,V005317,748,Gaffey Technical Services,897.6,BAC003433
Liberty Leisure Limited,http://statistics.data.gov.uk/id/local-authority/37UD,Leisure,LEIS,Leisure Centres,LCEN,Liberty Leisure Limited / Kimberley Leisure Centre,Gas,1320,Utilities,Utility,22/05/2020,V005316,"3,155.04",NCC Kimberley School,5008.34,BAC003436
Liberty Leisure Limited,http://statistics.data.gov.uk/id/local-authority/37UD,Leisure,LEIS,Leisure Centres,LCEN,Liberty Leisure Limited / Kimberley Leisure Centre,Water Charges,1410,Utilities,Utility,22/05/2020,V005316,"1,853.30",NCC Kimberley School,5008.34,BAC003436
Liberty Leisure Limited,http://statistics.data.gov.uk/id/local-authority/37UD,Leisure,LEIS,Leisure Development,LDEV,Liberty Leisure Limited / Liberty Leisure Development,Licences,3613,Other Supplies & Services,OtherSS,22/05/2020,V005312,"10,768.21",Omnico Group UK Ltd,12921.85,BAC003438
Liberty Leisure Limited,http://statistics.data.gov.uk/id/local-authority/37UD,Leisure,LEIS,Leisure Centres,LCEN,Liberty Leisure Limited / Kimberley Leisure Centre,Chemicals,3152,Other Supplies & Services,OtherSS,22/05/2020,V005313,481.5,Univar Limited,577.8,BAC003435
Liberty Leisure Limited,http://statistics.data.gov.uk/id/local-authority/37UD,Leisure,LEIS,Leisure Development,LDEV,Liberty Leisure Limited / Kimberley Leisure Centre,Business Development,3088,Other Supplies & Services,OtherSS,05/06/2020,V005324,"1,921.79",MHG Supplies Ltd,2331.05,BAC003445
Liberty Leisure Limited,http://statistics.data.gov.uk/id/local-authority/37UD,Leisure,LEIS,Leisure Development,LDEV,Liberty Leisure Limited / Kimberley Leisure Centre,Business Development,3088,Other Supplies & Services,OtherSS,05/06/2020,V005324,20.75,MHG Supplies Ltd,2331.05,BAC003445
Liberty Leisure Limited,http://statistics.data.gov.uk/id/local-authority/37UD,Culture and Heritage,CULT,Heritage,LHER,Liberty Leisure Limited / DHL Museum,Gas,1320,Utilities,Utility,05/06/2020,V005320,37.08,Total Gas & Power Ltd,8838.64,BAC003442
Liberty Leisure Limited,http://statistics.data.gov.uk/id/local-authority/37UD,Leisure,LEIS,Leisure Centres,LCEN,Liberty Leisure Limited / Bramcote Leisure Centre,Electricity,1310,Utilities,Utility,05/06/2020,V005321,"3,923.27",Total Gas & Power Ltd,8838.64,BAC003442
Liberty Leisure Limited,http://statistics.data.gov.uk/id/local-authority/37UD,Leisure,LEIS,Leisure Centres,LCEN,Liberty Leisure Limited / Kimberley Leisure Centre,Electricity,1310,Utilities,Utility,05/06/2020,V005322,"3,409.81",Total Gas & Power Ltd,8838.64,BAC003442
Liberty Leisure Limited,http://statistics.data.gov.uk/id/local-authority/37UD,Leisure,LEIS,Leisure Centres,LCEN,Liberty Leisure Limited / Kimberley Leisure Centre,Electricity,1310,Utilities,Utility,03/07/2020,V005332,1890.17,Total Gas & Power Ltd,4553.67,BAC003449
Liberty Leisure Limited,http://statistics.data.gov.uk/id/local-authority/37UD,Leisure,LEIS,Leisure Centres,LCEN,Liberty Leisure Limited / Kimberley Leisure Centre,Electricity,1310,Utilities,Utility,03/07/2020,V005333,1904.56,Total Gas & Power Ltd,4553.67,BAC003449
Liberty Leisure Limited,http://statistics.data.gov.uk/id/local-authority/37UD,Leisure,LEIS,Leisure Centres,LCEN,Liberty Leisure Limited / Kimberley Leisure Centre,Chemicals,3152,Other Supplies & Services,OtherSS,17/07/2020,V005354,287.04,Cryoservice Limited,688.46,BAC003455
Liberty Leisure Limited,http://statistics.data.gov.uk/id/local-authority/37UD,Leisure,LEIS,Leisure Centres,LCEN,Liberty Leisure Limited / Kimberley Leisure Centre,Chemicals,3152,Other Supplies & Services,OtherSS,17/07/2020,V005356,255.52,Cryoservice Limited,688.46,BAC003455
Liberty Leisure Limited,http://statistics.data.gov.uk/id/local-authority/37UD,Leisure,LEIS,Leisure Centres,LCEN,Liberty Leisure Limited / Kimberley Leisure Centre,Chemicals,3152,Other Supplies & Services,OtherSS,17/07/2020,V005354,21.24,Cryoservice Limited,688.46,BAC003455
Liberty Leisure Limited,http://statistics.data.gov.uk/id/local-authority/37UD,Leisure,LEIS,Leisure Centres,LCEN,Liberty Leisure Limited / Kimberley Leisure Centre,Chemicals,3152,Other Supplies & Services,OtherSS,17/07/2020,V005355,9.92,Cryoservice Limited,688.46,BAC003455
Liberty Leisure Limited,http://statistics.data.gov.uk/id/local-authority/37UD,Leisure,LEIS,Leisure Management,LMAN,Liberty Leisure Limited / Liberty Leisure Development,Annual Projects Contingency,3710,Other Supplies & Services,OtherSS,17/07/2020,V005351,558,Fastgraphics,2061.6,BAC003461
Liberty Leisure Limited,http://statistics.data.gov.uk/id/local-authority/37UD,Leisure,LEIS,Leisure Centres,LCEN,Liberty Leisure Limited / Kimberley Leisure Centre,Repairs & Maintenance,1000,Central Pot,Central,17/07/2020,V005353,954,Fastgraphics,2061.6,BAC003461
Liberty Leisure Limited,http://statistics.data.gov.uk/id/local-authority/37UD,Leisure,LEIS,Leisure Centres,LCEN,Liberty Leisure Limited / Kimberley Leisure Centre,Advertising,3412,Advertising,Advert,17/07/2020,V005345,206,Fastgraphics,2061.6,BAC003461
Liberty Leisure Limited,http://statistics.data.gov.uk/id/local-authority/37UD,Leisure,LEIS,Leisure Centres,LCEN,Liberty Leisure Limited / Bramcote Leisure Centre,Chemicals,3152,Other Supplies & Services,OtherSS,17/07/2020,V005348,748,Gaffey Technical Services,1795.2,BAC003456
Liberty Leisure Limited,http://statistics.data.gov.uk/id/local-authority/37UD,Leisure,LEIS,Leisure Centres,LCEN,Liberty Leisure Limited / Bramcote Leisure Centre,Chemicals,3152,Other Supplies & Services,OtherSS,17/07/2020,V005349,748,Gaffey Technical Services,1795.2,BAC003456
Liberty Leisure Limited,http://statistics.data.gov.uk/id/local-authority/37UD,Leisure,LEIS,Leisure Management,LMAN,Liberty Leisure Limited / Liberty Leisure Development,Professional Fees,730,Indirect Employee Exp Oncosts,Oncosts,17/07/2020,V005342,5200,Haines Watts Nottingham Ltd,6240,BAC003468
Liberty Leisure Limited,http://statistics.data.gov.uk/id/local-authority/37UD,Leisure,LEIS,Leisure Development,LDEV,Liberty Leisure Limited / Liberty Leisure Development,Business Development,3088,Other Supplies & Services,OtherSS,17/07/2020,V005358,520,Ice Blue,624,BAC003467
Liberty Leisure Limited,http://statistics.data.gov.uk/id/local-authority/37UD,Leisure,LEIS,Leisure Centres,LCEN,Liberty Leisure Limited / Kimberley Leisure Centre,Repairs & Maintenance,1000,Central Pot,Central,17/07/2020,V005338,850,M A Technical Services Ltd,1020,BAC003457
Liberty Leisure Limited,http://statistics.data.gov.uk/id/local-authority/37UD,Leisure,LEIS,Leisure Centres,LCEN,Liberty Leisure Limited / Chilwell Olympia,Repairs & Maintenance,1000,Central Pot,Central,17/07/2020,V005327,420,Merrin Builders & Landscaping,420,BAC003462
Liberty Leisure Limited,http://statistics.data.gov.uk/id/local-authority/37UD,Leisure,LEIS,Leisure Centres,LCEN,Liberty Leisure Limited / Kimberley Leisure Centre,Gas,1320,Utilities,Utility,17/07/2020,V005341,1409.86,NCC Kimberley School,2047.91,BAC003460
Liberty Leisure Limited,http://statistics.data.gov.uk/id/local-authority/37UD,Leisure,LEIS,Leisure Centres,LCEN,Liberty Leisure Limited / Kimberley Leisure Centre,Water Charges,1410,Utilities,Utility,17/07/2020,V005341,638.05,NCC Kimberley School,2047.91,BAC003460
Liberty Leisure Limited,http://statistics.data.gov.uk/id/local-authority/37UD,Leisure,LEIS,Leisure Centres,LCEN,Liberty Leisure Limited / Kimberley Leisure Centre,Service Contracts,3056,Other Supplies & Services,OtherSS,17/07/2020,V005357,315,Sports Labs Ltd,2100,BAC003466
Liberty Leisure Limited,http://statistics.data.gov.uk/id/local-authority/37UD,Leisure,LEIS,Leisure Centres,LCEN,Liberty Leisure Limited / Kimberley Leisure Centre,Repairs & Maintenance,1000,Central Pot,Central,17/07/2020,V005357,1435,Sports Labs Ltd,2100,BAC003466
Liberty Leisure Limited,http://statistics.data.gov.uk/id/local-authority/37UD,Leisure,LEIS,Leisure Centres,LCEN,Liberty Leisure Limited / Bramcote Leisure Centre,Electricity,1310,Utilities,Utility,17/07/2020,V005343,4647.05,Total Gas & Power Ltd,5576.46,BAC003464
Liberty Leisure Limited,http://statistics.data.gov.uk/id/local-authority/37UD,Leisure,LEIS,Leisure Management,LMAN,Liberty Leisure Limited / Kimberley Leisure Centre,Annual Projects Contingency,3710,Other Supplies & Services,OtherSS,31/07/2020,V005381,4709.57,Airquee,12355.88,BAC003481
Liberty Leisure Limited,http://statistics.data.gov.uk/id/local-authority/37UD,Leisure,LEIS,Leisure Centres,LCEN,Liberty Leisure Limited / Kimberley Leisure Centre,Sports Equipment,3002,Equipment,Equip,31/07/2020,V005381,2177,Airquee,12355.88,BAC003481
Liberty Leisure Limited,http://statistics.data.gov.uk/id/local-authority/37UD,Leisure,LEIS,Leisure Centres,LCEN,Liberty Leisure Limited / Kimberley Leisure Centre,Pool Equipment Purchase,3020,Other Supplies & Services,OtherSS,31/07/2020,V005381,3360,Airquee,12355.88,BAC003481
Liberty Leisure Limited,http://statistics.data.gov.uk/id/local-authority/37UD,Leisure,LEIS,Leisure Centres,LCEN,Liberty Leisure Limited / Kimberley Leisure Centre,Pool Equipment Purchase,3020,Other Supplies & Services,OtherSS,31/07/2020,V005381,50,Airquee,12355.88,BAC003481
Liberty Leisure Limited,http://statistics.data.gov.uk/id/local-authority/37UD,Leisure,LEIS,Leisure Centres,LCEN,Liberty Leisure Limited / Kimberley Leisure Centre,Service Contracts,3056,Other Supplies & Services,OtherSS,31/07/2020,V005384,551,Complete Cooling Services Limited,661.2,BAC003472
Liberty Leisure Limited,http://statistics.data.gov.uk/id/local-authority/37UD,Leisure,LEIS,Leisure Centres,LCEN,Liberty Leisure Limited / Bramcote Leisure Centre,Repairs & Maintenance,1000,Central Pot,Central,31/07/2020,V005375,1270,DJ Heath Plumbing and Heating,3175,BAC003487
Liberty Leisure Limited,http://statistics.data.gov.uk/id/local-authority/37UD,Leisure,LEIS,Leisure Centres,LCEN,Liberty Leisure Limited / Bramcote Leisure Centre,Repairs & Maintenance,1000,Central Pot,Central,31/07/2020,V005375,1905,DJ Heath Plumbing and Heating,3175,BAC003487
Liberty Leisure Limited,http://statistics.data.gov.uk/id/local-authority/37UD,Leisure,LEIS,Leisure Centres,LCEN,Liberty Leisure Limited / Bramcote Leisure Centre,Repairs & Maintenance,1000,Central Pot,Central,31/07/2020,V005370,290,EME Power Systems,348,BAC003486
Liberty Leisure Limited,http://statistics.data.gov.uk/id/local-authority/37UD,Leisure,LEIS,Leisure Centres,LCEN,Liberty Leisure Limited / Kimberley Leisure Centre,Service Contracts,3056,Other Supplies & Services,OtherSS,31/07/2020,V005368,636,ESG Pool Ventilation Ltd,763.2,BAC003479
Liberty Leisure Limited,http://statistics.data.gov.uk/id/local-authority/37UD,Leisure,LEIS,Leisure Centres,LCEN,Liberty Leisure Limited / Bramcote Leisure Centre,Advertising,3412,Advertising,Advert,31/07/2020,V005379,125,Fastgraphics,414,BAC003476
Liberty Leisure Limited,http://statistics.data.gov.uk/id/local-authority/37UD,Leisure,LEIS,Leisure Centres,LCEN,Liberty Leisure Limited / Kimberley Leisure Centre,Advertising,3412,Advertising,Advert,31/07/2020,V005383,110,Fastgraphics,414,BAC003476
Liberty Leisure Limited,http://statistics.data.gov.uk/id/local-authority/37UD,Leisure,LEIS,Leisure Centres,LCEN,Liberty Leisure Limited / Kimberley Leisure Centre,Advertising,3412,Advertising,Advert,31/07/2020,V005383,110,Fastgraphics,414,BAC003476
Liberty Leisure Limited,http://statistics.data.gov.uk/id/local-authority/37UD,Leisure,LEIS,Leisure Centres,LCEN,Liberty Leisure Limited / Bramcote Leisure Centre,Chemicals,3152,Other Supplies & Services,OtherSS,31/07/2020,V005350,748,Gaffey Technical Services,897.6,BAC003474
Liberty Leisure Limited,http://statistics.data.gov.uk/id/local-authority/37UD,Leisure,LEIS,Leisure Centres,LCEN,Liberty Leisure Limited / Bramcote Leisure Centre,Service Contracts,3056,Other Supplies & Services,OtherSS,31/07/2020,V005363,560,Lee Jackson Air Conditioning Ltd,672,BAC003482
Liberty Leisure Limited,http://statistics.data.gov.uk/id/local-authority/37UD,Leisure,LEIS,Leisure Centres,LCEN,Liberty Leisure Limited / Kimberley Leisure Centre,Repairs & Maintenance,1000,Central Pot,Central,31/07/2020,V005369,1420,M A Technical Services Ltd,1908,BAC003475
Liberty Leisure Limited,http://statistics.data.gov.uk/id/local-authority/37UD,Leisure,LEIS,Leisure Centres,LCEN,Liberty Leisure Limited / Kimberley Leisure Centre,Legionella Testing,1042,Central Pot,Central,31/07/2020,V005369,170,M A Technical Services Ltd,1908,BAC003475
Liberty Leisure Limited,http://statistics.data.gov.uk/id/local-authority/37UD,Leisure,LEIS,Leisure Centres,LCEN,Liberty Leisure Limited / Bramcote Leisure Centre,Cleaning Materials,1510,Other Prem,OthPrem,31/07/2020,V005378,43.43,Mark-Douglas Industrial Supplies Limited,3210.41,BAC003477
Liberty Leisure Limited,http://statistics.data.gov.uk/id/local-authority/37UD,Leisure,LEIS,Leisure Centres,LCEN,Liberty Leisure Limited / Bramcote Leisure Centre,Cleaning Materials,1510,Other Prem,OthPrem,31/07/2020,V005373,948,Mark-Douglas Industrial Supplies Limited,3210.41,BAC003477
Liberty Leisure Limited,http://statistics.data.gov.uk/id/local-authority/37UD,Leisure,LEIS,Leisure Centres,LCEN,Liberty Leisure Limited / Bramcote Leisure Centre,Cleaning Materials,1510,Other Prem,OthPrem,31/07/2020,V005373,166.32,Mark-Douglas Industrial Supplies Limited,3210.41,BAC003477
Liberty Leisure Limited,http://statistics.data.gov.uk/id/local-authority/37UD,Leisure,LEIS,Leisure Centres,LCEN,Liberty Leisure Limited / Bramcote Leisure Centre,Cleaning Materials,1510,Other Prem,OthPrem,31/07/2020,V005376,32.25,Mark-Douglas Industrial Supplies Limited,3210.41,BAC003477
Liberty Leisure Limited,http://statistics.data.gov.uk/id/local-authority/37UD,Leisure,LEIS,Leisure Centres,LCEN,Liberty Leisure Limited / Bramcote Leisure Centre,Cleaning Materials,1510,Other Prem,OthPrem,31/07/2020,V005376,12.95,Mark-Douglas Industrial Supplies Limited,3210.41,BAC003477
Liberty Leisure Limited,http://statistics.data.gov.uk/id/local-authority/37UD,Leisure,LEIS,Leisure Centres,LCEN,Liberty Leisure Limited / Bramcote Leisure Centre,Cleaning Materials,1510,Other Prem,OthPrem,31/07/2020,V005377,21.75,Mark-Douglas Industrial Supplies Limited,3210.41,BAC003477
Liberty Leisure Limited,http://statistics.data.gov.uk/id/local-authority/37UD,Leisure,LEIS,Leisure Centres,LCEN,Liberty Leisure Limited / Bramcote Leisure Centre,Cleaning Materials,1510,Other Prem,OthPrem,31/07/2020,V005377,4.25,Mark-Douglas Industrial Supplies Limited,3210.41,BAC003477
Liberty Leisure Limited,http://statistics.data.gov.uk/id/local-authority/37UD,Leisure,LEIS,Leisure Centres,LCEN,Liberty Leisure Limited / Bramcote Leisure Centre,Cleaning Materials,1510,Other Prem,OthPrem,31/07/2020,V005376,34,Mark-Douglas Industrial Supplies Limited,3210.41,BAC003477
Liberty Leisure Limited,http://statistics.data.gov.uk/id/local-authority/37UD,Leisure,LEIS,Leisure Centres,LCEN,Liberty Leisure Limited / Bramcote Leisure Centre,Cleaning Materials,1510,Other Prem,OthPrem,31/07/2020,V005377,32.5,Mark-Douglas Industrial Supplies Limited,3210.41,BAC003477
Liberty Leisure Limited,http://statistics.data.gov.uk/id/local-authority/37UD,Leisure,LEIS,Leisure Centres,LCEN,Liberty Leisure Limited / Bramcote Leisure Centre,Cleaning Materials,1510,Other Prem,OthPrem,31/07/2020,V005376,97.5,Mark-Douglas Industrial Supplies Limited,3210.41,BAC003477
Liberty Leisure Limited,http://statistics.data.gov.uk/id/local-authority/37UD,Leisure,LEIS,Leisure Centres,LCEN,Liberty Leisure Limited / Bramcote Leisure Centre,Cleaning Materials,1510,Other Prem,OthPrem,31/07/2020,V005377,1.72,Mark-Douglas Industrial Supplies Limited,3210.41,BAC003477
Liberty Leisure Limited,http://statistics.data.gov.uk/id/local-authority/37UD,Leisure,LEIS,Leisure Centres,LCEN,Liberty Leisure Limited / Bramcote Leisure Centre,Cleaning Materials,1510,Other Prem,OthPrem,31/07/2020,V005377,11.95,Mark-Douglas Industrial Supplies Limited,3210.41,BAC003477
Liberty Leisure Limited,http://statistics.data.gov.uk/id/local-authority/37UD,Leisure,LEIS,Leisure Centres,LCEN,Liberty Leisure Limited / Bramcote Leisure Centre,Cleaning Materials,1510,Other Prem,OthPrem,31/07/2020,V005377,15.22,Mark-Douglas Industrial Supplies Limited,3210.41,BAC003477
Liberty Leisure Limited,http://statistics.data.gov.uk/id/local-authority/37UD,Leisure,LEIS,Leisure Centres,LCEN,Liberty Leisure Limited / Bramcote Leisure Centre,Cleaning Materials,1510,Other Prem,OthPrem,31/07/2020,V005376,45.66,Mark-Douglas Industrial Supplies Limited,3210.41,BAC003477
Liberty Leisure Limited,http://statistics.data.gov.uk/id/local-authority/37UD,Leisure,LEIS,Leisure Centres,LCEN,Liberty Leisure Limited / Bramcote Leisure Centre,Cleaning Materials,1510,Other Prem,OthPrem,31/07/2020,V005377,4.27,Mark-Douglas Industrial Supplies Limited,3210.41,BAC003477
Liberty Leisure Limited,http://statistics.data.gov.uk/id/local-authority/37UD,Leisure,LEIS,Leisure Centres,LCEN,Liberty Leisure Limited / Bramcote Leisure Centre,Cleaning Materials,1510,Other Prem,OthPrem,31/07/2020,V005377,12.5,Mark-Douglas Industrial Supplies Limited,3210.41,BAC003477
Liberty Leisure Limited,http://statistics.data.gov.uk/id/local-authority/37UD,Leisure,LEIS,Leisure Centres,LCEN,Liberty Leisure Limited / Bramcote Leisure Centre,Cleaning Materials,1510,Other Prem,OthPrem,31/07/2020,V005376,25,Mark-Douglas Industrial Supplies Limited,3210.41,BAC003477
Liberty Leisure Limited,http://statistics.data.gov.uk/id/local-authority/37UD,Leisure,LEIS,Leisure Centres,LCEN,Liberty Leisure Limited / Bramcote Leisure Centre,Cleaning Materials,1510,Other Prem,OthPrem,31/07/2020,V005378,2.9,Mark-Douglas Industrial Supplies Limited,3210.41,BAC003477
Liberty Leisure Limited,http://statistics.data.gov.uk/id/local-authority/37UD,Leisure,LEIS,Leisure Centres,LCEN,Liberty Leisure Limited / Bramcote Leisure Centre,Cleaning Materials,1510,Other Prem,OthPrem,31/07/2020,V005378,145,Mark-Douglas Industrial Supplies Limited,3210.41,BAC003477
Liberty Leisure Limited,http://statistics.data.gov.uk/id/local-authority/37UD,Leisure,LEIS,Leisure Centres,LCEN,Liberty Leisure Limited / Bramcote Leisure Centre,Cleaning Materials,1510,Other Prem,OthPrem,31/07/2020,V005378,87,Mark-Douglas Industrial Supplies Limited,3210.41,BAC003477
Liberty Leisure Limited,http://statistics.data.gov.uk/id/local-authority/37UD,Leisure,LEIS,Leisure Centres,LCEN,Liberty Leisure Limited / Bramcote Leisure Centre,Cleaning Materials,1510,Other Prem,OthPrem,31/07/2020,V005378,29,Mark-Douglas Industrial Supplies Limited,3210.41,BAC003477
Liberty Leisure Limited,http://statistics.data.gov.uk/id/local-authority/37UD,Leisure,LEIS,Leisure Centres,LCEN,Liberty Leisure Limited / Bramcote Leisure Centre,Cleaning Materials,1510,Other Prem,OthPrem,31/07/2020,V005377,2.95,Mark-Douglas Industrial Supplies Limited,3210.41,BAC003477
Liberty Leisure Limited,http://statistics.data.gov.uk/id/local-authority/37UD,Leisure,LEIS,Leisure Centres,LCEN,Liberty Leisure Limited / Bramcote Leisure Centre,Cleaning Materials,1510,Other Prem,OthPrem,31/07/2020,V005377,2.95,Mark-Douglas Industrial Supplies Limited,3210.41,BAC003477
Liberty Leisure Limited,http://statistics.data.gov.uk/id/local-authority/37UD,Leisure,LEIS,Leisure Centres,LCEN,Liberty Leisure Limited / Bramcote Leisure Centre,Cleaning Materials,1510,Other Prem,OthPrem,31/07/2020,V005377,2.95,Mark-Douglas Industrial Supplies Limited,3210.41,BAC003477
Liberty Leisure Limited,http://statistics.data.gov.uk/id/local-authority/37UD,Leisure,LEIS,Leisure Centres,LCEN,Liberty Leisure Limited / Kimberley Leisure Centre,Cleaning Materials,1510,Other Prem,OthPrem,31/07/2020,V005362,12,Mark-Douglas Industrial Supplies Limited,3210.41,BAC003477
Liberty Leisure Limited,http://statistics.data.gov.uk/id/local-authority/37UD,Leisure,LEIS,Leisure Centres,LCEN,Liberty Leisure Limited / Kimberley Leisure Centre,Cleaning Materials,1510,Other Prem,OthPrem,31/07/2020,V005371,100,Mark-Douglas Industrial Supplies Limited,3210.41,BAC003477
Liberty Leisure Limited,http://statistics.data.gov.uk/id/local-authority/37UD,Leisure,LEIS,Leisure Centres,LCEN,Liberty Leisure Limited / Kimberley Leisure Centre,Cleaning Materials,1510,Other Prem,OthPrem,31/07/2020,V005362,11.52,Mark-Douglas Industrial Supplies Limited,3210.41,BAC003477
Liberty Leisure Limited,http://statistics.data.gov.uk/id/local-authority/37UD,Leisure,LEIS,Leisure Centres,LCEN,Liberty Leisure Limited / Kimberley Leisure Centre,Cleaning Materials,1510,Other Prem,OthPrem,31/07/2020,V005362,10.28,Mark-Douglas Industrial Supplies Limited,3210.41,BAC003477
Liberty Leisure Limited,http://statistics.data.gov.uk/id/local-authority/37UD,Leisure,LEIS,Leisure Centres,LCEN,Liberty Leisure Limited / Kimberley Leisure Centre,Cleaning Materials,1510,Other Prem,OthPrem,31/07/2020,V005372,96.75,Mark-Douglas Industrial Supplies Limited,3210.41,BAC003477
Liberty Leisure Limited,http://statistics.data.gov.uk/id/local-authority/37UD,Leisure,LEIS,Leisure Centres,LCEN,Liberty Leisure Limited / Kimberley Leisure Centre,Cleaning Materials,1510,Other Prem,OthPrem,31/07/2020,V005371,12.48,Mark-Douglas Industrial Supplies Limited,3210.41,BAC003477
Liberty Leisure Limited,http://statistics.data.gov.uk/id/local-authority/37UD,Leisure,LEIS,Leisure Centres,LCEN,Liberty Leisure Limited / Kimberley Leisure Centre,Cleaning Materials,1510,Other Prem,OthPrem,31/07/2020,V005371,75,Mark-Douglas Industrial Supplies Limited,3210.41,BAC003477
Liberty Leisure Limited,http://statistics.data.gov.uk/id/local-authority/37UD,Leisure,LEIS,Leisure Centres,LCEN,Liberty Leisure Limited / Kimberley Leisure Centre,Cleaning Materials,1510,Other Prem,OthPrem,31/07/2020,V005371,7.5,Mark-Douglas Industrial Supplies Limited,3210.41,BAC003477
Liberty Leisure Limited,http://statistics.data.gov.uk/id/local-authority/37UD,Leisure,LEIS,Leisure Centres,LCEN,Liberty Leisure Limited / Kimberley Leisure Centre,Cleaning Materials,1510,Other Prem,OthPrem,31/07/2020,V005371,90.4,Mark-Douglas Industrial Supplies Limited,3210.41,BAC003477
Liberty Leisure Limited,http://statistics.data.gov.uk/id/local-authority/37UD,Leisure,LEIS,Leisure Centres,LCEN,Liberty Leisure Limited / Kimberley Leisure Centre,Cleaning Materials,1510,Other Prem,OthPrem,31/07/2020,V005371,90.4,Mark-Douglas Industrial Supplies Limited,3210.41,BAC003477
Liberty Leisure Limited,http://statistics.data.gov.uk/id/local-authority/37UD,Leisure,LEIS,Leisure Centres,LCEN,Liberty Leisure Limited / Kimberley Leisure Centre,Cleaning Materials,1510,Other Prem,OthPrem,31/07/2020,V005371,62.4,Mark-Douglas Industrial Supplies Limited,3210.41,BAC003477
Liberty Leisure Limited,http://statistics.data.gov.uk/id/local-authority/37UD,Leisure,LEIS,Leisure Centres,LCEN,Liberty Leisure Limited / Kimberley Leisure Centre,Cleaning Materials,1510,Other Prem,OthPrem,31/07/2020,V005371,61.4,Mark-Douglas Industrial Supplies Limited,3210.41,BAC003477
Liberty Leisure Limited,http://statistics.data.gov.uk/id/local-authority/37UD,Leisure,LEIS,Leisure Centres,LCEN,Liberty Leisure Limited / Kimberley Leisure Centre,Cleaning Materials,1510,Other Prem,OthPrem,31/07/2020,V005371,79.2,Mark-Douglas Industrial Supplies Limited,3210.41,BAC003477
Liberty Leisure Limited,http://statistics.data.gov.uk/id/local-authority/37UD,Leisure,LEIS,Leisure Centres,LCEN,Liberty Leisure Limited / Kimberley Leisure Centre,Cleaning Materials,1510,Other Prem,OthPrem,31/07/2020,V005371,172,Mark-Douglas Industrial Supplies Limited,3210.41,BAC003477
Liberty Leisure Limited,http://statistics.data.gov.uk/id/local-authority/37UD,Leisure,LEIS,Leisure Centres,LCEN,Liberty Leisure Limited / Kimberley Leisure Centre,Cleaning Materials,1510,Other Prem,OthPrem,31/07/2020,V005371,6,Mark-Douglas Industrial Supplies Limited,3210.41,BAC003477
Liberty Leisure Limited,http://statistics.data.gov.uk/id/local-authority/37UD,Leisure,LEIS,Leisure Centres,LCEN,Liberty Leisure Limited / Kimberley Leisure Centre,Cleaning Materials,1510,Other Prem,OthPrem,31/07/2020,V005371,6,Mark-Douglas Industrial Supplies Limited,3210.41,BAC003477
Liberty Leisure Limited,http://statistics.data.gov.uk/id/local-authority/37UD,Leisure,LEIS,Leisure Centres,LCEN,Liberty Leisure Limited / Kimberley Leisure Centre,Electricity,1310,Utilities,Utility,31/07/2020,V005360,272.12,Siemens plc,326.54,BAC003485
Liberty Leisure Limited,http://statistics.data.gov.uk/id/local-authority/37UD,Leisure,LEIS,Leisure Centres,LCEN,Liberty Leisure Limited / Bramcote Leisure Centre,Electricity,1310,Utilities,Utility,31/07/2020,V005365,1877.34,Total Gas & Power Ltd,7064.98,BAC003480
Liberty Leisure Limited,http://statistics.data.gov.uk/id/local-authority/37UD,Leisure,LEIS,Leisure Centres,LCEN,Liberty Leisure Limited / Bramcote Leisure Centre,Gas,1320,Utilities,Utility,31/07/2020,V005364,4010.14,Total Gas & Power Ltd,7064.98,BAC003480
Liberty Leisure Limited,http://statistics.data.gov.uk/id/local-authority/37UD,Leisure,LEIS,Leisure Centres,LCEN,Liberty Leisure Limited / Kimberley Leisure Centre,Chemicals,3152,Other Supplies & Services,OtherSS,14/08/2020,V005395,367.8,Cryoservice Limited,441.36,BAC003491
Liberty Leisure Limited,http://statistics.data.gov.uk/id/local-authority/37UD,Leisure,LEIS,Leisure Centres,LCEN,Liberty Leisure Limited / Kimberley Leisure Centre,Service Contracts,3056,Other Supplies & Services,OtherSS,14/08/2020,V005392,394.5,ESG Pool Ventilation Ltd,765.89,BAC003501
Liberty Leisure Limited,http://statistics.data.gov.uk/id/local-authority/37UD,Leisure,LEIS,Leisure Centres,LCEN,Liberty Leisure Limited / Kimberley Leisure Centre,Service Contracts,3056,Other Supplies & Services,OtherSS,14/08/2020,V005392,243.74,ESG Pool Ventilation Ltd,765.89,BAC003501
Liberty Leisure Limited,http://statistics.data.gov.uk/id/local-authority/37UD,Leisure,LEIS,Leisure Centres,LCEN,Liberty Leisure Limited / Kimberley Leisure Centre,Advertising,3412,Advertising,Advert,14/08/2020,V005393,455,Fastgraphics,546,BAC003498
Liberty Leisure Limited,http://statistics.data.gov.uk/id/local-authority/37UD,Leisure,LEIS,Leisure Centres,LCEN,Liberty Leisure Limited / Bramcote Leisure Centre,Chemicals,3152,Other Supplies & Services,OtherSS,14/08/2020,V005398,748,Gaffey Technical Services,897.6,BAC003492
Liberty Leisure Limited,http://statistics.data.gov.uk/id/local-authority/37UD,Leisure,LEIS,Leisure Centres,LCEN,Liberty Leisure Limited / Kimberley Leisure Centre,Repairs & Maintenance,1000,Central Pot,Central,14/08/2020,V005390,3792,Langley Mill Contract Floor,4550.4,BAC003493
Liberty Leisure Limited,http://statistics.data.gov.uk/id/local-authority/37UD,Leisure,LEIS,Leisure Management,LMAN,Liberty Leisure Limited / Bramcote Leisure Centre,Annual Projects Contingency,3710,Other Supplies & Services,OtherSS,14/08/2020,V005389,7491,Lee Jackson Air Conditioning Ltd,8989.2,BAC003502
Liberty Leisure Limited,http://statistics.data.gov.uk/id/local-authority/37UD,Leisure,LEIS,Leisure Centres,LCEN,Liberty Leisure Limited / Kimberley Leisure Centre,Repairs & Maintenance,1000,Central Pot,Central,14/08/2020,V005397,820,M A Technical Services Ltd,1254,BAC003495
Liberty Leisure Limited,http://statistics.data.gov.uk/id/local-authority/37UD,Leisure,LEIS,Leisure Centres,LCEN,Liberty Leisure Limited / Kimberley Leisure Centre,Repairs & Maintenance,1000,Central Pot,Central,14/08/2020,V005400,225,M A Technical Services Ltd,1254,BAC003495
Liberty Leisure Limited,http://statistics.data.gov.uk/id/local-authority/37UD,Leisure,LEIS,Leisure Centres,LCEN,Liberty Leisure Limited / Kimberley Leisure Centre,Cleaning Materials,1510,Other Prem,OthPrem,14/08/2020,V005394,391.5,Mark-Douglas Industrial Supplies Limited,469.8,BAC003499
Liberty Leisure Limited,http://statistics.data.gov.uk/id/local-authority/37UD,Leisure,LEIS,Leisure Development,LDEV,Liberty Leisure Limited / Liberty Leisure Development,Advertising,3412,Advertising,Advert,14/08/2020,V005403,74.25,Targettip T/A Phase,790.8,BAC003496
Liberty Leisure Limited,http://statistics.data.gov.uk/id/local-authority/37UD,Leisure,LEIS,Leisure Development,LDEV,Liberty Leisure Limited / Liberty Leisure Development,Advertising,3412,Advertising,Advert,14/08/2020,V005403,74.25,Targettip T/A Phase,790.8,BAC003496
Liberty Leisure Limited,http://statistics.data.gov.uk/id/local-authority/37UD,Leisure,LEIS,Leisure Development,LDEV,Liberty Leisure Limited / Liberty Leisure Development,Advertising,3412,Advertising,Advert,14/08/2020,V005403,74.25,Targettip T/A Phase,790.8,BAC003496
Liberty Leisure Limited,http://statistics.data.gov.uk/id/local-authority/37UD,Leisure,LEIS,Leisure Development,LDEV,Liberty Leisure Limited / Liberty Leisure Development,Advertising,3412,Advertising,Advert,14/08/2020,V005403,74.25,Targettip T/A Phase,790.8,BAC003496
Liberty Leisure Limited,http://statistics.data.gov.uk/id/local-authority/37UD,Leisure,LEIS,Leisure Development,LDEV,Liberty Leisure Limited / Liberty Leisure Development,Advertising,3412,Advertising,Advert,14/08/2020,V005404,65,Targettip T/A Phase,790.8,BAC003496
Liberty Leisure Limited,http://statistics.data.gov.uk/id/local-authority/37UD,Leisure,LEIS,Leisure Development,LDEV,Liberty Leisure Limited / Liberty Leisure Development,Advertising,3412,Advertising,Advert,14/08/2020,V005404,51,Targettip T/A Phase,790.8,BAC003496
Liberty Leisure Limited,http://statistics.data.gov.uk/id/local-authority/37UD,Leisure,LEIS,Leisure Development,LDEV,Liberty Leisure Limited / Liberty Leisure Development,Advertising,3412,Advertising,Advert,14/08/2020,V005404,23,Targettip T/A Phase,790.8,BAC003496
Liberty Leisure Limited,http://statistics.data.gov.uk/id/local-authority/37UD,Leisure,LEIS,Leisure Development,LDEV,Liberty Leisure Limited / Liberty Leisure Development,Advertising,3412,Advertising,Advert,14/08/2020,V005404,25,Targettip T/A Phase,790.8,BAC003496
Liberty Leisure Limited,http://statistics.data.gov.uk/id/local-authority/37UD,Leisure,LEIS,Leisure Development,LDEV,Liberty Leisure Limited / Liberty Leisure Development,Advertising,3412,Advertising,Advert,14/08/2020,V005402,66,Targettip T/A Phase,790.8,BAC003496
Liberty Leisure Limited,http://statistics.data.gov.uk/id/local-authority/37UD,Leisure,LEIS,Leisure Development,LDEV,Liberty Leisure Limited / Liberty Leisure Development,Advertising,3412,Advertising,Advert,14/08/2020,V005402,66,Targettip T/A Phase,790.8,BAC003496
Liberty Leisure Limited,http://statistics.data.gov.uk/id/local-authority/37UD,Leisure,LEIS,Leisure Development,LDEV,Liberty Leisure Limited / Liberty Leisure Development,Advertising,3412,Advertising,Advert,14/08/2020,V005402,66,Targettip T/A Phase,790.8,BAC003496
Liberty Leisure Limited,http://statistics.data.gov.uk/id/local-authority/37UD,Leisure,LEIS,Leisure Centres,LCEN,Liberty Leisure Limited / Bramcote Leisure Centre,Chemicals,3152,Other Supplies & Services,OtherSS,14/08/2020,V005387,14.5,Univar Limited,467.42,BAC003497
Liberty Leisure Limited,http://statistics.data.gov.uk/id/local-authority/37UD,Leisure,LEIS,Leisure Centres,LCEN,Liberty Leisure Limited / Bramcote Leisure Centre,Chemicals,3152,Other Supplies & Services,OtherSS,14/08/2020,V005387,29.5,Univar Limited,467.42,BAC003497
Liberty Leisure Limited,http://statistics.data.gov.uk/id/local-authority/37UD,Leisure,LEIS,Leisure Centres,LCEN,Liberty Leisure Limited / Bramcote Leisure Centre,Chemicals,3152,Other Supplies & Services,OtherSS,14/08/2020,V005388,22.88,Univar Limited,467.42,BAC003497
Liberty Leisure Limited,http://statistics.data.gov.uk/id/local-authority/37UD,Leisure,LEIS,Leisure Centres,LCEN,Liberty Leisure Limited / Bramcote Leisure Centre,Chemicals,3152,Other Supplies & Services,OtherSS,14/08/2020,V005388,12.79,Univar Limited,467.42,BAC003497
Liberty Leisure Limited,http://statistics.data.gov.uk/id/local-authority/37UD,Leisure,LEIS,Leisure Centres,LCEN,Liberty Leisure Limited / Bramcote Leisure Centre,Chemicals,3152,Other Supplies & Services,OtherSS,14/08/2020,V005387,259.02,Univar Limited,467.42,BAC003497
Liberty Leisure Limited,http://statistics.data.gov.uk/id/local-authority/37UD,Leisure,LEIS,Leisure Centres,LCEN,Liberty Leisure Limited / Bramcote Leisure Centre,Chemicals,3152,Other Supplies & Services,OtherSS,14/08/2020,V005387,50.83,Univar Limited,467.42,BAC003497
Liberty Leisure Limited,http://statistics.data.gov.uk/id/local-authority/37UD,Leisure,LEIS,Leisure Centres,LCEN,Liberty Leisure Limited / Kimberley Leisure Centre,Repairs & Maintenance,1000,Central Pot,Central,28/08/2020,V005410,54.89,Duplex Cleaning Machines UK Ltd,551.87,BAC003508
Liberty Leisure Limited,http://statistics.data.gov.uk/id/local-authority/37UD,Leisure,LEIS,Leisure Centres,LCEN,Liberty Leisure Limited / Kimberley Leisure Centre,Service Contracts,3056,Other Supplies & Services,OtherSS,28/08/2020,V005412,180,Duplex Cleaning Machines UK Ltd,551.87,BAC003508
Liberty Leisure Limited,http://statistics.data.gov.uk/id/local-authority/37UD,Leisure,LEIS,Leisure Centres,LCEN,Liberty Leisure Limited / Kimberley Leisure Centre,Service Contracts,3056,Other Supplies & Services,OtherSS,28/08/2020,V005412,225,Duplex Cleaning Machines UK Ltd,551.87,BAC003508
Liberty Leisure Limited,http://statistics.data.gov.uk/id/local-authority/37UD,Leisure,LEIS,Leisure Centres,LCEN,Liberty Leisure Limited / Kimberley Leisure Centre,Repairs & Maintenance,1000,Central Pot,Central,28/08/2020,V005405,180,Geoff Green Joinery,444,BAC003507
Liberty Leisure Limited,http://statistics.data.gov.uk/id/local-authority/37UD,Leisure,LEIS,Leisure Centres,LCEN,Liberty Leisure Limited / Kimberley Leisure Centre,Repairs & Maintenance,1000,Central Pot,Central,28/08/2020,V005406,190,Geoff Green Joinery,444,BAC003507
Liberty Leisure Limited,http://statistics.data.gov.uk/id/local-authority/37UD,Leisure,LEIS,Leisure Centres,LCEN,Liberty Leisure Limited / Kimberley Leisure Centre,Service Contracts,3056,Other Supplies & Services,OtherSS,28/08/2020,V005413,500,Manor Environmental Service,500,BAC003505
Liberty Leisure Limited,http://statistics.data.gov.uk/id/local-authority/37UD,Leisure,LEIS,Leisure Centres,LCEN,Liberty Leisure Limited / Bramcote Leisure Centre,Repairs & Maintenance,1000,Central Pot,Central,28/08/2020,V005415,88,Maple Controls Limited,504.1,BAC003512
Liberty Leisure Limited,http://statistics.data.gov.uk/id/local-authority/37UD,Leisure,LEIS,Leisure Centres,LCEN,Liberty Leisure Limited / Bramcote Leisure Centre,Repairs & Maintenance,1000,Central Pot,Central,28/08/2020,V005415,264,Maple Controls Limited,504.1,BAC003512
Liberty Leisure Limited,http://statistics.data.gov.uk/id/local-authority/37UD,Leisure,LEIS,Leisure Centres,LCEN,Liberty Leisure Limited / Bramcote Leisure Centre,Repairs & Maintenance,1000,Central Pot,Central,28/08/2020,V005415,68.08,Maple Controls Limited,504.1,BAC003512
Liberty Leisure Limited,http://statistics.data.gov.uk/id/local-authority/37UD,Leisure,LEIS,Leisure Centres,LCEN,Liberty Leisure Limited / Kimberley Leisure Centre,Repairs & Maintenance,1000,Central Pot,Central,28/08/2020,V005408,58.4,NCC Supplies,250.85,BAC003506
Liberty Leisure Limited,http://statistics.data.gov.uk/id/local-authority/37UD,Leisure,LEIS,Leisure Centres,LCEN,Liberty Leisure Limited / Kimberley Leisure Centre,Repairs & Maintenance,1000,Central Pot,Central,28/08/2020,V005408,51.6,NCC Supplies,250.85,BAC003506
Liberty Leisure Limited,http://statistics.data.gov.uk/id/local-authority/37UD,Leisure,LEIS,Leisure Centres,LCEN,Liberty Leisure Limited / Kimberley Leisure Centre,Office Equipment - Purchase,3001,Office Supplies,Offsup,28/08/2020,V005408,3.62,NCC Supplies,250.85,BAC003506
Liberty Leisure Limited,http://statistics.data.gov.uk/id/local-authority/37UD,Leisure,LEIS,Leisure Centres,LCEN,Liberty Leisure Limited / Kimberley Leisure Centre,Office Equipment - Purchase,3001,Office Supplies,Offsup,28/08/2020,V005408,7.24,NCC Supplies,250.85,BAC003506
Liberty Leisure Limited,http://statistics.data.gov.uk/id/local-authority/37UD,Leisure,LEIS,Leisure Centres,LCEN,Liberty Leisure Limited / Kimberley Leisure Centre,Advertising,3412,Advertising,Advert,28/08/2020,V005408,38.25,NCC Supplies,250.85,BAC003506
Liberty Leisure Limited,http://statistics.data.gov.uk/id/local-authority/37UD,Leisure,LEIS,Leisure Centres,LCEN,Liberty Leisure Limited / Kimberley Leisure Centre,Advertising,3412,Advertising,Advert,28/08/2020,V005408,11.68,NCC Supplies,250.85,BAC003506
Liberty Leisure Limited,http://statistics.data.gov.uk/id/local-authority/37UD,Leisure,LEIS,Leisure Centres,LCEN,Liberty Leisure Limited / Kimberley Leisure Centre,Advertising,3412,Advertising,Advert,28/08/2020,V005408,31.75,NCC Supplies,250.85,BAC003506
Liberty Leisure Limited,http://statistics.data.gov.uk/id/local-authority/37UD,Leisure,LEIS,Leisure Centres,LCEN,Liberty Leisure Limited / Kimberley Leisure Centre,Advertising,3412,Advertising,Advert,28/08/2020,V005408,6.5,NCC Supplies,250.85,BAC003506
Liberty Leisure Limited,http://statistics.data.gov.uk/id/local-authority/37UD,Leisure,LEIS,Leisure Centres,LCEN,Liberty Leisure Limited / Bramcote Leisure Centre,Electricity,1310,Utilities,Utility,28/08/2020,V005414,2592.91,Total Gas & Power Ltd,5066.34,BAC003511
Liberty Leisure Limited,http://statistics.data.gov.uk/id/local-authority/37UD,Leisure,LEIS,Leisure Centres,LCEN,Liberty Leisure Limited / Bramcote Leisure Centre,Gas,1320,Utilities,Utility,28/08/2020,V005401,1629.04,Total Gas & Power Ltd,5066.34,BAC003511
Liberty Leisure Limited,http://statistics.data.gov.uk/id/local-authority/37UD,Leisure,LEIS,Leisure Centres,LCEN,Liberty Leisure Limited / Bramcote Leisure Centre,Water Charges,1410,Utilities,Utility,28/08/2020,V005417,2255.07,Waterplus,5816.7,BAC003516
Liberty Leisure Limited,http://statistics.data.gov.uk/id/local-authority/37UD,Leisure,LEIS,Leisure Centres,LCEN,Liberty Leisure Limited / Bramcote Leisure Centre,Water Charges,1410,Utilities,Utility,28/08/2020,V005416,2255.07,Waterplus,5816.7,BAC003516
Liberty Leisure Limited,http://statistics.data.gov.uk/id/local-authority/37UD,Leisure,LEIS,Leisure Centres,LCEN,Liberty Leisure Limited / Bramcote Leisure Centre,Water Charges,1410,Utilities,Utility,28/08/2020,V005418,1306.56,Waterplus,5816.7,BAC003516
Liberty Leisure Limited,http://statistics.data.gov.uk/id/local-authority/37UD,Leisure,LEIS,Leisure Centres,LCEN,Liberty Leisure Limited / Kimberley Leisure Centre,Service Contracts,3056,Other Supplies & Services,OtherSS,25/09/2020,V005446,9.92,Cryoservice Limited,1023.7,BAC003522
Liberty Leisure Limited,http://statistics.data.gov.uk/id/local-authority/37UD,Leisure,LEIS,Leisure Centres,LCEN,Liberty Leisure Limited / Kimberley Leisure Centre,Service Contracts,3056,Other Supplies & Services,OtherSS,25/09/2020,V005482,9.92,Cryoservice Limited,1023.7,BAC003522
Liberty Leisure Limited,http://statistics.data.gov.uk/id/local-authority/37UD,Leisure,LEIS,Leisure Centres,LCEN,Liberty Leisure Limited / Kimberley Leisure Centre,Service Contracts,3056,Other Supplies & Services,OtherSS,25/09/2020,V005447,308.28,Cryoservice Limited,1023.7,BAC003522
Liberty Leisure Limited,http://statistics.data.gov.uk/id/local-authority/37UD,Leisure,LEIS,Leisure Centres,LCEN,Liberty Leisure Limited / Kimberley Leisure Centre,Chemicals,3152,Other Supplies & Services,OtherSS,25/09/2020,V005448,524.97,Cryoservice Limited,1023.7,BAC003522
Liberty Leisure Limited,http://statistics.data.gov.uk/id/local-authority/37UD,Leisure,LEIS,Leisure Centres,LCEN,Liberty Leisure Limited / Kimberley Leisure Centre,Licences,3613,Other Supplies & Services,OtherSS,25/09/2020,V005487,291.67,Erewash Borough Council,350,BAC003523
Liberty Leisure Limited,http://statistics.data.gov.uk/id/local-authority/37UD,Leisure,LEIS,Leisure Centres,LCEN,Liberty Leisure Limited / Bramcote Leisure Centre,Chemicals,3152,Other Supplies & Services,OtherSS,25/09/2020,V005441,748,Gaffey Technical Services,897.6,BAC003524
Liberty Leisure Limited,http://statistics.data.gov.uk/id/local-authority/37UD,Leisure,LEIS,Leisure Centres,LCEN,Liberty Leisure Limited / Kimberley Leisure Centre,Repairs & Maintenance,1000,Central Pot,Central,25/09/2020,V005480,300,Geoff Green Joinery,360,BAC003531
Liberty Leisure Limited,http://statistics.data.gov.uk/id/local-authority/37UD,Leisure,LEIS,Leisure Centres,LCEN,Liberty Leisure Limited / Kimberley Leisure Centre,Pool Equipment Purchase,3020,Other Supplies & Services,OtherSS,25/09/2020,V005430,14.35,J P Lennard Limited,403.62,BAC003526
Liberty Leisure Limited,http://statistics.data.gov.uk/id/local-authority/37UD,Leisure,LEIS,Leisure Centres,LCEN,Liberty Leisure Limited / Kimberley Leisure Centre,Pool Equipment Purchase,3020,Other Supplies & Services,OtherSS,25/09/2020,V005450,27.6,J P Lennard Limited,403.62,BAC003526
Liberty Leisure Limited,http://statistics.data.gov.uk/id/local-authority/37UD,Leisure,LEIS,Leisure Centres,LCEN,Liberty Leisure Limited / Kimberley Leisure Centre,Pool Equipment Purchase,3020,Other Supplies & Services,OtherSS,25/09/2020,V005430,79.3,J P Lennard Limited,403.62,BAC003526
Liberty Leisure Limited,http://statistics.data.gov.uk/id/local-authority/37UD,Leisure,LEIS,Leisure Centres,LCEN,Liberty Leisure Limited / Kimberley Leisure Centre,Pool Equipment Purchase,3020,Other Supplies & Services,OtherSS,25/09/2020,V005430,56.2,J P Lennard Limited,403.62,BAC003526
Liberty Leisure Limited,http://statistics.data.gov.uk/id/local-authority/37UD,Leisure,LEIS,Leisure Centres,LCEN,Liberty Leisure Limited / Kimberley Leisure Centre,Pool Equipment Purchase,3020,Other Supplies & Services,OtherSS,25/09/2020,V005430,56.2,J P Lennard Limited,403.62,BAC003526
Liberty Leisure Limited,http://statistics.data.gov.uk/id/local-authority/37UD,Leisure,LEIS,Leisure Centres,LCEN,Liberty Leisure Limited / Kimberley Leisure Centre,Pool Equipment Purchase,3020,Other Supplies & Services,OtherSS,25/09/2020,V005430,102.7,J P Lennard Limited,403.62,BAC003526
Liberty Leisure Limited,http://statistics.data.gov.uk/id/local-authority/37UD,Leisure,LEIS,Leisure Centres,LCEN,Liberty Leisure Limited / Bramcote Leisure Centre,Repairs & Maintenance,1000,Central Pot,Central,25/09/2020,V005465,450,JIH Electrical Ltd,450,BAC003540
Liberty Leisure Limited,http://statistics.data.gov.uk/id/local-authority/37UD,Leisure,LEIS,Leisure Management,LMAN,Liberty Leisure Limited / Bramcote Leisure Centre,Annual Projects Contingency,3710,Other Supplies & Services,OtherSS,25/09/2020,V005476,456,Langley Mill Contract Floor,1144.8,BAC003525
Liberty Leisure Limited,http://statistics.data.gov.uk/id/local-authority/37UD,Leisure,LEIS,Leisure Centres,LCEN,Liberty Leisure Limited / Bramcote Leisure Centre,Repairs & Maintenance,1000,Central Pot,Central,25/09/2020,V005475,498,Langley Mill Contract Floor,1144.8,BAC003525
Liberty Leisure Limited,http://statistics.data.gov.uk/id/local-authority/37UD,Leisure,LEIS,Leisure Centres,LCEN,Liberty Leisure Limited / Kimberley Leisure Centre,Repairs & Maintenance,1000,Central Pot,Central,25/09/2020,V005431,750,M A Technical Services Ltd,900,BAC003527
Liberty Leisure Limited,http://statistics.data.gov.uk/id/local-authority/37UD,Leisure,LEIS,Leisure Centres,LCEN,Liberty Leisure Limited / Bramcote Leisure Centre,Cleaning Materials,1510,Other Prem,OthPrem,25/09/2020,V005469,50,Mark-Douglas Industrial Supplies Limited,1966.86,BAC003532
Liberty Leisure Limited,http://statistics.data.gov.uk/id/local-authority/37UD,Leisure,LEIS,Leisure Centres,LCEN,Liberty Leisure Limited / Bramcote Leisure Centre,Cleaning Materials,1510,Other Prem,OthPrem,25/09/2020,V005473,125.9,Mark-Douglas Industrial Supplies Limited,1966.86,BAC003532
Liberty Leisure Limited,http://statistics.data.gov.uk/id/local-authority/37UD,Leisure,LEIS,Leisure Centres,LCEN,Liberty Leisure Limited / Bramcote Leisure Centre,Cleaning Materials,1510,Other Prem,OthPrem,25/09/2020,V005470,226.34,Mark-Douglas Industrial Supplies Limited,1966.86,BAC003532
Liberty Leisure Limited,http://statistics.data.gov.uk/id/local-authority/37UD,Leisure,LEIS,Leisure Centres,LCEN,Liberty Leisure Limited / Bramcote Leisure Centre,Cleaning Materials,1510,Other Prem,OthPrem,25/09/2020,V005471,69.38,Mark-Douglas Industrial Supplies Limited,1966.86,BAC003532
Liberty Leisure Limited,http://statistics.data.gov.uk/id/local-authority/37UD,Leisure,LEIS,Leisure Centres,LCEN,Liberty Leisure Limited / Bramcote Leisure Centre,Cleaning Materials,1510,Other Prem,OthPrem,25/09/2020,V005472,147.52,Mark-Douglas Industrial Supplies Limited,1966.86,BAC003532
Liberty Leisure Limited,http://statistics.data.gov.uk/id/local-authority/37UD,Leisure,LEIS,Leisure Centres,LCEN,Liberty Leisure Limited / Bramcote Leisure Centre,Cleaning Materials,1510,Other Prem,OthPrem,25/09/2020,V005466,79,Mark-Douglas Industrial Supplies Limited,1966.86,BAC003532
Liberty Leisure Limited,http://statistics.data.gov.uk/id/local-authority/37UD,Leisure,LEIS,Leisure Centres,LCEN,Liberty Leisure Limited / Bramcote Leisure Centre,Cleaning Materials,1510,Other Prem,OthPrem,25/09/2020,V005467,134.44,Mark-Douglas Industrial Supplies Limited,1966.86,BAC003532
Liberty Leisure Limited,http://statistics.data.gov.uk/id/local-authority/37UD,Leisure,LEIS,Leisure Centres,LCEN,Liberty Leisure Limited / Bramcote Leisure Centre,Cleaning Materials,1510,Other Prem,OthPrem,25/09/2020,V005468,29.22,Mark-Douglas Industrial Supplies Limited,1966.86,BAC003532
Liberty Leisure Limited,http://statistics.data.gov.uk/id/local-authority/37UD,Leisure,LEIS,Leisure Centres,LCEN,Liberty Leisure Limited / Bramcote Leisure Centre,Cleaning Materials,1510,Other Prem,OthPrem,25/09/2020,V005455,34.4,Mark-Douglas Industrial Supplies Limited,1966.86,BAC003532
Liberty Leisure Limited,http://statistics.data.gov.uk/id/local-authority/37UD,Leisure,LEIS,Leisure Centres,LCEN,Liberty Leisure Limited / Bramcote Leisure Centre,Cleaning Materials,1510,Other Prem,OthPrem,25/09/2020,V005455,34.4,Mark-Douglas Industrial Supplies Limited,1966.86,BAC003532
Liberty Leisure Limited,http://statistics.data.gov.uk/id/local-authority/37UD,Leisure,LEIS,Leisure Centres,LCEN,Liberty Leisure Limited / Kimberley Leisure Centre,Cleaning Materials,1510,Other Prem,OthPrem,25/09/2020,V005443,179.64,Mark-Douglas Industrial Supplies Limited,1966.86,BAC003532
Liberty Leisure Limited,http://statistics.data.gov.uk/id/local-authority/37UD,Leisure,LEIS,Leisure Centres,LCEN,Liberty Leisure Limited / Kimberley Leisure Centre,Cleaning Materials,1510,Other Prem,OthPrem,25/09/2020,V005437,70.07,Mark-Douglas Industrial Supplies Limited,1966.86,BAC003532
Liberty Leisure Limited,http://statistics.data.gov.uk/id/local-authority/37UD,Leisure,LEIS,Leisure Centres,LCEN,Liberty Leisure Limited / Kimberley Leisure Centre,Cleaning Materials,1510,Other Prem,OthPrem,25/09/2020,V005444,211,Mark-Douglas Industrial Supplies Limited,1966.86,BAC003532
Liberty Leisure Limited,http://statistics.data.gov.uk/id/local-authority/37UD,Leisure,LEIS,Leisure Centres,LCEN,Liberty Leisure Limited / Kimberley Leisure Centre,Cleaning Materials,1510,Other Prem,OthPrem,25/09/2020,V005485,119.5,Mark-Douglas Industrial Supplies Limited,1966.86,BAC003532
Liberty Leisure Limited,http://statistics.data.gov.uk/id/local-authority/37UD,Leisure,LEIS,Leisure Centres,LCEN,Liberty Leisure Limited / Kimberley Leisure Centre,Cleaning Materials,1510,Other Prem,OthPrem,25/09/2020,V005439,6,Mark-Douglas Industrial Supplies Limited,1966.86,BAC003532
Liberty Leisure Limited,http://statistics.data.gov.uk/id/local-authority/37UD,Leisure,LEIS,Leisure Centres,LCEN,Liberty Leisure Limited / Kimberley Leisure Centre,Cleaning Materials,1510,Other Prem,OthPrem,25/09/2020,V005440,86,Mark-Douglas Industrial Supplies Limited,1966.86,BAC003532
Liberty Leisure Limited,http://statistics.data.gov.uk/id/local-authority/37UD,Leisure,LEIS,Leisure Centres,LCEN,Liberty Leisure Limited / Kimberley Leisure Centre,Cleaning Materials,1510,Other Prem,OthPrem,25/09/2020,V005438,71.4,Mark-Douglas Industrial Supplies Limited,1966.86,BAC003532
Liberty Leisure Limited,http://statistics.data.gov.uk/id/local-authority/37UD,Leisure,LEIS,Leisure Centres,LCEN,Liberty Leisure Limited / Kimberley Leisure Centre,Repairs & Maintenance,1000,Central Pot,Central,25/09/2020,V005486,65.22,Neuro Systems Ltd,1171.46,BAC003536
Liberty Leisure Limited,http://statistics.data.gov.uk/id/local-authority/37UD,Leisure,LEIS,Leisure Centres,LCEN,Liberty Leisure Limited / Kimberley Leisure Centre,Repairs & Maintenance,1000,Central Pot,Central,25/09/2020,V005433,100,Neuro Systems Ltd,1171.46,BAC003536
Liberty Leisure Limited,http://statistics.data.gov.uk/id/local-authority/37UD,Leisure,LEIS,Leisure Centres,LCEN,Liberty Leisure Limited / Kimberley Leisure Centre,Service Contracts,3056,Other Supplies & Services,OtherSS,25/09/2020,V005435,451,Neuro Systems Ltd,1171.46,BAC003536
Liberty Leisure Limited,http://statistics.data.gov.uk/id/local-authority/37UD,Leisure,LEIS,Leisure Centres,LCEN,Liberty Leisure Limited / Kimberley Leisure Centre,Service Contracts,3056,Other Supplies & Services,OtherSS,25/09/2020,V005434,360,Neuro Systems Ltd,1171.46,BAC003536
Liberty Leisure Limited,http://statistics.data.gov.uk/id/local-authority/37UD,Leisure,LEIS,Leisure Centres,LCEN,Liberty Leisure Limited / Kimberley Leisure Centre,Repairs & Maintenance,1000,Central Pot,Central,25/09/2020,V005483,137.4,Slater Electrical Serv Limited,396.84,BAC003528
Liberty Leisure Limited,http://statistics.data.gov.uk/id/local-authority/37UD,Leisure,LEIS,Leisure Centres,LCEN,Liberty Leisure Limited / Kimberley Leisure Centre,Repairs & Maintenance,1000,Central Pot,Central,25/09/2020,V005483,193.3,Slater Electrical Serv Limited,396.84,BAC003528
Liberty Leisure Limited,http://statistics.data.gov.uk/id/local-authority/37UD,Leisure,LEIS,Leisure Centres,LCEN,Liberty Leisure Limited / Bramcote Leisure Centre,Repairs & Maintenance,1000,Central Pot,Central,25/09/2020,V005462,521,Sterilizing Services,834,BAC003529
Liberty Leisure Limited,http://statistics.data.gov.uk/id/local-authority/37UD,Leisure,LEIS,Leisure Centres,LCEN,Liberty Leisure Limited / Bramcote Leisure Centre,Legionella Testing,1042,Central Pot,Central,25/09/2020,V005461,58,Sterilizing Services,834,BAC003529
Liberty Leisure Limited,http://statistics.data.gov.uk/id/local-authority/37UD,Leisure,LEIS,Leisure Centres,LCEN,Liberty Leisure Limited / Bramcote Leisure Centre,Legionella Testing,1042,Central Pot,Central,25/09/2020,V005460,58,Sterilizing Services,834,BAC003529
Liberty Leisure Limited,http://statistics.data.gov.uk/id/local-authority/37UD,Leisure,LEIS,Leisure Centres,LCEN,Liberty Leisure Limited / Kimberley Leisure Centre,Legionella Testing,1042,Central Pot,Central,25/09/2020,V005436,58,Sterilizing Services,834,BAC003529
Liberty Leisure Limited,http://statistics.data.gov.uk/id/local-authority/37UD,Leisure,LEIS,Leisure Development,LDEV,Liberty Leisure Limited / Liberty Leisure Development,Licences,3613,Other Supplies & Services,OtherSS,25/09/2020,V005449,995,Three65 Media Solutions Ltd,1140,BAC003543
Liberty Leisure Limited,http://statistics.data.gov.uk/id/local-authority/37UD,Leisure,LEIS,Leisure Development,LDEV,Liberty Leisure Limited / Liberty Leisure Development,Licences,3613,Other Supplies & Services,OtherSS,25/09/2020,V005449,145,Three65 Media Solutions Ltd,1140,BAC003543
Liberty Leisure Limited,http://statistics.data.gov.uk/id/local-authority/37UD,Culture and Heritage,CULT,Heritage,LHER,Liberty Leisure Limited / DHL Museum,Gas,1320,Utilities,Utility,25/09/2020,V005490,22.94,Total Gas & Power Ltd,13669.86,BAC003537
Liberty Leisure Limited,http://statistics.data.gov.uk/id/local-authority/37UD,Culture and Heritage,CULT,Heritage,LHER,Liberty Leisure Limited / DHL Museum,Gas,1320,Utilities,Utility,25/09/2020,V005492,22.94,Total Gas & Power Ltd,13669.86,BAC003537
Liberty Leisure Limited,http://statistics.data.gov.uk/id/local-authority/37UD,Culture and Heritage,CULT,Heritage,LHER,Liberty Leisure Limited / Kimberley Leisure Centre,Gas,1320,Utilities,Utility,25/09/2020,V005491,22.2,Total Gas & Power Ltd,13669.86,BAC003537
Liberty Leisure Limited,http://statistics.data.gov.uk/id/local-authority/37UD,Leisure,LEIS,Leisure Centres,LCEN,Liberty Leisure Limited / Bramcote Leisure Centre,Electricity,1310,Utilities,Utility,25/09/2020,V005453,3734.41,Total Gas & Power Ltd,13669.86,BAC003537
Liberty Leisure Limited,http://statistics.data.gov.uk/id/local-authority/37UD,Leisure,LEIS,Leisure Centres,LCEN,Liberty Leisure Limited / Kimberley Leisure Centre,Electricity,1310,Utilities,Utility,25/09/2020,V005493,3470.37,Total Gas & Power Ltd,13669.86,BAC003537
Liberty Leisure Limited,http://statistics.data.gov.uk/id/local-authority/37UD,Leisure,LEIS,Leisure Centres,LCEN,Liberty Leisure Limited / Kimberley Leisure Centre,Electricity,1310,Utilities,Utility,25/09/2020,V005451,1808.22,Total Gas & Power Ltd,13669.86,BAC003537
Liberty Leisure Limited,http://statistics.data.gov.uk/id/local-authority/37UD,Leisure,LEIS,Leisure Centres,LCEN,Liberty Leisure Limited / Kimberley Leisure Centre,Electricity,1310,Utilities,Utility,25/09/2020,V005452,2318.97,Total Gas & Power Ltd,13669.86,BAC003537
Liberty Leisure Limited,http://statistics.data.gov.uk/id/local-authority/37UD,Leisure,LEIS,Leisure Centres,LCEN,Liberty Leisure Limited / Bramcote Leisure Centre,Service Contracts,3056,Other Supplies & Services,OtherSS,25/09/2020,V005427,560.85,Walker Fire (UK) Ltd,673.02,BAC003539
Liberty Leisure Limited,http://statistics.data.gov.uk/id/local-authority/37UD,Leisure,LEIS,Leisure Centres,LCEN,Liberty Leisure Limited / Bramcote Leisure Centre,Water Charges,1410,Utilities,Utility,25/09/2020,V005464,5574.37,Waterplus,5574.37,BAC003545
Liberty Leisure Limited,http://statistics.data.gov.uk/id/local-authority/37UD,Leisure,LEIS,Leisure Centres,LCEN,Liberty Leisure Limited / Kimberley Leisure Centre,Service Contracts,3056,Other Supplies & Services,OtherSS,09/10/2020,V005513,523,BG Energy Solutions,627.6,BAC003561
Liberty Leisure Limited,http://statistics.data.gov.uk/id/local-authority/37UD,Leisure,LEIS,Leisure Centres,LCEN,Liberty Leisure Limited / Bramcote Leisure Centre,Repairs & Maintenance,1000,Central Pot,Central,09/10/2020,V005504,3235.75,Combined Power Limited,7765.8,BAC003548
Liberty Leisure Limited,http://statistics.data.gov.uk/id/local-authority/37UD,Leisure,LEIS,Leisure Centres,LCEN,Liberty Leisure Limited / Bramcote Leisure Centre,Repairs & Maintenance,1000,Central Pot,Central,09/10/2020,V005504,3235.75,Combined Power Limited,7765.8,BAC003548
Liberty Leisure Limited,http://statistics.data.gov.uk/id/local-authority/37UD,Leisure,LEIS,Leisure Centres,LCEN,Liberty Leisure Limited / Kimberley Leisure Centre,Chemicals,3152,Other Supplies & Services,OtherSS,09/10/2020,V005518,516,Cryoservice Limited,619.2,BAC003550
Liberty Leisure Limited,http://statistics.data.gov.uk/id/local-authority/37UD,Leisure,LEIS,Leisure Centres,LCEN,Liberty Leisure Limited / Kimberley Leisure Centre,Advertising,3412,Advertising,Advert,09/10/2020,V005511,525,Fastgraphics,630,BAC003558
Liberty Leisure Limited,http://statistics.data.gov.uk/id/local-authority/37UD,Leisure,LEIS,Leisure Centres,LCEN,Liberty Leisure Limited / Bramcote Leisure Centre,Chemicals,3152,Other Supplies & Services,OtherSS,09/10/2020,V005510,748,Gaffey Technical Services,897.6,BAC003551
Liberty Leisure Limited,http://statistics.data.gov.uk/id/local-authority/37UD,Leisure,LEIS,Leisure Management,LMAN,Liberty Leisure Limited / Liberty Leisure Development,Professional Fees,730,Indirect Employee Exp Oncosts,Oncosts,09/10/2020,V005494,2900,ICO,2900,BAC003567
Liberty Leisure Limited,http://statistics.data.gov.uk/id/local-authority/37UD,Leisure,LEIS,Leisure Management,LMAN,Liberty Leisure Limited / Chilwell Olympia,Annual Projects Contingency,3710,Other Supplies & Services,OtherSS,09/10/2020,V005457,64,Interior Panel Systems Ltd,3254.88,BAC003570
Liberty Leisure Limited,http://statistics.data.gov.uk/id/local-authority/37UD,Leisure,LEIS,Leisure Management,LMAN,Liberty Leisure Limited / Chilwell Olympia,Annual Projects Contingency,3710,Other Supplies & Services,OtherSS,09/10/2020,V005457,14.9,Interior Panel Systems Ltd,3254.88,BAC003570
Liberty Leisure Limited,http://statistics.data.gov.uk/id/local-authority/37UD,Leisure,LEIS,Leisure Management,LMAN,Liberty Leisure Limited / Chilwell Olympia,Annual Projects Contingency,3710,Other Supplies & Services,OtherSS,09/10/2020,V005457,242.5,Interior Panel Systems Ltd,3254.88,BAC003570
Liberty Leisure Limited,http://statistics.data.gov.uk/id/local-authority/37UD,Leisure,LEIS,Leisure Management,LMAN,Liberty Leisure Limited / Chilwell Olympia,Annual Projects Contingency,3710,Other Supplies & Services,OtherSS,09/10/2020,V005457,641.5,Interior Panel Systems Ltd,3254.88,BAC003570
Liberty Leisure Limited,http://statistics.data.gov.uk/id/local-authority/37UD,Leisure,LEIS,Leisure Management,LMAN,Liberty Leisure Limited / Chilwell Olympia,Annual Projects Contingency,3710,Other Supplies & Services,OtherSS,09/10/2020,V005457,19.5,Interior Panel Systems Ltd,3254.88,BAC003570
Liberty Leisure Limited,http://statistics.data.gov.uk/id/local-authority/37UD,Leisure,LEIS,Leisure Management,LMAN,Liberty Leisure Limited / Chilwell Olympia,Annual Projects Contingency,3710,Other Supplies & Services,OtherSS,09/10/2020,V005457,120,Interior Panel Systems Ltd,3254.88,BAC003570
Liberty Leisure Limited,http://statistics.data.gov.uk/id/local-authority/37UD,Leisure,LEIS,Leisure Management,LMAN,Liberty Leisure Limited / Chilwell Olympia,Annual Projects Contingency,3710,Other Supplies & Services,OtherSS,09/10/2020,V005457,600,Interior Panel Systems Ltd,3254.88,BAC003570
Liberty Leisure Limited,http://statistics.data.gov.uk/id/local-authority/37UD,Leisure,LEIS,Leisure Management,LMAN,Liberty Leisure Limited / Chilwell Olympia,Annual Projects Contingency,3710,Other Supplies & Services,OtherSS,09/10/2020,V005458,300,Interior Panel Systems Ltd,3254.88,BAC003570
Liberty Leisure Limited,http://statistics.data.gov.uk/id/local-authority/37UD,Leisure,LEIS,Leisure Management,LMAN,Liberty Leisure Limited / Chilwell Olympia,Annual Projects Contingency,3710,Other Supplies & Services,OtherSS,09/10/2020,V005457,600,Interior Panel Systems Ltd,3254.88,BAC003570
Liberty Leisure Limited,http://statistics.data.gov.uk/id/local-authority/37UD,Leisure,LEIS,Leisure Management,LMAN,Liberty Leisure Limited / Chilwell Olympia,Annual Projects Contingency,3710,Other Supplies & Services,OtherSS,09/10/2020,V005459,110,Interior Panel Systems Ltd,3254.88,BAC003570
Liberty Leisure Limited,http://statistics.data.gov.uk/id/local-authority/37UD,Culture and Heritage,CULT,Heritage,LHER,Liberty Leisure Limited / DHL Museum,Advertising,3412,Advertising,Advert,09/10/2020,V005517,275,Kingfisher Media Limited,330,BAC003568
Liberty Leisure Limited,http://statistics.data.gov.uk/id/local-authority/37UD,Leisure,LEIS,Leisure Management,LMAN,Liberty Leisure Limited / Chilwell Olympia,Annual Projects Contingency,3710,Other Supplies & Services,OtherSS,09/10/2020,V005503,293.5,Lowrys (Nottingham) Ltd,2184,BAC003563
Liberty Leisure Limited,http://statistics.data.gov.uk/id/local-authority/37UD,Leisure,LEIS,Leisure Management,LMAN,Liberty Leisure Limited / Chilwell Olympia,Annual Projects Contingency,3710,Other Supplies & Services,OtherSS,09/10/2020,V005503,6.5,Lowrys (Nottingham) Ltd,2184,BAC003563
Liberty Leisure Limited,http://statistics.data.gov.uk/id/local-authority/37UD,Leisure,LEIS,Leisure Management,LMAN,Liberty Leisure Limited / Chilwell Olympia,Annual Projects Contingency,3710,Other Supplies & Services,OtherSS,09/10/2020,V005503,360,Lowrys (Nottingham) Ltd,2184,BAC003563
Liberty Leisure Limited,http://statistics.data.gov.uk/id/local-authority/37UD,Leisure,LEIS,Leisure Management,LMAN,Liberty Leisure Limited / Chilwell Olympia,Annual Projects Contingency,3710,Other Supplies & Services,OtherSS,09/10/2020,V005503,1160,Lowrys (Nottingham) Ltd,2184,BAC003563
Liberty Leisure Limited,http://statistics.data.gov.uk/id/local-authority/37UD,Leisure,LEIS,Leisure Centres,LCEN,Liberty Leisure Limited / Bramcote Leisure Centre,Cleaning Materials,1510,Other Prem,OthPrem,09/10/2020,V005505,71.4,Mark-Douglas Industrial Supplies Limited,1276.44,BAC003559
Liberty Leisure Limited,http://statistics.data.gov.uk/id/local-authority/37UD,Leisure,LEIS,Leisure Centres,LCEN,Liberty Leisure Limited / Bramcote Leisure Centre,Cleaning Materials,1510,Other Prem,OthPrem,09/10/2020,V005507,240.7,Mark-Douglas Industrial Supplies Limited,1276.44,BAC003559
Liberty Leisure Limited,http://statistics.data.gov.uk/id/local-authority/37UD,Leisure,LEIS,Leisure Centres,LCEN,Liberty Leisure Limited / Chilwell Olympia,Cleaning Materials,1510,Other Prem,OthPrem,09/10/2020,V005426,191.9,Mark-Douglas Industrial Supplies Limited,1276.44,BAC003559
Liberty Leisure Limited,http://statistics.data.gov.uk/id/local-authority/37UD,Leisure,LEIS,Leisure Centres,LCEN,Liberty Leisure Limited / Chilwell Olympia,Cleaning Materials,1510,Other Prem,OthPrem,09/10/2020,V005506,109.2,Mark-Douglas Industrial Supplies Limited,1276.44,BAC003559
Liberty Leisure Limited,http://statistics.data.gov.uk/id/local-authority/37UD,Leisure,LEIS,Leisure Centres,LCEN,Liberty Leisure Limited / Kimberley Leisure Centre,Cleaning Materials,1510,Other Prem,OthPrem,09/10/2020,V005516,450.5,Mark-Douglas Industrial Supplies Limited,1276.44,BAC003559
Liberty Leisure Limited,http://statistics.data.gov.uk/id/local-authority/37UD,Leisure,LEIS,Leisure Centres,LCEN,Liberty Leisure Limited / Bramcote Leisure Centre,Service Contracts,3056,Other Supplies & Services,OtherSS,09/10/2020,V005498,124.19,NBE Fire and Security Limited,611.03,BAC003562
Liberty Leisure Limited,http://statistics.data.gov.uk/id/local-authority/37UD,Leisure,LEIS,Leisure Centres,LCEN,Liberty Leisure Limited / Bramcote Leisure Centre,Service Contracts,3056,Other Supplies & Services,OtherSS,09/10/2020,V005499,385,NBE Fire and Security Limited,611.03,BAC003562
Liberty Leisure Limited,http://statistics.data.gov.uk/id/local-authority/37UD,Leisure,LEIS,Leisure Centres,LCEN,Liberty Leisure Limited / Kimberley Leisure Centre,Repairs & Maintenance,1000,Central Pot,Central,09/10/2020,V005512,1874,Nottingham Audio Visual Service Limited,2248.8,BAC003553
Liberty Leisure Limited,http://statistics.data.gov.uk/id/local-authority/37UD,Leisure,LEIS,Leisure Centres,LCEN,Liberty Leisure Limited / Bramcote Leisure Centre,Training,3740,Other Supplies & Services,OtherSS,09/10/2020,V005501,205,RLSS Direct,283.95,BAC003556
Liberty Leisure Limited,http://statistics.data.gov.uk/id/local-authority/37UD,Leisure,LEIS,Leisure Centres,LCEN,Liberty Leisure Limited / Bramcote Leisure Centre,Training,3740,Other Supplies & Services,OtherSS,09/10/2020,V005501,68,RLSS Direct,283.95,BAC003556
Liberty Leisure Limited,http://statistics.data.gov.uk/id/local-authority/37UD,Leisure,LEIS,Leisure Centres,LCEN,Liberty Leisure Limited / Bramcote Leisure Centre,Training,3740,Other Supplies & Services,OtherSS,09/10/2020,V005501,10.95,RLSS Direct,283.95,BAC003556
Liberty Leisure Limited,http://statistics.data.gov.uk/id/local-authority/37UD,Leisure,LEIS,Leisure Centres,LCEN,Liberty Leisure Limited / Bramcote Leisure Centre,Repairs & Maintenance,1000,Central Pot,Central,23/10/2020,V005522,517.32,JIH Electrical Ltd,517.32,BAC003578
Liberty Leisure Limited,http://statistics.data.gov.uk/id/local-authority/37UD,Leisure,LEIS,Leisure Centres,LCEN,Liberty Leisure Limited / Bramcote Leisure Centre,Repairs & Maintenance,1000,Central Pot,Central,23/10/2020,V005520,330,Maple Controls Limited,396,BAC003579
Liberty Leisure Limited,http://statistics.data.gov.uk/id/local-authority/37UD,Culture and Heritage,CULT,Heritage,LHER,Liberty Leisure Limited / DHL Museum,Licences,3613,Other Supplies & Services,OtherSS,23/10/2020,V005529,219,MODES Users Association,262.8,BAC003580
Liberty Leisure Limited,http://statistics.data.gov.uk/id/local-authority/37UD,Leisure,LEIS,Leisure Centres,LCEN,Liberty Leisure Limited / Bramcote Leisure Centre,Repairs & Maintenance,1000,Central Pot,Central,23/10/2020,V005530,325,Sterling Hydrotech Limited,659.4,BAC003575
Liberty Leisure Limited,http://statistics.data.gov.uk/id/local-authority/37UD,Leisure,LEIS,Leisure Centres,LCEN,Liberty Leisure Limited / Bramcote Leisure Centre,Repairs & Maintenance,1000,Central Pot,Central,23/10/2020,V005531,224.5,Sterling Hydrotech Limited,659.4,BAC003575
Liberty Leisure Limited,http://statistics.data.gov.uk/id/local-authority/37UD,LL Control Accounts,CONTROL,Payroll,LPAY,Assistant Chief Executive / Payroll,Recovery of Pay Advances,9175,Control,Crtl,23/10/2020,V005532,650,Williams Serna Diaz,650,BAC003582
Liberty Leisure Limited,http://statistics.data.gov.uk/id/local-authority/37UD,Leisure,LEIS,Leisure Development,LDEV,Liberty Leisure Limited / Liberty Leisure Development,Licences,3613,Other Supplies & Services,OtherSS,06/11/2020,V005533,10768.21,Broxtowe Borough Council,12921.85,BAC003583
Liberty Leisure Limited,http://statistics.data.gov.uk/id/local-authority/37UD,Leisure,LEIS,Leisure Centres,LCEN,Liberty Leisure Limited / Bramcote Leisure Centre,Chemicals,3152,Other Supplies & Services,OtherSS,06/11/2020,V005551,748,Gaffey Technical Services,897.6,BAC003586
Liberty Leisure Limited,http://statistics.data.gov.uk/id/local-authority/37UD,Leisure,LEIS,Leisure Centres,LCEN,Liberty Leisure Limited / Kimberley Leisure Centre,Service Contracts,3056,Other Supplies & Services,OtherSS,06/11/2020,V005537,1447.5,Kohler Mira Ltd,1737,BAC003598
Liberty Leisure Limited,http://statistics.data.gov.uk/id/local-authority/37UD,Leisure,LEIS,Leisure Centres,LCEN,Liberty Leisure Limited / Kimberley Leisure Centre,Repairs & Maintenance,1000,Central Pot,Central,06/11/2020,V005542,300,M A Technical Services Ltd,1032,BAC003587
Liberty Leisure Limited,http://statistics.data.gov.uk/id/local-authority/37UD,Leisure,LEIS,Leisure Centres,LCEN,Liberty Leisure Limited / Kimberley Leisure Centre,Service Contracts,3056,Other Supplies & Services,OtherSS,06/11/2020,V005542,360,M A Technical Services Ltd,1032,BAC003587
Liberty Leisure Limited,http://statistics.data.gov.uk/id/local-authority/37UD,Leisure,LEIS,Leisure Centres,LCEN,Liberty Leisure Limited / Kimberley Leisure Centre,Service Contracts,3056,Other Supplies & Services,OtherSS,06/11/2020,V005542,200,M A Technical Services Ltd,1032,BAC003587
Liberty Leisure Limited,http://statistics.data.gov.uk/id/local-authority/37UD,Leisure,LEIS,Leisure Centres,LCEN,Liberty Leisure Limited / Kimberley Leisure Centre,Repairs & Maintenance,1000,Central Pot,Central,06/11/2020,V005545,85.18,Neuro Systems Ltd,306.65,BAC003589
Liberty Leisure Limited,http://statistics.data.gov.uk/id/local-authority/37UD,Leisure,LEIS,Leisure Centres,LCEN,Liberty Leisure Limited / Kimberley Leisure Centre,Repairs & Maintenance,1000,Central Pot,Central,06/11/2020,V005544,120.36,Neuro Systems Ltd,306.65,BAC003589
Liberty Leisure Limited,http://statistics.data.gov.uk/id/local-authority/37UD,Leisure,LEIS,Leisure Centres,LCEN,Liberty Leisure Limited / Kimberley Leisure Centre,Repairs & Maintenance,1000,Central Pot,Central,06/11/2020,V005543,50,Neuro Systems Ltd,306.65,BAC003589
Liberty Leisure Limited,http://statistics.data.gov.uk/id/local-authority/37UD,LL Control Accounts,CONTROL,Payroll,LPAY,Assistant Chief Executive / Payroll,Superannuation - Employees,9154,Control,Crtl,06/11/2020,V005550,9686.55,Notts County Council Pensions,44138.41,BAC003596
Liberty Leisure Limited,http://statistics.data.gov.uk/id/local-authority/37UD,LL Control Accounts,CONTROL,Payroll,LPAY,Assistant Chief Executive / Payroll,Superannuation - Employers,9155,Control,Crtl,06/11/2020,V005550,29319.86,Notts County Council Pensions,44138.41,BAC003596
Liberty Leisure Limited,http://statistics.data.gov.uk/id/local-authority/37UD,LL Control Accounts,CONTROL,Payroll,LPAY,Assistant Chief Executive / Payroll,Superannuation - Lump Prepayment,9159,Control,Crtl,06/11/2020,V005550,5132,Notts County Council Pensions,44138.41,BAC003596
Liberty Leisure Limited,http://statistics.data.gov.uk/id/local-authority/37UD,Leisure,LEIS,Leisure Centres,LCEN,Liberty Leisure Limited / Kimberley Leisure Centre,Service Contracts,3056,Other Supplies & Services,OtherSS,06/11/2020,V005539,362.31,REPLAY Maintenance Ltd,434.77,BAC003590
Liberty Leisure Limited,http://statistics.data.gov.uk/id/local-authority/37UD,Culture and Heritage,CULT,Heritage,LHER,Liberty Leisure Limited / DHL Museum,Electricity,1310,Utilities,Utility,06/11/2020,V005555,140.35,Total Gas & Power Ltd,5849.72,BAC003593
Liberty Leisure Limited,http://statistics.data.gov.uk/id/local-authority/37UD,Culture and Heritage,CULT,Heritage,LHER,Liberty Leisure Limited / DHL Museum,Electricity,1310,Utilities,Utility,06/11/2020,V005562,45.21,Total Gas & Power Ltd,5849.72,BAC003593
Liberty Leisure Limited,http://statistics.data.gov.uk/id/local-authority/37UD,Culture and Heritage,CULT,Heritage,LHER,Liberty Leisure Limited / DHL Museum,Electricity,1310,Utilities,Utility,06/11/2020,V005558,640.95,Total Gas & Power Ltd,5849.72,BAC003593
Liberty Leisure Limited,http://statistics.data.gov.uk/id/local-authority/37UD,Culture and Heritage,CULT,Heritage,LHER,Liberty Leisure Limited / DHL Museum,Electricity,1310,Utilities,Utility,06/11/2020,V005561,45.3,Total Gas & Power Ltd,5849.72,BAC003593
Liberty Leisure Limited,http://statistics.data.gov.uk/id/local-authority/37UD,Culture and Heritage,CULT,Heritage,LHER,Liberty Leisure Limited / DHL Museum,Electricity,1310,Utilities,Utility,06/11/2020,V005560,112.58,Total Gas & Power Ltd,5849.72,BAC003593
Liberty Leisure Limited,http://statistics.data.gov.uk/id/local-authority/37UD,Culture and Heritage,CULT,Heritage,LHER,Liberty Leisure Limited / DHL Museum,Electricity,1310,Utilities,Utility,06/11/2020,V005554,441.22,Total Gas & Power Ltd,5849.72,BAC003593
Liberty Leisure Limited,http://statistics.data.gov.uk/id/local-authority/37UD,Culture and Heritage,CULT,Heritage,LHER,Liberty Leisure Limited / DHL Museum,Electricity,1310,Utilities,Utility,06/11/2020,V005559,129.35,Total Gas & Power Ltd,5849.72,BAC003593
Liberty Leisure Limited,http://statistics.data.gov.uk/id/local-authority/37UD,Culture and Heritage,CULT,Heritage,LHER,Liberty Leisure Limited / DHL Museum,Gas,1320,Utilities,Utility,06/11/2020,V005540,22.2,Total Gas & Power Ltd,5849.72,BAC003593
Liberty Leisure Limited,http://statistics.data.gov.uk/id/local-authority/37UD,Leisure,LEIS,Leisure Centres,LCEN,Liberty Leisure Limited / Kimberley Leisure Centre,Electricity,1310,Utilities,Utility,06/11/2020,V005541,3359.48,Total Gas & Power Ltd,5849.72,BAC003593
Liberty Leisure Limited,http://statistics.data.gov.uk/id/local-authority/37UD,Leisure,LEIS,Leisure Centres,LCEN,Liberty Leisure Limited / Bramcote Leisure Centre,Water Charges,1410,Utilities,Utility,06/11/2020,V005556,2228.92,Waterplus,2228.92,BAC003600
Liberty Leisure Limited,http://statistics.data.gov.uk/id/local-authority/37UD,Leisure,LEIS,Leisure Centres,LCEN,Liberty Leisure Limited / Bramcote Leisure Centre,Repairs & Maintenance,1000,Central Pot,Central,20/11/2020,V005587,315.2,JIH Electrical Ltd,315.2,BAC003623
Liberty Leisure Limited,http://statistics.data.gov.uk/id/local-authority/37UD,Leisure,LEIS,Leisure Centres,LCEN,Liberty Leisure Limited / Chilwell Olympia,Licences,3613,Other Supplies & Services,OtherSS,20/11/2020,V005578,267.32,Motion Picture Licensing Company,320.78,BAC003624
Liberty Leisure Limited,http://statistics.data.gov.uk/id/local-authority/37UD,Leisure,LEIS,Leisure Development,LDEV,Liberty Leisure Limited / Liberty Leisure Development,Licences,3613,Other Supplies & Services,OtherSS,20/11/2020,V005579,425.21,Omnico Group UK Ltd,11269.36,BAC003622
Liberty Leisure Limited,http://statistics.data.gov.uk/id/local-authority/37UD,Leisure,LEIS,Leisure Development,LDEV,Liberty Leisure Limited / Liberty Leisure Development,Licences,3613,Other Supplies & Services,OtherSS,20/11/2020,V005579,1246.68,Omnico Group UK Ltd,11269.36,BAC003622
Liberty Leisure Limited,http://statistics.data.gov.uk/id/local-authority/37UD,Leisure,LEIS,Leisure Development,LDEV,Liberty Leisure Limited / Liberty Leisure Development,Licences,3613,Other Supplies & Services,OtherSS,20/11/2020,V005579,7719.24,Omnico Group UK Ltd,11269.36,BAC003622
Liberty Leisure Limited,http://statistics.data.gov.uk/id/local-authority/37UD,Leisure,LEIS,Leisure Centres,LCEN,Liberty Leisure Limited / Kimberley Leisure Centre,Repairs & Maintenance,1000,Central Pot,Central,20/11/2020,V005583,580,Stoney Ceramics,696,BAC003626
Liberty Leisure Limited,http://statistics.data.gov.uk/id/local-authority/37UD,Leisure,LEIS,Leisure Development,LDEV,Liberty Leisure Limited / Liberty Leisure Development,Advertising,3412,Advertising,Advert,20/11/2020,V005589,249,Targettip T/A Phase,298.8,BAC003618
Liberty Leisure Limited,http://statistics.data.gov.uk/id/local-authority/37UD,Leisure,LEIS,Leisure Centres,LCEN,Liberty Leisure Limited / Kimberley Leisure Centre,Gas,1320,Utilities,Utility,20/11/2020,V005580,5469.83,The Kimberley School (EMET),14365.97,BAC003620
Liberty Leisure Limited,http://statistics.data.gov.uk/id/local-authority/37UD,Leisure,LEIS,Leisure Centres,LCEN,Liberty Leisure Limited / Kimberley Leisure Centre,Gas,1320,Utilities,Utility,20/11/2020,V005581,2090.44,The Kimberley School (EMET),14365.97,BAC003620
Liberty Leisure Limited,http://statistics.data.gov.uk/id/local-authority/37UD,Leisure,LEIS,Leisure Centres,LCEN,Liberty Leisure Limited / Kimberley Leisure Centre,Water Charges,1410,Utilities,Utility,20/11/2020,V005580,5526.11,The Kimberley School (EMET),14365.97,BAC003620
Liberty Leisure Limited,http://statistics.data.gov.uk/id/local-authority/37UD,Leisure,LEIS,Leisure Centres,LCEN,Liberty Leisure Limited / Kimberley Leisure Centre,Water Charges,1410,Utilities,Utility,20/11/2020,V005581,1279.59,The Kimberley School (EMET),14365.97,BAC003620
Liberty Leisure Limited,http://statistics.data.gov.uk/id/local-authority/37UD,Leisure,LEIS,Leisure Centres,LCEN,Liberty Leisure Limited / Bramcote Leisure Centre,Chemicals,3152,Other Supplies & Services,OtherSS,20/11/2020,V005586,218.03,Univar Solutions BV,261.64,BAC003619
Liberty Leisure Limited,http://statistics.data.gov.uk/id/local-authority/37UD,Leisure,LEIS,Leisure Development,LDEV,Liberty Leisure Limited / Liberty Leisure Development,Advertising,3412,Advertising,Advert,04/12/2020,V005590,6700,Broxtowe Borough Council,8040,BAC003627
Liberty Leisure Limited,http://statistics.data.gov.uk/id/local-authority/37UD,Leisure,LEIS,Leisure Centres,LCEN,Liberty Leisure Limited / Kimberley Leisure Centre,Repairs & Maintenance,1000,Central Pot,Central,04/12/2020,V005593,330,City Electrical Factors Ltd,396,BAC003628
Liberty Leisure Limited,http://statistics.data.gov.uk/id/local-authority/37UD,Leisure,LEIS,Leisure Management,LMAN,Liberty Leisure Limited / Liberty Leisure Development,Professional Fees,730,Indirect Employee Exp Oncosts,Oncosts,04/12/2020,V005597,600,Haines Watts Nottingham Ltd,720,BAC003638
Liberty Leisure Limited,http://statistics.data.gov.uk/id/local-authority/37UD,Leisure,LEIS,Leisure Centres,LCEN,Liberty Leisure Limited / Kimberley Leisure Centre,Cleaning Materials,1510,Other Prem,OthPrem,04/12/2020,V005594,130.5,Mark-Douglas Industrial Supplies Limited,927.8,BAC003632
Liberty Leisure Limited,http://statistics.data.gov.uk/id/local-authority/37UD,Leisure,LEIS,Leisure Centres,LCEN,Liberty Leisure Limited / Kimberley Leisure Centre,Cleaning Materials,1510,Other Prem,OthPrem,04/12/2020,V005595,642.67,Mark-Douglas Industrial Supplies Limited,927.8,BAC003632
Liberty Leisure Limited,http://statistics.data.gov.uk/id/local-authority/37UD,LL Control Accounts,CONTROL,Payroll,LPAY,Assistant Chief Executive / Payroll,Superannuation - Employees,9154,Control,Crtl,04/12/2020,V005602,8525.27,Notts County Council Pensions,39354.56,BAC003635
Liberty Leisure Limited,http://statistics.data.gov.uk/id/local-authority/37UD,LL Control Accounts,CONTROL,Payroll,LPAY,Assistant Chief Executive / Payroll,Superannuation - Employers,9155,Control,Crtl,04/12/2020,V005602,25697.29,Notts County Council Pensions,39354.56,BAC003635
Liberty Leisure Limited,http://statistics.data.gov.uk/id/local-authority/37UD,LL Control Accounts,CONTROL,Payroll,LPAY,Assistant Chief Executive / Payroll,Superannuation - Lump Prepayment,9159,Control,Crtl,04/12/2020,V005602,5132,Notts County Council Pensions,39354.56,BAC003635
Liberty Leisure Limited,http://statistics.data.gov.uk/id/local-authority/37UD,Leisure,LEIS,Leisure Centres,LCEN,Liberty Leisure Limited / Kimberley Leisure Centre,Repairs & Maintenance,1000,Central Pot,Central,04/12/2020,V005592,355,Slater Electrical Serv Limited,426,BAC003630
Liberty Leisure Limited,http://statistics.data.gov.uk/id/local-authority/37UD,Leisure,LEIS,Leisure Centres,LCEN,Liberty Leisure Limited / Chilwell Olympia,Repairs & Maintenance,1000,Central Pot,Central,04/12/2020,V005600,50,Tramp Tech,1638.41,BAC003634
Liberty Leisure Limited,http://statistics.data.gov.uk/id/local-authority/37UD,Leisure,LEIS,Leisure Centres,LCEN,Liberty Leisure Limited / Chilwell Olympia,Repairs & Maintenance,1000,Central Pot,Central,04/12/2020,V005600,4.1,Tramp Tech,1638.41,BAC003634
Liberty Leisure Limited,http://statistics.data.gov.uk/id/local-authority/37UD,Leisure,LEIS,Leisure Centres,LCEN,Liberty Leisure Limited / Chilwell Olympia,Repairs & Maintenance,1000,Central Pot,Central,04/12/2020,V005600,25,Tramp Tech,1638.41,BAC003634
Liberty Leisure Limited,http://statistics.data.gov.uk/id/local-authority/37UD,Leisure,LEIS,Leisure Centres,LCEN,Liberty Leisure Limited / Chilwell Olympia,Repairs & Maintenance,1000,Central Pot,Central,04/12/2020,V005600,90,Tramp Tech,1638.41,BAC003634
Liberty Leisure Limited,http://statistics.data.gov.uk/id/local-authority/37UD,Leisure,LEIS,Leisure Centres,LCEN,Liberty Leisure Limited / Chilwell Olympia,Repairs & Maintenance,1000,Central Pot,Central,04/12/2020,V005600,3.9,Tramp Tech,1638.41,BAC003634
Liberty Leisure Limited,http://statistics.data.gov.uk/id/local-authority/37UD,Leisure,LEIS,Leisure Centres,LCEN,Liberty Leisure Limited / Chilwell Olympia,Repairs & Maintenance,1000,Central Pot,Central,04/12/2020,V005600,70,Tramp Tech,1638.41,BAC003634
Liberty Leisure Limited,http://statistics.data.gov.uk/id/local-authority/37UD,Leisure,LEIS,Leisure Centres,LCEN,Liberty Leisure Limited / Chilwell Olympia,Service Contracts,3056,Other Supplies & Services,OtherSS,04/12/2020,V005603,3.84,Tramp Tech,1638.41,BAC003634
Liberty Leisure Limited,http://statistics.data.gov.uk/id/local-authority/37UD,Leisure,LEIS,Leisure Centres,LCEN,Liberty Leisure Limited / Chilwell Olympia,Service Contracts,3056,Other Supplies & Services,OtherSS,04/12/2020,V005603,45,Tramp Tech,1638.41,BAC003634
Liberty Leisure Limited,http://statistics.data.gov.uk/id/local-authority/37UD,Leisure,LEIS,Leisure Centres,LCEN,Liberty Leisure Limited / Chilwell Olympia,Service Contracts,3056,Other Supplies & Services,OtherSS,04/12/2020,V005603,37.5,Tramp Tech,1638.41,BAC003634
Liberty Leisure Limited,http://statistics.data.gov.uk/id/local-authority/37UD,Leisure,LEIS,Leisure Centres,LCEN,Liberty Leisure Limited / Chilwell Olympia,Service Contracts,3056,Other Supplies & Services,OtherSS,04/12/2020,V005603,150,Tramp Tech,1638.41,BAC003634
Liberty Leisure Limited,http://statistics.data.gov.uk/id/local-authority/37UD,Leisure,LEIS,Leisure Centres,LCEN,Liberty Leisure Limited / Chilwell Olympia,Service Contracts,3056,Other Supplies & Services,OtherSS,04/12/2020,V005603,7.8,Tramp Tech,1638.41,BAC003634
Liberty Leisure Limited,http://statistics.data.gov.uk/id/local-authority/37UD,Leisure,LEIS,Leisure Centres,LCEN,Liberty Leisure Limited / Chilwell Olympia,Service Contracts,3056,Other Supplies & Services,OtherSS,04/12/2020,V005603,270,Tramp Tech,1638.41,BAC003634
Liberty Leisure Limited,http://statistics.data.gov.uk/id/local-authority/37UD,Leisure,LEIS,Leisure Centres,LCEN,Liberty Leisure Limited / Kimberley Leisure Centre,Service Contracts,3056,Other Supplies & Services,OtherSS,04/12/2020,V005611,90,Tramp Tech,1638.41,BAC003634
Liberty Leisure Limited,http://statistics.data.gov.uk/id/local-authority/37UD,Leisure,LEIS,Leisure Centres,LCEN,Liberty Leisure Limited / Kimberley Leisure Centre,Service Contracts,3056,Other Supplies & Services,OtherSS,04/12/2020,V005611,43.2,Tramp Tech,1638.41,BAC003634
Liberty Leisure Limited,http://statistics.data.gov.uk/id/local-authority/37UD,Leisure,LEIS,Leisure Centres,LCEN,Liberty Leisure Limited / Kimberley Leisure Centre,Service Contracts,3056,Other Supplies & Services,OtherSS,04/12/2020,V005611,150,Tramp Tech,1638.41,BAC003634
Liberty Leisure Limited,http://statistics.data.gov.uk/id/local-authority/37UD,Leisure,LEIS,Leisure Centres,LCEN,Liberty Leisure Limited / Kimberley Leisure Centre,Service Contracts,3056,Other Supplies & Services,OtherSS,04/12/2020,V005611,325,Tramp Tech,1638.41,BAC003634
Liberty Leisure Limited,http://statistics.data.gov.uk/id/local-authority/37UD,Leisure,LEIS,Leisure Development,LDEV,Liberty Leisure Limited / Liberty Leisure Development,Licences,3613,Other Supplies & Services,OtherSS,04/12/2020,V005605,550.72,Verifone,6349.58,BAC003640
Liberty Leisure Limited,http://statistics.data.gov.uk/id/local-authority/37UD,Leisure,LEIS,Leisure Development,LDEV,Liberty Leisure Limited / Liberty Leisure Development,Licences,3613,Other Supplies & Services,OtherSS,04/12/2020,V005605,1927.52,Verifone,6349.58,BAC003640
Liberty Leisure Limited,http://statistics.data.gov.uk/id/local-authority/37UD,Leisure,LEIS,Leisure Development,LDEV,Liberty Leisure Limited / Liberty Leisure Development,Licences,3613,Other Supplies & Services,OtherSS,04/12/2020,V005605,136.24,Verifone,6349.58,BAC003640
Liberty Leisure Limited,http://statistics.data.gov.uk/id/local-authority/37UD,Leisure,LEIS,Leisure Development,LDEV,Liberty Leisure Limited / Liberty Leisure Development,Licences,3613,Other Supplies & Services,OtherSS,04/12/2020,V005605,476.84,Verifone,6349.58,BAC003640
Liberty Leisure Limited,http://statistics.data.gov.uk/id/local-authority/37UD,Leisure,LEIS,Leisure Development,LDEV,Liberty Leisure Limited / Liberty Leisure Development,Licences,3613,Other Supplies & Services,OtherSS,04/12/2020,V005606,2200,Verifone,6349.58,BAC003640
Liberty Leisure Limited,http://statistics.data.gov.uk/id/local-authority/37UD,Leisure,LEIS,Leisure Centres,LCEN,Liberty Leisure Limited / Bramcote Leisure Centre,Chemicals,3152,Other Supplies & Services,OtherSS,18/12/2020,V005632,748,Gaffey Technical Services,897.6,BAC003645
Liberty Leisure Limited,http://statistics.data.gov.uk/id/local-authority/37UD,Leisure,LEIS,Leisure Centres,LCEN,Liberty Leisure Limited / Bramcote Leisure Centre,Repairs & Maintenance,1000,Central Pot,Central,18/12/2020,V005618,350,Geoff Green Joinery,1140,BAC003651
Liberty Leisure Limited,http://statistics.data.gov.uk/id/local-authority/37UD,Leisure,LEIS,Leisure Centres,LCEN,Liberty Leisure Limited / Bramcote Leisure Centre,Repairs & Maintenance,1000,Central Pot,Central,18/12/2020,V005618,290,Geoff Green Joinery,1140,BAC003651
Liberty Leisure Limited,http://statistics.data.gov.uk/id/local-authority/37UD,Leisure,LEIS,Leisure Centres,LCEN,Liberty Leisure Limited / Bramcote Leisure Centre,Repairs & Maintenance,1000,Central Pot,Central,18/12/2020,V005618,310,Geoff Green Joinery,1140,BAC003651
Liberty Leisure Limited,http://statistics.data.gov.uk/id/local-authority/37UD,Leisure,LEIS,Leisure Development,LDEV,Liberty Leisure Limited / Bramcote Leisure Centre,Course & Examination Fees,720,Indirect Employee Exp Oncosts,Oncosts,18/12/2020,V005641,272,Institute of Swimming,544,BAC003660
Liberty Leisure Limited,http://statistics.data.gov.uk/id/local-authority/37UD,Leisure,LEIS,Leisure Development,LDEV,Liberty Leisure Limited / Bramcote Leisure Centre,Course & Examination Fees,720,Indirect Employee Exp Oncosts,Oncosts,18/12/2020,V005641,272,Institute of Swimming,544,BAC003660
Liberty Leisure Limited,http://statistics.data.gov.uk/id/local-authority/37UD,Leisure,LEIS,Leisure Centres,LCEN,Liberty Leisure Limited / Kimberley Leisure Centre,Repairs & Maintenance,1000,Central Pot,Central,18/12/2020,V005634,162,M A Technical Services Ltd,698.4,BAC003646
Liberty Leisure Limited,http://statistics.data.gov.uk/id/local-authority/37UD,Leisure,LEIS,Leisure Centres,LCEN,Liberty Leisure Limited / Kimberley Leisure Centre,Repairs & Maintenance,1000,Central Pot,Central,18/12/2020,V005634,420,M A Technical Services Ltd,698.4,BAC003646
Liberty Leisure Limited,http://statistics.data.gov.uk/id/local-authority/37UD,Leisure,LEIS,Leisure Centres,LCEN,Liberty Leisure Limited / Bramcote Leisure Centre,Cleaning Materials,1510,Other Prem,OthPrem,18/12/2020,V005648,7.9,Mark-Douglas Industrial Supplies Limited,1090.57,BAC003654
Liberty Leisure Limited,http://statistics.data.gov.uk/id/local-authority/37UD,Leisure,LEIS,Leisure Centres,LCEN,Liberty Leisure Limited / Bramcote Leisure Centre,Cleaning Materials,1510,Other Prem,OthPrem,18/12/2020,V005647,51.6,Mark-Douglas Industrial Supplies Limited,1090.57,BAC003654
Liberty Leisure Limited,http://statistics.data.gov.uk/id/local-authority/37UD,Leisure,LEIS,Leisure Centres,LCEN,Liberty Leisure Limited / Bramcote Leisure Centre,Cleaning Materials,1510,Other Prem,OthPrem,18/12/2020,V005640,37.44,Mark-Douglas Industrial Supplies Limited,1090.57,BAC003654
Liberty Leisure Limited,http://statistics.data.gov.uk/id/local-authority/37UD,Leisure,LEIS,Leisure Centres,LCEN,Liberty Leisure Limited / Bramcote Leisure Centre,Cleaning Materials,1510,Other Prem,OthPrem,18/12/2020,V005648,7.9,Mark-Douglas Industrial Supplies Limited,1090.57,BAC003654
Liberty Leisure Limited,http://statistics.data.gov.uk/id/local-authority/37UD,Leisure,LEIS,Leisure Centres,LCEN,Liberty Leisure Limited / Bramcote Leisure Centre,Cleaning Materials,1510,Other Prem,OthPrem,18/12/2020,V005648,76.1,Mark-Douglas Industrial Supplies Limited,1090.57,BAC003654
Liberty Leisure Limited,http://statistics.data.gov.uk/id/local-authority/37UD,Leisure,LEIS,Leisure Centres,LCEN,Liberty Leisure Limited / Bramcote Leisure Centre,Cleaning Materials,1510,Other Prem,OthPrem,18/12/2020,V005647,76.1,Mark-Douglas Industrial Supplies Limited,1090.57,BAC003654
Liberty Leisure Limited,http://statistics.data.gov.uk/id/local-authority/37UD,Leisure,LEIS,Leisure Centres,LCEN,Liberty Leisure Limited / Bramcote Leisure Centre,Cleaning Materials,1510,Other Prem,OthPrem,18/12/2020,V005651,37.5,Mark-Douglas Industrial Supplies Limited,1090.57,BAC003654
Liberty Leisure Limited,http://statistics.data.gov.uk/id/local-authority/37UD,Leisure,LEIS,Leisure Centres,LCEN,Liberty Leisure Limited / Bramcote Leisure Centre,Cleaning Materials,1510,Other Prem,OthPrem,18/12/2020,V005653,7.71,Mark-Douglas Industrial Supplies Limited,1090.57,BAC003654
Liberty Leisure Limited,http://statistics.data.gov.uk/id/local-authority/37UD,Leisure,LEIS,Leisure Centres,LCEN,Liberty Leisure Limited / Bramcote Leisure Centre,Cleaning Materials,1510,Other Prem,OthPrem,18/12/2020,V005640,16.5,Mark-Douglas Industrial Supplies Limited,1090.57,BAC003654
Liberty Leisure Limited,http://statistics.data.gov.uk/id/local-authority/37UD,Leisure,LEIS,Leisure Centres,LCEN,Liberty Leisure Limited / Bramcote Leisure Centre,Cleaning Materials,1510,Other Prem,OthPrem,18/12/2020,V005647,0,Mark-Douglas Industrial Supplies Limited,1090.57,BAC003654
Liberty Leisure Limited,http://statistics.data.gov.uk/id/local-authority/37UD,Leisure,LEIS,Leisure Centres,LCEN,Liberty Leisure Limited / Bramcote Leisure Centre,Cleaning Materials,1510,Other Prem,OthPrem,18/12/2020,V005652,12.68,Mark-Douglas Industrial Supplies Limited,1090.57,BAC003654
Liberty Leisure Limited,http://statistics.data.gov.uk/id/local-authority/37UD,Leisure,LEIS,Leisure Centres,LCEN,Liberty Leisure Limited / Bramcote Leisure Centre,Cleaning Materials,1510,Other Prem,OthPrem,18/12/2020,V005654,38.04,Mark-Douglas Industrial Supplies Limited,1090.57,BAC003654
Liberty Leisure Limited,http://statistics.data.gov.uk/id/local-authority/37UD,Leisure,LEIS,Leisure Centres,LCEN,Liberty Leisure Limited / Bramcote Leisure Centre,Cleaning Materials,1510,Other Prem,OthPrem,18/12/2020,V005640,172,Mark-Douglas Industrial Supplies Limited,1090.57,BAC003654
Liberty Leisure Limited,http://statistics.data.gov.uk/id/local-authority/37UD,Leisure,LEIS,Leisure Centres,LCEN,Liberty Leisure Limited / Bramcote Leisure Centre,Cleaning Materials,1510,Other Prem,OthPrem,18/12/2020,V005648,172,Mark-Douglas Industrial Supplies Limited,1090.57,BAC003654
Liberty Leisure Limited,http://statistics.data.gov.uk/id/local-authority/37UD,Leisure,LEIS,Leisure Centres,LCEN,Liberty Leisure Limited / Bramcote Leisure Centre,Cleaning Materials,1510,Other Prem,OthPrem,18/12/2020,V005649,51.6,Mark-Douglas Industrial Supplies Limited,1090.57,BAC003654
Liberty Leisure Limited,http://statistics.data.gov.uk/id/local-authority/37UD,Leisure,LEIS,Leisure Centres,LCEN,Liberty Leisure Limited / Bramcote Leisure Centre,Cleaning Materials,1510,Other Prem,OthPrem,18/12/2020,V005650,53.97,Mark-Douglas Industrial Supplies Limited,1090.57,BAC003654
Liberty Leisure Limited,http://statistics.data.gov.uk/id/local-authority/37UD,Leisure,LEIS,Leisure Centres,LCEN,Liberty Leisure Limited / Bramcote Leisure Centre,Cleaning Materials,1510,Other Prem,OthPrem,18/12/2020,V005640,25,Mark-Douglas Industrial Supplies Limited,1090.57,BAC003654
Liberty Leisure Limited,http://statistics.data.gov.uk/id/local-authority/37UD,Leisure,LEIS,Leisure Centres,LCEN,Liberty Leisure Limited / Bramcote Leisure Centre,Cleaning Materials,1510,Other Prem,OthPrem,18/12/2020,V005648,7.9,Mark-Douglas Industrial Supplies Limited,1090.57,BAC003654
Liberty Leisure Limited,http://statistics.data.gov.uk/id/local-authority/37UD,Leisure,LEIS,Leisure Centres,LCEN,Liberty Leisure Limited / Bramcote Leisure Centre,Cleaning Materials,1510,Other Prem,OthPrem,18/12/2020,V005648,7.9,Mark-Douglas Industrial Supplies Limited,1090.57,BAC003654
Liberty Leisure Limited,http://statistics.data.gov.uk/id/local-authority/37UD,Leisure,LEIS,Leisure Centres,LCEN,Liberty Leisure Limited / Bramcote Leisure Centre,Cleaning Materials,1510,Other Prem,OthPrem,18/12/2020,V005648,18.08,Mark-Douglas Industrial Supplies Limited,1090.57,BAC003654
Liberty Leisure Limited,http://statistics.data.gov.uk/id/local-authority/37UD,Leisure,LEIS,Leisure Centres,LCEN,Liberty Leisure Limited / Bramcote Leisure Centre,Cleaning Materials,1510,Other Prem,OthPrem,18/12/2020,V005648,12.48,Mark-Douglas Industrial Supplies Limited,1090.57,BAC003654
Liberty Leisure Limited,http://statistics.data.gov.uk/id/local-authority/37UD,Leisure,LEIS,Leisure Centres,LCEN,Liberty Leisure Limited / Bramcote Leisure Centre,Cleaning Materials,1510,Other Prem,OthPrem,18/12/2020,V005648,7.9,Mark-Douglas Industrial Supplies Limited,1090.57,BAC003654
Liberty Leisure Limited,http://statistics.data.gov.uk/id/local-authority/37UD,Leisure,LEIS,Leisure Centres,LCEN,Liberty Leisure Limited / Bramcote Leisure Centre,Cleaning Materials,1510,Other Prem,OthPrem,18/12/2020,V005648,10.5,Mark-Douglas Industrial Supplies Limited,1090.57,BAC003654
Liberty Leisure Limited,http://statistics.data.gov.uk/id/local-authority/37UD,Leisure,LEIS,Leisure Centres,LCEN,Liberty Leisure Limited / Bramcote Leisure Centre,Repairs & Maintenance,1000,Central Pot,Central,18/12/2020,V005644,420,Midlands Asbestos Solutions Limited,504,BAC003664
Liberty Leisure Limited,http://statistics.data.gov.uk/id/local-authority/37UD,Leisure,LEIS,Leisure Centres,LCEN,Liberty Leisure Limited / Bramcote Leisure Centre,Licences,3613,Other Supplies & Services,OtherSS,18/12/2020,V005628,267.32,Motion Picture Licensing Company,320.78,BAC003663
Liberty Leisure Limited,http://statistics.data.gov.uk/id/local-authority/37UD,Leisure,LEIS,Leisure Centres,LCEN,Liberty Leisure Limited / Bramcote Leisure Centre,Service Contracts,3056,Other Supplies & Services,OtherSS,18/12/2020,V005608,70.83,Nationwide Alarmcall Ltd,1633,BAC003653
Liberty Leisure Limited,http://statistics.data.gov.uk/id/local-authority/37UD,Leisure,LEIS,Leisure Centres,LCEN,Liberty Leisure Limited / Bramcote Leisure Centre,Service Contracts,3056,Other Supplies & Services,OtherSS,18/12/2020,V005609,695,Nationwide Alarmcall Ltd,1633,BAC003653
Liberty Leisure Limited,http://statistics.data.gov.uk/id/local-authority/37UD,Leisure,LEIS,Leisure Centres,LCEN,Liberty Leisure Limited / Chilwell Olympia,Service Contracts,3056,Other Supplies & Services,OtherSS,18/12/2020,V005607,595,Nationwide Alarmcall Ltd,1633,BAC003653
Liberty Leisure Limited,http://statistics.data.gov.uk/id/local-authority/37UD,Leisure,LEIS,Leisure Development,LDEV,Liberty Leisure Limited / Liberty Leisure Development,Business Development,3088,Other Supplies & Services,OtherSS,18/12/2020,V005631,500,Omnico Group UK Ltd,2385,BAC003656
Liberty Leisure Limited,http://statistics.data.gov.uk/id/local-authority/37UD,Leisure,LEIS,Leisure Development,LDEV,Liberty Leisure Limited / Liberty Leisure Development,Business Development,3088,Other Supplies & Services,OtherSS,18/12/2020,V005633,1487.5,Omnico Group UK Ltd,2385,BAC003656
Liberty Leisure Limited,http://statistics.data.gov.uk/id/local-authority/37UD,Leisure,LEIS,Leisure Centres,LCEN,Liberty Leisure Limited / Chilwell Olympia,Service Contracts,3056,Other Supplies & Services,OtherSS,18/12/2020,V005645,1268.53,PHS Group Plc,1522.24,BAC003647
Liberty Leisure Limited,http://statistics.data.gov.uk/id/local-authority/37UD,Leisure,LEIS,Leisure Centres,LCEN,Liberty Leisure Limited / Bramcote Leisure Centre,Repairs & Maintenance,1000,Central Pot,Central,18/12/2020,V005625,835,Pumptec - Pump and Valve Repairs,1002,BAC003652
Liberty Leisure Limited,http://statistics.data.gov.uk/id/local-authority/37UD,Leisure,LEIS,Leisure Centres,LCEN,Liberty Leisure Limited / Bramcote Leisure Centre,Repairs & Maintenance,1000,Central Pot,Central,18/12/2020,V005619,547,Sterilizing Services,865.2,BAC003648
Liberty Leisure Limited,http://statistics.data.gov.uk/id/local-authority/37UD,Leisure,LEIS,Leisure Centres,LCEN,Liberty Leisure Limited / Bramcote Leisure Centre,Legionella Testing,1042,Central Pot,Central,18/12/2020,V005604,58,Sterilizing Services,865.2,BAC003648
Liberty Leisure Limited,http://statistics.data.gov.uk/id/local-authority/37UD,Leisure,LEIS,Leisure Centres,LCEN,Liberty Leisure Limited / Bramcote Leisure Centre,Chemicals,3152,Other Supplies & Services,OtherSS,18/12/2020,V005629,58,Sterilizing Services,865.2,BAC003648
Liberty Leisure Limited,http://statistics.data.gov.uk/id/local-authority/37UD,Leisure,LEIS,Leisure Centres,LCEN,Liberty Leisure Limited / Bramcote Leisure Centre,Chemicals,3152,Other Supplies & Services,OtherSS,18/12/2020,V005655,58,Sterilizing Services,865.2,BAC003648
Liberty Leisure Limited,http://statistics.data.gov.uk/id/local-authority/37UD,Leisure,LEIS,Leisure Centres,LCEN,Liberty Leisure Limited / Kimberley Leisure Centre,Gas,1320,Utilities,Utility,18/12/2020,V005637,3073.92,The Kimberley School (EMET),4405.37,BAC003650
Liberty Leisure Limited,http://statistics.data.gov.uk/id/local-authority/37UD,Leisure,LEIS,Leisure Centres,LCEN,Liberty Leisure Limited / Kimberley Leisure Centre,Water Charges,1410,Utilities,Utility,18/12/2020,V005637,1331.45,The Kimberley School (EMET),4405.37,BAC003650
Liberty Leisure Limited,http://statistics.data.gov.uk/id/local-authority/37UD,Leisure,LEIS,Leisure Development,LDEV,Liberty Leisure Limited / Liberty Leisure Development,Business Development,3088,Other Supplies & Services,OtherSS,18/12/2020,V005627,250,Three65 Media Solutions Ltd,3725,BAC003662
Liberty Leisure Limited,http://statistics.data.gov.uk/id/local-authority/37UD,Leisure,LEIS,Leisure Development,LDEV,Liberty Leisure Limited / Liberty Leisure Development,Business Development,3088,Other Supplies & Services,OtherSS,18/12/2020,V005626,3475,Three65 Media Solutions Ltd,3725,BAC003662
Liberty Leisure Limited,http://statistics.data.gov.uk/id/local-authority/37UD,Leisure,LEIS,Leisure Centres,LCEN,Liberty Leisure Limited / Bramcote Leisure Centre,Electricity,1310,Utilities,Utility,18/12/2020,V005622,4288.25,Total Gas & Power Ltd,19082.97,BAC003658
Liberty Leisure Limited,http://statistics.data.gov.uk/id/local-authority/37UD,Leisure,LEIS,Leisure Centres,LCEN,Liberty Leisure Limited / Bramcote Leisure Centre,Electricity,1310,Utilities,Utility,18/12/2020,V005623,4434.6,Total Gas & Power Ltd,19082.97,BAC003658
Liberty Leisure Limited,http://statistics.data.gov.uk/id/local-authority/37UD,Leisure,LEIS,Leisure Centres,LCEN,Liberty Leisure Limited / Bramcote Leisure Centre,Gas,1320,Utilities,Utility,18/12/2020,V005620,4113.05,Total Gas & Power Ltd,19082.97,BAC003658
Liberty Leisure Limited,http://statistics.data.gov.uk/id/local-authority/37UD,Leisure,LEIS,Leisure Centres,LCEN,Liberty Leisure Limited / Bramcote Leisure Centre,Gas,1320,Utilities,Utility,18/12/2020,V005621,3387.71,Total Gas & Power Ltd,19082.97,BAC003658
Liberty Leisure Limited,http://statistics.data.gov.uk/id/local-authority/37UD,Leisure,LEIS,Leisure Centres,LCEN,Liberty Leisure Limited / Bramcote Leisure Centre,Gas,1320,Utilities,Utility,18/12/2020,V005624,2859.36,Total Gas & Power Ltd,19082.97,BAC003658
Liberty Leisure Limited,http://statistics.data.gov.uk/id/local-authority/37UD,Leisure,LEIS,Leisure Centres,LCEN,Liberty Leisure Limited / Kimberley Leisure Centre,Chemicals,3152,Other Supplies & Services,OtherSS,18/12/2020,V005635,76.46,Univar Solutions BV,557.65,BAC003649
Liberty Leisure Limited,http://statistics.data.gov.uk/id/local-authority/37UD,Leisure,LEIS,Leisure Centres,LCEN,Liberty Leisure Limited / Kimberley Leisure Centre,Chemicals,3152,Other Supplies & Services,OtherSS,18/12/2020,V005635,29.5,Univar Solutions BV,557.65,BAC003649
Liberty Leisure Limited,http://statistics.data.gov.uk/id/local-authority/37UD,Leisure,LEIS,Leisure Centres,LCEN,Liberty Leisure Limited / Kimberley Leisure Centre,Chemicals,3152,Other Supplies & Services,OtherSS,18/12/2020,V005635,14.5,Univar Solutions BV,557.65,BAC003649
Liberty Leisure Limited,http://statistics.data.gov.uk/id/local-authority/37UD,Leisure,LEIS,Leisure Centres,LCEN,Liberty Leisure Limited / Kimberley Leisure Centre,Chemicals,3152,Other Supplies & Services,OtherSS,18/12/2020,V005635,310.68,Univar Solutions BV,557.65,BAC003649
Liberty Leisure Limited,http://statistics.data.gov.uk/id/local-authority/37UD,Leisure,LEIS,Leisure Centres,LCEN,Liberty Leisure Limited / Kimberley Leisure Centre,Chemicals,3152,Other Supplies & Services,OtherSS,18/12/2020,V005635,33.57,Univar Solutions BV,557.65,BAC003649
Liberty Leisure Limited,http://statistics.data.gov.uk/id/local-authority/37UD,Leisure,LEIS,Leisure Centres,LCEN,Liberty Leisure Limited / Kimberley Leisure Centre,Repairs & Maintenance,1000,Central Pot,Central,04/01/2021,V005662,83.82,Duplex Cleaning Machines UK Ltd,586.58,BAC003671
Liberty Leisure Limited,http://statistics.data.gov.uk/id/local-authority/37UD,Leisure,LEIS,Leisure Centres,LCEN,Liberty Leisure Limited / Kimberley Leisure Centre,Service Contracts,3056,Other Supplies & Services,OtherSS,04/01/2021,V005663,180,Duplex Cleaning Machines UK Ltd,586.58,BAC003671
Liberty Leisure Limited,http://statistics.data.gov.uk/id/local-authority/37UD,Leisure,LEIS,Leisure Centres,LCEN,Liberty Leisure Limited / Kimberley Leisure Centre,Service Contracts,3056,Other Supplies & Services,OtherSS,04/01/2021,V005663,225,Duplex Cleaning Machines UK Ltd,586.58,BAC003671
Liberty Leisure Limited,http://statistics.data.gov.uk/id/local-authority/37UD,Leisure,LEIS,Leisure Centres,LCEN,Liberty Leisure Limited / Kimberley Leisure Centre,Licences,3613,Other Supplies & Services,OtherSS,04/01/2021,V005661,50,Halo Leisure Enterprises Ltd,540,BAC003678
Liberty Leisure Limited,http://statistics.data.gov.uk/id/local-authority/37UD,Leisure,LEIS,Leisure Centres,LCEN,Liberty Leisure Limited / Kimberley Leisure Centre,Licences,3613,Other Supplies & Services,OtherSS,04/01/2021,V005660,50,Halo Leisure Enterprises Ltd,540,BAC003678
Liberty Leisure Limited,http://statistics.data.gov.uk/id/local-authority/37UD,Leisure,LEIS,Leisure Centres,LCEN,Liberty Leisure Limited / Kimberley Leisure Centre,Licences,3613,Other Supplies & Services,OtherSS,04/01/2021,V005659,150,Halo Leisure Enterprises Ltd,540,BAC003678
Liberty Leisure Limited,http://statistics.data.gov.uk/id/local-authority/37UD,Leisure,LEIS,Leisure Centres,LCEN,Liberty Leisure Limited / Kimberley Leisure Centre,Licences,3613,Other Supplies & Services,OtherSS,04/01/2021,V005664,-100,Halo Leisure Enterprises Ltd,540,BAC003678
Liberty Leisure Limited,http://statistics.data.gov.uk/id/local-authority/37UD,Leisure,LEIS,Leisure Centres,LCEN,Liberty Leisure Limited / Kimberley Leisure Centre,Licences,3613,Other Supplies & Services,OtherSS,04/01/2021,V005661,50,Halo Leisure Enterprises Ltd,540,BAC003678
Liberty Leisure Limited,http://statistics.data.gov.uk/id/local-authority/37UD,Leisure,LEIS,Leisure Centres,LCEN,Liberty Leisure Limited / Kimberley Leisure Centre,Licences,3613,Other Supplies & Services,OtherSS,04/01/2021,V005660,50,Halo Leisure Enterprises Ltd,540,BAC003678
Liberty Leisure Limited,http://statistics.data.gov.uk/id/local-authority/37UD,Leisure,LEIS,Leisure Centres,LCEN,Liberty Leisure Limited / Kimberley Leisure Centre,Licences,3613,Other Supplies & Services,OtherSS,04/01/2021,V005659,150,Halo Leisure Enterprises Ltd,540,BAC003678
Liberty Leisure Limited,http://statistics.data.gov.uk/id/local-authority/37UD,Leisure,LEIS,Leisure Centres,LCEN,Liberty Leisure Limited / Kimberley Leisure Centre,Licences,3613,Other Supplies & Services,OtherSS,04/01/2021,V005664,-100,Halo Leisure Enterprises Ltd,540,BAC003678
Liberty Leisure Limited,http://statistics.data.gov.uk/id/local-authority/37UD,Leisure,LEIS,Leisure Centres,LCEN,Liberty Leisure Limited / Kimberley Leisure Centre,Licences,3613,Other Supplies & Services,OtherSS,04/01/2021,V005661,50,Halo Leisure Enterprises Ltd,540,BAC003678
Liberty Leisure Limited,http://statistics.data.gov.uk/id/local-authority/37UD,Leisure,LEIS,Leisure Centres,LCEN,Liberty Leisure Limited / Kimberley Leisure Centre,Licences,3613,Other Supplies & Services,OtherSS,04/01/2021,V005660,50,Halo Leisure Enterprises Ltd,540,BAC003678
Liberty Leisure Limited,http://statistics.data.gov.uk/id/local-authority/37UD,Leisure,LEIS,Leisure Centres,LCEN,Liberty Leisure Limited / Kimberley Leisure Centre,Licences,3613,Other Supplies & Services,OtherSS,04/01/2021,V005659,150,Halo Leisure Enterprises Ltd,540,BAC003678
Liberty Leisure Limited,http://statistics.data.gov.uk/id/local-authority/37UD,Leisure,LEIS,Leisure Centres,LCEN,Liberty Leisure Limited / Kimberley Leisure Centre,Licences,3613,Other Supplies & Services,OtherSS,04/01/2021,V005664,-100,Halo Leisure Enterprises Ltd,540,BAC003678
Liberty Leisure Limited,http://statistics.data.gov.uk/id/local-authority/37UD,LL Control Accounts,CONTROL,Payroll,LPAY,Assistant Chief Executive / Payroll,Recovery of Pay Advances,9175,Control,Crtl,04/01/2021,V005674,380,Kayleigh Smith,380,BAC003679
Liberty Leisure Limited,http://statistics.data.gov.uk/id/local-authority/37UD,Leisure,LEIS,Leisure Centres,LCEN,Liberty Leisure Limited / Bramcote Leisure Centre,Cleaning Materials,1510,Other Prem,OthPrem,04/01/2021,V005675,5.76,Mark-Douglas Industrial Supplies Limited,470.8,BAC003672
Liberty Leisure Limited,http://statistics.data.gov.uk/id/local-authority/37UD,Leisure,LEIS,Leisure Centres,LCEN,Liberty Leisure Limited / Bramcote Leisure Centre,Cleaning Materials,1510,Other Prem,OthPrem,04/01/2021,V005675,35.85,Mark-Douglas Industrial Supplies Limited,470.8,BAC003672
Liberty Leisure Limited,http://statistics.data.gov.uk/id/local-authority/37UD,Leisure,LEIS,Leisure Centres,LCEN,Liberty Leisure Limited / Bramcote Leisure Centre,Cleaning Materials,1510,Other Prem,OthPrem,04/01/2021,V005675,172,Mark-Douglas Industrial Supplies Limited,470.8,BAC003672
Liberty Leisure Limited,http://statistics.data.gov.uk/id/local-authority/37UD,Leisure,LEIS,Leisure Centres,LCEN,Liberty Leisure Limited / Bramcote Leisure Centre,Cleaning Materials,1510,Other Prem,OthPrem,04/01/2021,V005675,36.84,Mark-Douglas Industrial Supplies Limited,470.8,BAC003672
Liberty Leisure Limited,http://statistics.data.gov.uk/id/local-authority/37UD,Leisure,LEIS,Leisure Centres,LCEN,Liberty Leisure Limited / Bramcote Leisure Centre,Cleaning Materials,1510,Other Prem,OthPrem,04/01/2021,V005675,30.44,Mark-Douglas Industrial Supplies Limited,470.8,BAC003672
Liberty Leisure Limited,http://statistics.data.gov.uk/id/local-authority/37UD,Leisure,LEIS,Leisure Centres,LCEN,Liberty Leisure Limited / Bramcote Leisure Centre,Cleaning Materials,1510,Other Prem,OthPrem,04/01/2021,V005675,65,Mark-Douglas Industrial Supplies Limited,470.8,BAC003672
Liberty Leisure Limited,http://statistics.data.gov.uk/id/local-authority/37UD,Leisure,LEIS,Leisure Centres,LCEN,Liberty Leisure Limited / Bramcote Leisure Centre,Cleaning Materials,1510,Other Prem,OthPrem,04/01/2021,V005675,37.44,Mark-Douglas Industrial Supplies Limited,470.8,BAC003672
Liberty Leisure Limited,http://statistics.data.gov.uk/id/local-authority/37UD,Leisure,LEIS,Leisure Centres,LCEN,Liberty Leisure Limited / Bramcote Leisure Centre,Cleaning Materials,1510,Other Prem,OthPrem,04/01/2021,V005675,9,Mark-Douglas Industrial Supplies Limited,470.8,BAC003672
Liberty Leisure Limited,http://statistics.data.gov.uk/id/local-authority/37UD,Leisure,LEIS,Leisure Centres,LCEN,Liberty Leisure Limited / Bramcote Leisure Centre,Legionella Testing,1042,Central Pot,Central,04/01/2021,V005671,457,Sterilizing Services,1152,BAC003669
Liberty Leisure Limited,http://statistics.data.gov.uk/id/local-authority/37UD,Leisure,LEIS,Leisure Centres,LCEN,Liberty Leisure Limited / Bramcote Leisure Centre,Chemicals,3152,Other Supplies & Services,OtherSS,04/01/2021,V005670,445,Sterilizing Services,1152,BAC003669
Liberty Leisure Limited,http://statistics.data.gov.uk/id/local-authority/37UD,Leisure,LEIS,Leisure Centres,LCEN,Liberty Leisure Limited / Kimberley Leisure Centre,Legionella Testing,1042,Central Pot,Central,04/01/2021,V005665,58,Sterilizing Services,1152,BAC003669
Liberty Leisure Limited,http://statistics.data.gov.uk/id/local-authority/37UD,Leisure,LEIS,Leisure Management,LMAN,Liberty Leisure Limited / Liberty Leisure Development,Annual Projects Contingency,3710,Other Supplies & Services,OtherSS,15/01/2021,V005691,1617.57,J P Carty Limited,1977.08,BAC003682
Liberty Leisure Limited,http://statistics.data.gov.uk/id/local-authority/37UD,Leisure,LEIS,Leisure Management,LMAN,Liberty Leisure Limited / Liberty Leisure Development,Annual Projects Contingency,3710,Other Supplies & Services,OtherSS,15/01/2021,V005692,30,J P Carty Limited,1977.08,BAC003682
Liberty Leisure Limited,http://statistics.data.gov.uk/id/local-authority/37UD,Leisure,LEIS,Leisure Centres,LCEN,Liberty Leisure Limited / Kimberley Leisure Centre,Repairs & Maintenance,1000,Central Pot,Central,15/01/2021,V005677,30.96,NCC Supplies,261.76,BAC003683
Liberty Leisure Limited,http://statistics.data.gov.uk/id/local-authority/37UD,Leisure,LEIS,Leisure Centres,LCEN,Liberty Leisure Limited / Kimberley Leisure Centre,Cleaning Materials,1510,Other Prem,OthPrem,15/01/2021,V005677,18.22,NCC Supplies,261.76,BAC003683
Liberty Leisure Limited,http://statistics.data.gov.uk/id/local-authority/37UD,Leisure,LEIS,Leisure Centres,LCEN,Liberty Leisure Limited / Kimberley Leisure Centre,Cleaning Materials,1510,Other Prem,OthPrem,15/01/2021,V005677,52.62,NCC Supplies,261.76,BAC003683
Liberty Leisure Limited,http://statistics.data.gov.uk/id/local-authority/37UD,Leisure,LEIS,Leisure Centres,LCEN,Liberty Leisure Limited / Kimberley Leisure Centre,Cleaning Materials,1510,Other Prem,OthPrem,15/01/2021,V005677,44.8,NCC Supplies,261.76,BAC003683
Liberty Leisure Limited,http://statistics.data.gov.uk/id/local-authority/37UD,Leisure,LEIS,Leisure Centres,LCEN,Liberty Leisure Limited / Kimberley Leisure Centre,Cleaning Materials,1510,Other Prem,OthPrem,15/01/2021,V005677,25.06,NCC Supplies,261.76,BAC003683
Liberty Leisure Limited,http://statistics.data.gov.uk/id/local-authority/37UD,Leisure,LEIS,Leisure Centres,LCEN,Liberty Leisure Limited / Kimberley Leisure Centre,Office Equipment - Purchase,3001,Office Supplies,Offsup,15/01/2021,V005677,43.88,NCC Supplies,261.76,BAC003683
Liberty Leisure Limited,http://statistics.data.gov.uk/id/local-authority/37UD,Leisure,LEIS,Leisure Centres,LCEN,Liberty Leisure Limited / Kimberley Leisure Centre,Office Equipment - Purchase,3001,Office Supplies,Offsup,15/01/2021,V005677,2.59,NCC Supplies,261.76,BAC003683
Liberty Leisure Limited,http://statistics.data.gov.uk/id/local-authority/37UD,Leisure,LEIS,Leisure Development,LDEV,Liberty Leisure Limited / Liberty Leisure Development,Licences,3613,Other Supplies & Services,OtherSS,15/01/2021,V005686,3832.74,PPL PRS LTD,4599.27,BAC003690
Liberty Leisure Limited,http://statistics.data.gov.uk/id/local-authority/37UD,Leisure,LEIS,Leisure Management,LMAN,Liberty Leisure Limited / Kimberley Leisure Centre,Annual Projects Contingency,3710,Other Supplies & Services,OtherSS,15/01/2021,V005687,395,Stoney Ceramics,474,BAC003692
Liberty Leisure Limited,http://statistics.data.gov.uk/id/local-authority/37UD,Leisure,LEIS,Leisure Centres,LCEN,Liberty Leisure Limited / Kimberley Leisure Centre,Electricity,1310,Utilities,Utility,15/01/2021,V005684,3555.73,Total Gas & Power Ltd,7497.03,BAC003688
Liberty Leisure Limited,http://statistics.data.gov.uk/id/local-authority/37UD,Leisure,LEIS,Leisure Centres,LCEN,Liberty Leisure Limited / Kimberley Leisure Centre,Electricity,1310,Utilities,Utility,15/01/2021,V005685,2691.8,Total Gas & Power Ltd,7497.03,BAC003688
Liberty Leisure Limited,http://statistics.data.gov.uk/id/local-authority/37UD,Leisure,LEIS,Leisure Centres,LCEN,Liberty Leisure Limited / Bramcote Leisure Centre,Water Charges,1410,Utilities,Utility,15/01/2021,V005683,2175.42,Waterplus,2175.42,BAC003693
Liberty Leisure Limited,http://statistics.data.gov.uk/id/local-authority/37UD,Leisure,LEIS,Leisure Centres,LCEN,Liberty Leisure Limited / Kimberley Leisure Centre,Chemicals,3152,Other Supplies & Services,OtherSS,01/02/2021,V005695,404.09,Cryoservice Limited,885.58,BAC003695
Liberty Leisure Limited,http://statistics.data.gov.uk/id/local-authority/37UD,Leisure,LEIS,Leisure Centres,LCEN,Liberty Leisure Limited / Kimberley Leisure Centre,Chemicals,3152,Other Supplies & Services,OtherSS,01/02/2021,V005693,323.69,Cryoservice Limited,885.58,BAC003695
Liberty Leisure Limited,http://statistics.data.gov.uk/id/local-authority/37UD,Leisure,LEIS,Leisure Centres,LCEN,Liberty Leisure Limited / Kimberley Leisure Centre,Chemicals,3152,Other Supplies & Services,OtherSS,01/02/2021,V005694,10.2,Cryoservice Limited,885.58,BAC003695
Liberty Leisure Limited,http://statistics.data.gov.uk/id/local-authority/37UD,Leisure,LEIS,Leisure Management,LMAN,Liberty Leisure Limited / Liberty Leisure Development,Professional Fees,730,Indirect Employee Exp Oncosts,Oncosts,01/02/2021,V005690,350,Haines Watts Nottingham Ltd,420,BAC003705
Liberty Leisure Limited,http://statistics.data.gov.uk/id/local-authority/37UD,Leisure,LEIS,Leisure Centres,LCEN,Liberty Leisure Limited / Bramcote Leisure Centre,Electricity,1310,Utilities,Utility,01/02/2021,V005698,5800.44,Total Gas & Power Ltd,19822.96,BAC003698
Liberty Leisure Limited,http://statistics.data.gov.uk/id/local-authority/37UD,Leisure,LEIS,Leisure Centres,LCEN,Liberty Leisure Limited / Bramcote Leisure Centre,Gas,1320,Utilities,Utility,01/02/2021,V005697,9968.98,Total Gas & Power Ltd,19822.96,BAC003698
Liberty Leisure Limited,http://statistics.data.gov.uk/id/local-authority/37UD,Leisure,LEIS,Leisure Centres,LCEN,Liberty Leisure Limited / Kimberley Leisure Centre,Electricity,1310,Utilities,Utility,01/02/2021,V005701,4053.54,Total Gas & Power Ltd,19822.96,BAC003698
Liberty Leisure Limited,http://statistics.data.gov.uk/id/local-authority/37UD,Leisure,LEIS,Leisure Development,LDEV,Liberty Leisure Limited / Liberty Leisure Development,Licences,3613,Other Supplies & Services,OtherSS,12/02/2021,V005725,3789,Cascade 3D,4546.8,BAC003717
Liberty Leisure Limited,http://statistics.data.gov.uk/id/local-authority/37UD,Leisure,LEIS,Leisure Development,LDEV,Liberty Leisure Limited / Liberty Leisure Development,Training Income,8740,Other Income,OtherInc,12/02/2021,V005719,650,LFX,650,BAC003718
Liberty Leisure Limited,http://statistics.data.gov.uk/id/local-authority/37UD,Leisure,LEIS,Leisure Centres,LCEN,Liberty Leisure Limited / Kimberley Leisure Centre,Gas,1320,Utilities,Utility,12/02/2021,V005722,3174.07,The Kimberley School (EMET),11917.34,BAC003714
Liberty Leisure Limited,http://statistics.data.gov.uk/id/local-authority/37UD,Leisure,LEIS,Leisure Centres,LCEN,Liberty Leisure Limited / Kimberley Leisure Centre,Gas,1320,Utilities,Utility,12/02/2021,V005721,2584.98,The Kimberley School (EMET),11917.34,BAC003714
Liberty Leisure Limited,http://statistics.data.gov.uk/id/local-authority/37UD,Leisure,LEIS,Leisure Centres,LCEN,Liberty Leisure Limited / Kimberley Leisure Centre,Water Charges,1410,Utilities,Utility,12/02/2021,V005721,2847,The Kimberley School (EMET),11917.34,BAC003714
Liberty Leisure Limited,http://statistics.data.gov.uk/id/local-authority/37UD,Leisure,LEIS,Leisure Centres,LCEN,Liberty Leisure Limited / Kimberley Leisure Centre,Water Charges,1410,Utilities,Utility,12/02/2021,V005722,1325.07,The Kimberley School (EMET),11917.34,BAC003714
Liberty Leisure Limited,http://statistics.data.gov.uk/id/local-authority/37UD,Leisure,LEIS,Leisure Centres,LCEN,Liberty Leisure Limited / Bramcote Leisure Centre,Water Charges,1410,Utilities,Utility,12/02/2021,V005720,556.17,Waterplus,556.17,BAC003719
Liberty Leisure Limited,http://statistics.data.gov.uk/id/local-authority/37UD,Leisure,LEIS,Leisure Centres,LCEN,Liberty Leisure Limited / Kimberley Leisure Centre,Service Contracts,3056,Other Supplies & Services,OtherSS,26/02/2021,V005735,530.85,BG Energy Solutions,637.02,BAC003724
Liberty Leisure Limited,http://statistics.data.gov.uk/id/local-authority/37UD,Leisure,LEIS,Leisure Centres,LCEN,Liberty Leisure Limited / Chilwell Olympia,Repairs & Maintenance,1000,Central Pot,Central,26/02/2021,V005727,223.99,Car Doctors,268.79,BAC003727
Liberty Leisure Limited,http://statistics.data.gov.uk/id/local-authority/37UD,Leisure,LEIS,Leisure Management,LMAN,Liberty Leisure Limited / Chilwell Olympia,Annual Projects Contingency,3710,Other Supplies & Services,OtherSS,26/02/2021,V005726,215,FitServe Ltd,258,BAC003723
Liberty Leisure Limited,http://statistics.data.gov.uk/id/local-authority/37UD,Leisure,LEIS,Leisure Centres,LCEN,Liberty Leisure Limited / Kimberley Leisure Centre,Sports Equipment,3002,Equipment,Equip,26/02/2021,V005736,274.66,Nottingham Audio Visual Service Limited,329.59,BAC003720
Liberty Leisure Limited,http://statistics.data.gov.uk/id/local-authority/37UD,Leisure,LEIS,Leisure Centres,LCEN,Liberty Leisure Limited / Kimberley Leisure Centre,Service Contracts,3056,Other Supplies & Services,OtherSS,26/02/2021,V005729,2175,Sterling Hydrotech Limited,2610,BAC003721
Liberty Leisure Limited,http://statistics.data.gov.uk/id/local-authority/37UD,Leisure,LEIS,Leisure Centres,LCEN,Liberty Leisure Limited / Kimberley Leisure Centre,Gas,1320,Utilities,Utility,26/02/2021,V005728,3121.94,The Kimberley School (EMET),3746.33,BAC003722
Liberty Leisure Limited,http://statistics.data.gov.uk/id/local-authority/37UD,Leisure,LEIS,Leisure Centres,LCEN,Liberty Leisure Limited / Kimberley Leisure Centre,Service Contracts,3056,Other Supplies & Services,OtherSS,12/03/2021,V005747,230,Automatic Access Ltd,276,BAC003739
Liberty Leisure Limited,http://statistics.data.gov.uk/id/local-authority/37UD,Leisure,LEIS,Leisure Centres,LCEN,Liberty Leisure Limited / Kimberley Leisure Centre,Service Contracts,3056,Other Supplies & Services,OtherSS,12/03/2021,V005758,800,CBP Architects,960,BAC003742
Liberty Leisure Limited,http://statistics.data.gov.uk/id/local-authority/37UD,Leisure,LEIS,Leisure Centres,LCEN,Liberty Leisure Limited / Chilwell Olympia,Electricity,1310,Utilities,Utility,12/03/2021,V005756,8516.4,Chilwell School,21866.02,BAC003736
Liberty Leisure Limited,http://statistics.data.gov.uk/id/local-authority/37UD,Leisure,LEIS,Leisure Centres,LCEN,Liberty Leisure Limited / Chilwell Olympia,Solid Fuel,1330,Utilities,Utility,12/03/2021,V005754,5934.46,Chilwell School,21866.02,BAC003736
Liberty Leisure Limited,http://statistics.data.gov.uk/id/local-authority/37UD,Leisure,LEIS,Leisure Centres,LCEN,Liberty Leisure Limited / Chilwell Olympia,Water Charges,1410,Utilities,Utility,12/03/2021,V005755,7415.16,Chilwell School,21866.02,BAC003736
Liberty Leisure Limited,http://statistics.data.gov.uk/id/local-authority/37UD,Leisure,LEIS,Leisure Management,LMAN,Liberty Leisure Limited / Chilwell Olympia,Annual Projects Contingency,3710,Other Supplies & Services,OtherSS,12/03/2021,V005740,1741.74,FREDK LAMB,2090.09,BAC003741
Liberty Leisure Limited,http://statistics.data.gov.uk/id/local-authority/37UD,Leisure,LEIS,Leisure Management,LMAN,Liberty Leisure Limited / Bramcote Leisure Centre,Annual Projects Contingency,3710,Other Supplies & Services,OtherSS,12/03/2021,V005738,748,Gaffey Technical Services,897.6,BAC003730
Liberty Leisure Limited,http://statistics.data.gov.uk/id/local-authority/37UD,Leisure,LEIS,Leisure Centres,LCEN,Liberty Leisure Limited / Kimberley Leisure Centre,Repairs & Maintenance,1000,Central Pot,Central,12/03/2021,V005746,65,M A Technical Services Ltd,258,BAC003732
Liberty Leisure Limited,http://statistics.data.gov.uk/id/local-authority/37UD,Leisure,LEIS,Leisure Centres,LCEN,Liberty Leisure Limited / Kimberley Leisure Centre,Repairs & Maintenance,1000,Central Pot,Central,12/03/2021,V005746,150,M A Technical Services Ltd,258,BAC003732
Liberty Leisure Limited,http://statistics.data.gov.uk/id/local-authority/37UD,Leisure,LEIS,Leisure Centres,LCEN,Liberty Leisure Limited / Kimberley Leisure Centre,Service Contracts,3056,Other Supplies & Services,OtherSS,12/03/2021,V005762,362.31,REPLAY Maintenance Ltd,434.77,BAC003738
Liberty Leisure Limited,http://statistics.data.gov.uk/id/local-authority/37UD,Leisure,LEIS,Leisure Management,LMAN,Liberty Leisure Limited / Bramcote Leisure Centre,Annual Projects Contingency,3710,Other Supplies & Services,OtherSS,12/03/2021,V005752,58,Sterilizing Services,625.2,BAC003734
Liberty Leisure Limited,http://statistics.data.gov.uk/id/local-authority/37UD,Leisure,LEIS,Leisure Management,LMAN,Liberty Leisure Limited / Bramcote Leisure Centre,Annual Projects Contingency,3710,Other Supplies & Services,OtherSS,12/03/2021,V005753,58,Sterilizing Services,625.2,BAC003734
Liberty Leisure Limited,http://statistics.data.gov.uk/id/local-authority/37UD,Leisure,LEIS,Leisure Management,LMAN,Liberty Leisure Limited / Bramcote Leisure Centre,Annual Projects Contingency,3710,Other Supplies & Services,OtherSS,12/03/2021,V005749,58,Sterilizing Services,625.2,BAC003734
Liberty Leisure Limited,http://statistics.data.gov.uk/id/local-authority/37UD,Leisure,LEIS,Leisure Centres,LCEN,Liberty Leisure Limited / Bramcote Leisure Centre,Repairs & Maintenance,1000,Central Pot,Central,12/03/2021,V005751,289,Sterilizing Services,625.2,BAC003734
Liberty Leisure Limited,http://statistics.data.gov.uk/id/local-authority/37UD,Leisure,LEIS,Leisure Centres,LCEN,Liberty Leisure Limited / Kimberley Leisure Centre,Legionella Testing,1042,Central Pot,Central,12/03/2021,V005761,58,Sterilizing Services,625.2,BAC003734
Liberty Leisure Limited,http://statistics.data.gov.uk/id/local-authority/37UD,Leisure,LEIS,Leisure Development,LDEV,Liberty Leisure Limited / Liberty Leisure Development,Business Development,3088,Other Supplies & Services,OtherSS,12/03/2021,V005748,3500,Three65 Media Solutions Ltd,3500,BAC003740
Liberty Leisure Limited,http://statistics.data.gov.uk/id/local-authority/37UD,Leisure,LEIS,Leisure Centres,LCEN,Liberty Leisure Limited / Bramcote Leisure Centre,Water Charges,1410,Utilities,Utility,12/03/2021,V005739,647.24,Waterplus,647.24,BAC003743
Liberty Leisure Limited,http://statistics.data.gov.uk/id/local-authority/37UD,Culture and Heritage,CULT,Heritage,LHER,Liberty Leisure Limited / DHL Museum,MDEM Expenditure,3671,Other Supplies & Services,OtherSS,26/03/2021,V005770,111.15,Citron Hygiene,442.14,BAC003758
Liberty Leisure Limited,http://statistics.data.gov.uk/id/local-authority/37UD,Culture and Heritage,CULT,Heritage,LHER,Liberty Leisure Limited / DHL Museum,MDEM Expenditure,3671,Other Supplies & Services,OtherSS,26/03/2021,V005771,111.15,Citron Hygiene,442.14,BAC003758
Liberty Leisure Limited,http://statistics.data.gov.uk/id/local-authority/37UD,Culture and Heritage,CULT,Heritage,LHER,Liberty Leisure Limited / DHL Museum,MDEM Expenditure,3671,Other Supplies & Services,OtherSS,26/03/2021,V005772,146.15,Citron Hygiene,442.14,BAC003758
Liberty Leisure Limited,http://statistics.data.gov.uk/id/local-authority/37UD,Leisure,LEIS,Leisure Management,LMAN,Liberty Leisure Limited / Bramcote Leisure Centre,Annual Projects Contingency,3710,Other Supplies & Services,OtherSS,26/03/2021,V005764,748,Gaffey Technical Services,1795.2,BAC003746
Liberty Leisure Limited,http://statistics.data.gov.uk/id/local-authority/37UD,Leisure,LEIS,Leisure Management,LMAN,Liberty Leisure Limited / Bramcote Leisure Centre,Annual Projects Contingency,3710,Other Supplies & Services,OtherSS,26/03/2021,V005765,748,Gaffey Technical Services,1795.2,BAC003746
Liberty Leisure Limited,http://statistics.data.gov.uk/id/local-authority/37UD,Leisure,LEIS,Leisure Centres,LCEN,Liberty Leisure Limited / Kimberley Leisure Centre,Licences,3613,Other Supplies & Services,OtherSS,26/03/2021,V005783,50,Halo Leisure Enterprises Ltd,360,BAC003756
Liberty Leisure Limited,http://statistics.data.gov.uk/id/local-authority/37UD,Leisure,LEIS,Leisure Centres,LCEN,Liberty Leisure Limited / Kimberley Leisure Centre,Licences,3613,Other Supplies & Services,OtherSS,26/03/2021,V005782,50,Halo Leisure Enterprises Ltd,360,BAC003756
Liberty Leisure Limited,http://statistics.data.gov.uk/id/local-authority/37UD,Leisure,LEIS,Leisure Centres,LCEN,Liberty Leisure Limited / Kimberley Leisure Centre,Licences,3613,Other Supplies & Services,OtherSS,26/03/2021,V005783,50,Halo Leisure Enterprises Ltd,360,BAC003756
Liberty Leisure Limited,http://statistics.data.gov.uk/id/local-authority/37UD,Leisure,LEIS,Leisure Centres,LCEN,Liberty Leisure Limited / Kimberley Leisure Centre,Licences,3613,Other Supplies & Services,OtherSS,26/03/2021,V005782,50,Halo Leisure Enterprises Ltd,360,BAC003756
Liberty Leisure Limited,http://statistics.data.gov.uk/id/local-authority/37UD,Leisure,LEIS,Leisure Centres,LCEN,Liberty Leisure Limited / Kimberley Leisure Centre,Licences,3613,Other Supplies & Services,OtherSS,26/03/2021,V005783,50,Halo Leisure Enterprises Ltd,360,BAC003756
Liberty Leisure Limited,http://statistics.data.gov.uk/id/local-authority/37UD,Leisure,LEIS,Leisure Centres,LCEN,Liberty Leisure Limited / Kimberley Leisure Centre,Licences,3613,Other Supplies & Services,OtherSS,26/03/2021,V005782,50,Halo Leisure Enterprises Ltd,360,BAC003756
Liberty Leisure Limited,http://statistics.data.gov.uk/id/local-authority/37UD,Leisure,LEIS,Leisure Management,LMAN,Liberty Leisure Limited / Bramcote Leisure Centre,Annual Projects Contingency,3710,Other Supplies & Services,OtherSS,26/03/2021,V005774,872,M A Technical Services Ltd,1046.4,BAC003747
Liberty Leisure Limited,http://statistics.data.gov.uk/id/local-authority/37UD,Leisure,LEIS,Leisure Centres,LCEN,Liberty Leisure Limited / Kimberley Leisure Centre,Service Contracts,3056,Other Supplies & Services,OtherSS,26/03/2021,V005784,1307.53,PHS Group Plc,1569.04,BAC003748
Liberty Leisure Limited,http://statistics.data.gov.uk/id/local-authority/37UD,Leisure,LEIS,Leisure Centres,LCEN,Liberty Leisure Limited / Kimberley Leisure Centre,Training,3740,Other Supplies & Services,OtherSS,26/03/2021,V005786,695,RLSS Direct,834,BAC003749
Liberty Leisure Limited,http://statistics.data.gov.uk/id/local-authority/37UD,Culture and Heritage,CULT,Heritage,LHER,Liberty Leisure Limited / DHL Museum,MDEM Expenditure,3671,Other Supplies & Services,OtherSS,26/03/2021,V005779,2459.74,Total Gas & Power Ltd,20538.59,BAC003752
Liberty Leisure Limited,http://statistics.data.gov.uk/id/local-authority/37UD,Culture and Heritage,CULT,Heritage,LHER,Liberty Leisure Limited / DHL Museum,MDEM Expenditure,3671,Other Supplies & Services,OtherSS,26/03/2021,V005742,136.17,Total Gas & Power Ltd,20538.59,BAC003752
Liberty Leisure Limited,http://statistics.data.gov.uk/id/local-authority/37UD,Leisure,LEIS,Leisure Centres,LCEN,Liberty Leisure Limited / Bramcote Leisure Centre,Electricity,1310,Utilities,Utility,26/03/2021,V005768,5777.41,Total Gas & Power Ltd,20538.59,BAC003752
Liberty Leisure Limited,http://statistics.data.gov.uk/id/local-authority/37UD,Leisure,LEIS,Leisure Centres,LCEN,Liberty Leisure Limited / Bramcote Leisure Centre,Gas,1320,Utilities,Utility,26/03/2021,V005767,8998.19,Total Gas & Power Ltd,20538.59,BAC003752
Liberty Leisure Limited,http://statistics.data.gov.uk/id/local-authority/37UD,Leisure,LEIS,Leisure Centres,LCEN,Liberty Leisure Limited / Kimberley Leisure Centre,Electricity,1310,Utilities,Utility,26/03/2021,V005778,2223.6,Total Gas & Power Ltd,20538.59,BAC003752
Liberty Leisure Limited,http://statistics.data.gov.uk/id/local-authority/37UD,Leisure,LEIS,Leisure Centres,LCEN,Liberty Leisure Limited / Bramcote Leisure Centre,Repairs & Maintenance,1000,Central Pot,Central,26/03/2021,V005775,6471.5,Ylem Energy Limited,11648.7,BAC003759
Liberty Leisure Limited,http://statistics.data.gov.uk/id/local-authority/37UD,Leisure,LEIS,Leisure Centres,LCEN,Liberty Leisure Limited / Bramcote Leisure Centre,Repairs & Maintenance,1000,Central Pot,Central,26/03/2021,V005776,3235.75,Ylem Energy Limited,11648.7,BAC003759
Liberty Leisure Limited,http://statistics.data.gov.uk/id/local-authority/37UD,Leisure,LEIS,Leisure Management,LMAN,Liberty Leisure Limited / Liberty Leisure Development,Third Party Payments,4200,Other Third Party Payments,OtherTP,09/04/2021,V005797,290800,Broxtowe Borough Council,348960,BAC003763
Liberty Leisure Limited,http://statistics.data.gov.uk/id/local-authority/37UD,Leisure,LEIS,Leisure Management,LMAN,Liberty Leisure Limited / Kimberley Leisure Centre,Service Contracts,3056,Other Supplies & Services,OtherSS,09/04/2021,V005793,551,Complete Cooling Services Limited,661.2,BAC003764
Liberty Leisure Limited,http://statistics.data.gov.uk/id/local-authority/37UD,Leisure,LEIS,Leisure Management,LMAN,Liberty Leisure Limited / Kimberley Leisure Centre,Chemicals,3152,Other Supplies & Services,OtherSS,09/04/2021,V005807,251.1,Cryoservice Limited,301.32,BAC003765
Liberty Leisure Limited,http://statistics.data.gov.uk/id/local-authority/37UD,Leisure,LEIS,Leisure Management,LMAN,Liberty Leisure Limited / Bramcote Leisure Centre,Annual Projects Contingency,3710,Other Supplies & Services,OtherSS,09/04/2021,V005799,790,Merrin Builders & Landscaping,790,BAC003773
Liberty Leisure Limited,http://statistics.data.gov.uk/id/local-authority/37UD,Leisure,LEIS,Leisure Management,LMAN,Liberty Leisure Limited / Liberty Leisure Development,Business Development,3088,Other Supplies & Services,OtherSS,09/04/2021,V005787,10561.2,Omnico Group UK Ltd,16446.43,BAC003771
Liberty Leisure Limited,http://statistics.data.gov.uk/id/local-authority/37UD,Leisure,LEIS,Leisure Management,LMAN,Liberty Leisure Limited / Liberty Leisure Development,Business Development,3088,Other Supplies & Services,OtherSS,09/04/2021,V005788,3144.16,Omnico Group UK Ltd,16446.43,BAC003771
Liberty Leisure Limited,http://statistics.data.gov.uk/id/local-authority/37UD,Leisure,LEIS,Leisure Management,LMAN,Liberty Leisure Limited / Kimberley Leisure Centre,Annual Projects Contingency,3710,Other Supplies & Services,OtherSS,09/04/2021,V005800,2420,Precision Fencing Ltd,2904,BAC003775
Liberty Leisure Limited,http://statistics.data.gov.uk/id/local-authority/37UD,Culture and Heritage,CULT,Heritage,LHER,Liberty Leisure Limited / DHL Museum,Repairs & Maintenance,1000,Central Pot,Central,09/04/2021,V005802,106,Slater Electrical Serv Limited,2613.58,BAC003766
Liberty Leisure Limited,http://statistics.data.gov.uk/id/local-authority/37UD,Leisure,LEIS,Leisure Management,LMAN,Liberty Leisure Limited / Bramcote Leisure Centre,Electrical Testing,1043,Central Pot,Central,09/04/2021,V005801,513,Slater Electrical Serv Limited,2613.58,BAC003766
Liberty Leisure Limited,http://statistics.data.gov.uk/id/local-authority/37UD,Leisure,LEIS,Leisure Management,LMAN,Liberty Leisure Limited / Chilwell Olympia,Electrical Testing,1043,Central Pot,Central,09/04/2021,V005803,316,Slater Electrical Serv Limited,2613.58,BAC003766
Liberty Leisure Limited,http://statistics.data.gov.uk/id/local-authority/37UD,Leisure,LEIS,Leisure Management,LMAN,Liberty Leisure Limited / Kimberley Leisure Centre,Electrical Testing,1043,Central Pot,Central,09/04/2021,V005804,471,Slater Electrical Serv Limited,2613.58,BAC003766
Liberty Leisure Limited,http://statistics.data.gov.uk/id/local-authority/37UD,Leisure,LEIS,Leisure Management,LMAN,Liberty Leisure Limited / Kimberley Leisure Centre,Electrical Testing,1043,Central Pot,Central,09/04/2021,V005792,771.98,Slater Electrical Serv Limited,2613.58,BAC003766
Liberty Leisure Limited,http://statistics.data.gov.uk/id/local-authority/37UD,Leisure,LEIS,Leisure Management,LMAN,Liberty Leisure Limited / Kimberley Leisure Centre,Gas,1320,Utilities,Utility,09/04/2021,V005790,2443.92,The Kimberley School (EMET),2932.7,BAC003769
Liberty Leisure Limited,http://statistics.data.gov.uk/id/local-authority/37UD,Leisure,LEIS,Leisure Management,LMAN,Liberty Leisure Limited / Bramcote Leisure Centre,Water Charges,1410,Utilities,Utility,09/04/2021,V005798,522.47,Waterplus,522.47,BAC003777
Liberty Leisure Limited,http://statistics.data.gov.uk/id/local-authority/37UD,Leisure,LEIS,Leisure Management,LMAN,Liberty Leisure Limited / Bramcote Leisure Centre,Repairs & Maintenance,1000,Central Pot,Central,09/04/2021,V005805,3235.75,Ylem Energy Limited,3882.9,BAC003778
Liberty Leisure Limited,http://statistics.data.gov.uk/id/local-authority/37UD,Leisure,LEIS,Leisure Management,LMAN,Liberty Leisure Limited / Kimberley Leisure Centre,Chemicals,3152,Other Supplies & Services,OtherSS,23/04/2021,V005812,401.22,Cryoservice Limited,893.96,BAC003780
Liberty Leisure Limited,http://statistics.data.gov.uk/id/local-authority/37UD,Leisure,LEIS,Leisure Management,LMAN,Liberty Leisure Limited / Kimberley Leisure Centre,Chemicals,3152,Other Supplies & Services,OtherSS,23/04/2021,V005813,323.69,Cryoservice Limited,893.96,BAC003780
Liberty Leisure Limited,http://statistics.data.gov.uk/id/local-authority/37UD,Leisure,LEIS,Leisure Management,LMAN,Liberty Leisure Limited / Kimberley Leisure Centre,Chemicals,3152,Other Supplies & Services,OtherSS,23/04/2021,V005811,10.54,Cryoservice Limited,893.96,BAC003780
Liberty Leisure Limited,http://statistics.data.gov.uk/id/local-authority/37UD,Leisure,LEIS,Leisure Management,LMAN,Liberty Leisure Limited / Kimberley Leisure Centre,Chemicals,3152,Other Supplies & Services,OtherSS,23/04/2021,V005814,9.52,Cryoservice Limited,893.96,BAC003780
Liberty Leisure Limited,http://statistics.data.gov.uk/id/local-authority/37UD,Leisure,LEIS,Leisure Management,LMAN,Liberty Leisure Limited / Bramcote Leisure Centre,Chemicals,3152,Other Supplies & Services,OtherSS,23/04/2021,V005822,748,Gaffey Technical Services,897.6,BAC003781
Liberty Leisure Limited,http://statistics.data.gov.uk/id/local-authority/37UD,Leisure,LEIS,Leisure Management,LMAN,Liberty Leisure Limited / Bramcote Leisure Centre,Repairs & Maintenance,1000,Central Pot,Central,23/04/2021,V005821,284.8,Local Vending,341.76,BAC003782
Liberty Leisure Limited,http://statistics.data.gov.uk/id/local-authority/37UD,Leisure,LEIS,Leisure Management,LMAN,Liberty Leisure Limited / Kimberley Leisure Centre,Cleaning Materials,1510,Other Prem,OthPrem,23/04/2021,V005808,360.8,Mark-Douglas Industrial Supplies Limited,432.96,BAC003784
Liberty Leisure Limited,http://statistics.data.gov.uk/id/local-authority/37UD,Leisure,LEIS,Leisure Management,LMAN,Liberty Leisure Limited / Liberty Leisure Development,Licences,3613,Other Supplies & Services,OtherSS,23/04/2021,V005810,1500,Three65 Media Solutions Ltd,1500,BAC003788
Liberty Leisure Limited,http://statistics.data.gov.uk/id/local-authority/37UD,Leisure,LEIS,Leisure Management,LMAN,Liberty Leisure Limited / Kimberley Leisure Centre,Electricity,1310,Utilities,Utility,23/04/2021,V005818,2512.12,Total Gas & Power Ltd,3014.55,BAC003785
Liberty Leisure Limited,http://statistics.data.gov.uk/id/local-authority/37UD,Leisure,LEIS,Leisure Management,LMAN,Liberty Leisure Limited / Kimberley Leisure Centre,Sewerage Charges,1420,Utilities,Utility,23/04/2021,V005815,268.02,Waterplus,1233.28,BAC003789
Liberty Leisure Limited,http://statistics.data.gov.uk/id/local-authority/37UD,Leisure,LEIS,Leisure Management,LMAN,Liberty Leisure Limited / Kimberley Leisure Centre,Sewerage Charges,1420,Utilities,Utility,23/04/2021,V005817,477.3,Waterplus,1233.28,BAC003789
Liberty Leisure Limited,http://statistics.data.gov.uk/id/local-authority/37UD,Leisure,LEIS,Leisure Management,LMAN,Liberty Leisure Limited / Kimberley Leisure Centre,Sewerage Charges,1420,Utilities,Utility,23/04/2021,V005816,487.96,Waterplus,1233.28,BAC003789
Liberty Leisure Limited,http://statistics.data.gov.uk/id/local-authority/37UD,Leisure,LEIS,Leisure Management,LMAN,Liberty Leisure Limited / Kimberley Leisure Centre,Chemicals,3152,Other Supplies & Services,OtherSS,07/05/2021,V005856,463.39,Cryoservice Limited,568.72,BAC003793
Liberty Leisure Limited,http://statistics.data.gov.uk/id/local-authority/37UD,Leisure,LEIS,Leisure Management,LMAN,Liberty Leisure Limited / Kimberley Leisure Centre,Chemicals,3152,Other Supplies & Services,OtherSS,07/05/2021,V005855,10.54,Cryoservice Limited,568.72,BAC003793
Liberty Leisure Limited,http://statistics.data.gov.uk/id/local-authority/37UD,Leisure,LEIS,Leisure Management,LMAN,Liberty Leisure Limited / Bramcote Leisure Centre,Electrical Testing,1043,Central Pot,Central,07/05/2021,V005866,750,JIH Electrical Ltd,750,BAC003810
Liberty Leisure Limited,http://statistics.data.gov.uk/id/local-authority/37UD,Leisure,LEIS,Leisure Management,LMAN,Liberty Leisure Limited / Bramcote Leisure Centre,Repairs & Maintenance,1000,Central Pot,Central,07/05/2021,V005867,560,Lee Jackson Air Conditioning Ltd,672,BAC003808
Liberty Leisure Limited,http://statistics.data.gov.uk/id/local-authority/37UD,Leisure,LEIS,Leisure Management,LMAN,Liberty Leisure Limited / Bramcote Leisure Centre,Repairs & Maintenance,1000,Central Pot,Central,07/05/2021,V005837,650,M A Technical Services Ltd,1338,BAC003794
Liberty Leisure Limited,http://statistics.data.gov.uk/id/local-authority/37UD,Leisure,LEIS,Leisure Management,LMAN,Liberty Leisure Limited / Kimberley Leisure Centre,Repairs & Maintenance,1000,Central Pot,Central,07/05/2021,V005830,465,M A Technical Services Ltd,1338,BAC003794
Liberty Leisure Limited,http://statistics.data.gov.uk/id/local-authority/37UD,Leisure,LEIS,Leisure Management,LMAN,Liberty Leisure Limited / Kimberley Leisure Centre,Cleaning Materials,1510,Other Prem,OthPrem,07/05/2021,V005864,365.2,Mark-Douglas Industrial Supplies Limited,438.24,BAC003801
Liberty Leisure Limited,http://statistics.data.gov.uk/id/local-authority/37UD,Leisure,LEIS,Leisure Management,LMAN,Liberty Leisure Limited / Liberty Leisure Development,Redundancy Costs,400,Indirect Employee Exp Oncosts,Oncosts,07/05/2021,V005868,833.18,Notts County Council Pensions,34760.85,BAC003811
Liberty Leisure Limited,http://statistics.data.gov.uk/id/local-authority/37UD,Leisure,LEIS,Leisure Management,LMAN,Liberty Leisure Limited / Kimberley Leisure Centre,Service Contracts,3056,Other Supplies & Services,OtherSS,07/05/2021,V005831,362.31,REPLAY Maintenance Ltd,434.77,BAC003806
Liberty Leisure Limited,http://statistics.data.gov.uk/id/local-authority/37UD,Leisure,LEIS,Leisure Management,LMAN,Liberty Leisure Limited / Bramcote Leisure Centre,Repairs & Maintenance,1000,Central Pot,Central,07/05/2021,V005827,530,Simons Decor,530,BAC003804
Liberty Leisure Limited,http://statistics.data.gov.uk/id/local-authority/37UD,Leisure,LEIS,Leisure Management,LMAN,Liberty Leisure Limited / Kimberley Leisure Centre,Repairs & Maintenance,1000,Central Pot,Central,07/05/2021,V005859,120,Slater Electrical Serv Limited,704.59,BAC003796
Liberty Leisure Limited,http://statistics.data.gov.uk/id/local-authority/37UD,Leisure,LEIS,Leisure Management,LMAN,Liberty Leisure Limited / Kimberley Leisure Centre,Repairs & Maintenance,1000,Central Pot,Central,07/05/2021,V005858,467.16,Slater Electrical Serv Limited,704.59,BAC003796
Liberty Leisure Limited,http://statistics.data.gov.uk/id/local-authority/37UD,Leisure,LEIS,Leisure Management,LMAN,Liberty Leisure Limited / Kimberley Leisure Centre,Sports Equipment - Sale,3004,Equipment,Equip,07/05/2021,V005861,740.66,Swim England Trading Ltd,888.79,BAC003790
Liberty Leisure Limited,http://statistics.data.gov.uk/id/local-authority/37UD,Leisure,LEIS,Leisure Management,LMAN,Liberty Leisure Limited / Kimberley Leisure Centre,Solid Fuel,1330,Utilities,Utility,07/05/2021,V005865,2697.45,The Kimberley School (EMET),3236.94,BAC003799
Liberty Leisure Limited,http://statistics.data.gov.uk/id/local-authority/37UD,Culture and Heritage,CULT,Heritage,LHER,Liberty Leisure Limited / DHL Museum,MDEM Expenditure,3671,Other Supplies & Services,OtherSS,07/05/2021,V005846,43.62,Total Gas & Power Ltd,6703.63,BAC003807
Liberty Leisure Limited,http://statistics.data.gov.uk/id/local-authority/37UD,Leisure,LEIS,Leisure Management,LMAN,Liberty Leisure Limited / Bramcote Leisure Centre,Electricity,1310,Utilities,Utility,07/05/2021,V005825,3211.3,Total Gas & Power Ltd,6703.63,BAC003807
Liberty Leisure Limited,http://statistics.data.gov.uk/id/local-authority/37UD,Leisure,LEIS,Leisure Management,LMAN,Liberty Leisure Limited / Bramcote Leisure Centre,Gas,1320,Utilities,Utility,07/05/2021,V005826,284.56,Total Gas & Power Ltd,6703.63,BAC003807
Liberty Leisure Limited,http://statistics.data.gov.uk/id/local-authority/37UD,Leisure,LEIS,Leisure Management,LMAN,Liberty Leisure Limited / Kimberley Leisure Centre,Electricity,1310,Utilities,Utility,07/05/2021,V005823,2634.93,Total Gas & Power Ltd,6703.63,BAC003807
Liberty Leisure Limited,http://statistics.data.gov.uk/id/local-authority/37UD,Leisure,LEIS,Leisure Management,LMAN,Liberty Leisure Limited / Bramcote Leisure Centre,Repairs & Maintenance,1000,Central Pot,Central,07/05/2021,V005828,749.5,Walker Fire (UK) Ltd,899.4,BAC003809
Liberty Leisure Limited,http://statistics.data.gov.uk/id/local-authority/37UD,Leisure,LEIS,Leisure Management,LMAN,Liberty Leisure Limited / Kimberley Leisure Centre,Service Contracts,3056,Other Supplies & Services,OtherSS,21/05/2021,V005882,530.85,BG Energy Solutions,637.02,BAC003828
Liberty Leisure Limited,http://statistics.data.gov.uk/id/local-authority/37UD,Leisure,LEIS,Leisure Management,LMAN,Liberty Leisure Limited / Chilwell Olympia,Electricity,1310,Utilities,Utility,21/05/2021,V005874,43.09,Chilwell School,3045.42,BAC003824
Liberty Leisure Limited,http://statistics.data.gov.uk/id/local-authority/37UD,Leisure,LEIS,Leisure Management,LMAN,Liberty Leisure Limited / Chilwell Olympia,Gas,1320,Utilities,Utility,21/05/2021,V005874,1562.04,Chilwell School,3045.42,BAC003824
Liberty Leisure Limited,http://statistics.data.gov.uk/id/local-authority/37UD,Leisure,LEIS,Leisure Management,LMAN,Liberty Leisure Limited / Chilwell Olympia,Water Charges,1410,Utilities,Utility,21/05/2021,V005874,1440.29,Chilwell School,3045.42,BAC003824
Liberty Leisure Limited,http://statistics.data.gov.uk/id/local-authority/37UD,Leisure,LEIS,Leisure Management,LMAN,Liberty Leisure Limited / Kimberley Leisure Centre,Repairs & Maintenance,1000,Central Pot,Central,21/05/2021,V005878,297,Deltron Lifts Limited,824.4,BAC003826
Liberty Leisure Limited,http://statistics.data.gov.uk/id/local-authority/37UD,Leisure,LEIS,Leisure Management,LMAN,Liberty Leisure Limited / Kimberley Leisure Centre,Repairs & Maintenance,1000,Central Pot,Central,21/05/2021,V005878,390,Deltron Lifts Limited,824.4,BAC003826
Liberty Leisure Limited,http://statistics.data.gov.uk/id/local-authority/37UD,Leisure,LEIS,Leisure Management,LMAN,Liberty Leisure Limited / Bramcote Leisure Centre,Repairs & Maintenance,1000,Central Pot,Central,21/05/2021,V005875,290,EME Power Systems,348,BAC003833
Liberty Leisure Limited,http://statistics.data.gov.uk/id/local-authority/37UD,Leisure,LEIS,Leisure Management,LMAN,Liberty Leisure Limited / Kimberley Leisure Centre,Service Contracts,3056,Other Supplies & Services,OtherSS,21/05/2021,V005884,413.82,FitServe Ltd,496.59,BAC003827
Liberty Leisure Limited,http://statistics.data.gov.uk/id/local-authority/37UD,Leisure,LEIS,Leisure Management,LMAN,Liberty Leisure Limited / Kimberley Leisure Centre,Repairs & Maintenance,1000,Central Pot,Central,21/05/2021,V005887,210,Geoff Green Joinery,252,BAC003823
Liberty Leisure Limited,http://statistics.data.gov.uk/id/local-authority/37UD,Leisure,LEIS,Leisure Management,LMAN,Liberty Leisure Limited / Kimberley Leisure Centre,Licences,3613,Other Supplies & Services,OtherSS,21/05/2021,V005877,150,Halo Leisure Enterprises Ltd,720,BAC003831
Liberty Leisure Limited,http://statistics.data.gov.uk/id/local-authority/37UD,Leisure,LEIS,Leisure Management,LMAN,Liberty Leisure Limited / Kimberley Leisure Centre,Licences,3613,Other Supplies & Services,OtherSS,21/05/2021,V005876,50,Halo Leisure Enterprises Ltd,720,BAC003831
Liberty Leisure Limited,http://statistics.data.gov.uk/id/local-authority/37UD,Leisure,LEIS,Leisure Management,LMAN,Liberty Leisure Limited / Kimberley Leisure Centre,Licences,3613,Other Supplies & Services,OtherSS,21/05/2021,V005877,150,Halo Leisure Enterprises Ltd,720,BAC003831
Liberty Leisure Limited,http://statistics.data.gov.uk/id/local-authority/37UD,Leisure,LEIS,Leisure Management,LMAN,Liberty Leisure Limited / Kimberley Leisure Centre,Licences,3613,Other Supplies & Services,OtherSS,21/05/2021,V005876,50,Halo Leisure Enterprises Ltd,720,BAC003831
Liberty Leisure Limited,http://statistics.data.gov.uk/id/local-authority/37UD,Leisure,LEIS,Leisure Management,LMAN,Liberty Leisure Limited / Kimberley Leisure Centre,Licences,3613,Other Supplies & Services,OtherSS,21/05/2021,V005877,150,Halo Leisure Enterprises Ltd,720,BAC003831
Liberty Leisure Limited,http://statistics.data.gov.uk/id/local-authority/37UD,Leisure,LEIS,Leisure Management,LMAN,Liberty Leisure Limited / Kimberley Leisure Centre,Licences,3613,Other Supplies & Services,OtherSS,21/05/2021,V005876,50,Halo Leisure Enterprises Ltd,720,BAC003831
Liberty Leisure Limited,http://statistics.data.gov.uk/id/local-authority/37UD,Leisure,LEIS,Leisure Management,LMAN,Liberty Leisure Limited / Chilwell Olympia,Cleaning Materials,1510,Other Prem,OthPrem,21/05/2021,V005888,55.52,Mark-Douglas Industrial Supplies Limited,374.63,BAC003825
Liberty Leisure Limited,http://statistics.data.gov.uk/id/local-authority/37UD,Leisure,LEIS,Leisure Management,LMAN,Liberty Leisure Limited / Chilwell Olympia,Cleaning Materials,1510,Other Prem,OthPrem,21/05/2021,V005888,39,Mark-Douglas Industrial Supplies Limited,374.63,BAC003825
Liberty Leisure Limited,http://statistics.data.gov.uk/id/local-authority/37UD,Leisure,LEIS,Leisure Management,LMAN,Liberty Leisure Limited / Chilwell Olympia,Cleaning Materials,1510,Other Prem,OthPrem,21/05/2021,V005888,27.72,Mark-Douglas Industrial Supplies Limited,374.63,BAC003825
Liberty Leisure Limited,http://statistics.data.gov.uk/id/local-authority/37UD,Leisure,LEIS,Leisure Management,LMAN,Liberty Leisure Limited / Chilwell Olympia,Cleaning Materials,1510,Other Prem,OthPrem,21/05/2021,V005888,15.8,Mark-Douglas Industrial Supplies Limited,374.63,BAC003825
Liberty Leisure Limited,http://statistics.data.gov.uk/id/local-authority/37UD,Leisure,LEIS,Leisure Management,LMAN,Liberty Leisure Limited / Chilwell Olympia,Cleaning Materials,1510,Other Prem,OthPrem,21/05/2021,V005888,44.54,Mark-Douglas Industrial Supplies Limited,374.63,BAC003825
Liberty Leisure Limited,http://statistics.data.gov.uk/id/local-authority/37UD,Leisure,LEIS,Leisure Management,LMAN,Liberty Leisure Limited / Chilwell Olympia,Cleaning Materials,1510,Other Prem,OthPrem,21/05/2021,V005888,33.5,Mark-Douglas Industrial Supplies Limited,374.63,BAC003825
Liberty Leisure Limited,http://statistics.data.gov.uk/id/local-authority/37UD,Leisure,LEIS,Leisure Management,LMAN,Liberty Leisure Limited / Chilwell Olympia,Cleaning Materials,1510,Other Prem,OthPrem,21/05/2021,V005888,12.28,Mark-Douglas Industrial Supplies Limited,374.63,BAC003825
Liberty Leisure Limited,http://statistics.data.gov.uk/id/local-authority/37UD,Leisure,LEIS,Leisure Management,LMAN,Liberty Leisure Limited / Chilwell Olympia,Cleaning Materials,1510,Other Prem,OthPrem,21/05/2021,V005888,13.62,Mark-Douglas Industrial Supplies Limited,374.63,BAC003825
Liberty Leisure Limited,http://statistics.data.gov.uk/id/local-authority/37UD,Leisure,LEIS,Leisure Management,LMAN,Liberty Leisure Limited / Chilwell Olympia,Cleaning Materials,1510,Other Prem,OthPrem,21/05/2021,V005888,29.2,Mark-Douglas Industrial Supplies Limited,374.63,BAC003825
Liberty Leisure Limited,http://statistics.data.gov.uk/id/local-authority/37UD,Leisure,LEIS,Leisure Management,LMAN,Liberty Leisure Limited / Chilwell Olympia,Cleaning Materials,1510,Other Prem,OthPrem,21/05/2021,V005888,11.82,Mark-Douglas Industrial Supplies Limited,374.63,BAC003825
Liberty Leisure Limited,http://statistics.data.gov.uk/id/local-authority/37UD,Leisure,LEIS,Leisure Management,LMAN,Liberty Leisure Limited / Chilwell Olympia,Cleaning Materials,1510,Other Prem,OthPrem,21/05/2021,V005888,29.2,Mark-Douglas Industrial Supplies Limited,374.63,BAC003825
Liberty Leisure Limited,http://statistics.data.gov.uk/id/local-authority/37UD,Leisure,LEIS,Leisure Management,LMAN,Liberty Leisure Limited / Kimberley Leisure Centre,Electricity,1310,Utilities,Utility,21/05/2021,V005881,2907.01,Total Gas & Power Ltd,3488.42,BAC003829
Liberty Leisure Limited,http://statistics.data.gov.uk/id/local-authority/37UD,Leisure,LEIS,Leisure Management,LMAN,Liberty Leisure Limited / Bramcote Leisure Centre,Water Charges,1410,Utilities,Utility,21/05/2021,V005872,844.7,Waterplus,844.7,BAC003834
Liberty Leisure Limited,http://statistics.data.gov.uk/id/local-authority/37UD,Leisure,LEIS,Leisure Management,LMAN,Liberty Leisure Limited / Kimberley Leisure Centre,Cleaning Materials,1510,Other Prem,OthPrem,28/05/2021,V005909,385.9,Mark-Douglas Industrial Supplies Limited,463.08,BAC003841
Liberty Leisure Limited,http://statistics.data.gov.uk/id/local-authority/37UD,Leisure,LEIS,Leisure Management,LMAN,Liberty Leisure Limited / Bramcote Leisure Centre,Service Contracts,3056,Other Supplies & Services,OtherSS,28/05/2021,V005901,124.19,NBE Fire and Security Limited,611.03,BAC003843
Liberty Leisure Limited,http://statistics.data.gov.uk/id/local-authority/37UD,Leisure,LEIS,Leisure Management,LMAN,Liberty Leisure Limited / Bramcote Leisure Centre,Service Contracts,3056,Other Supplies & Services,OtherSS,28/05/2021,V005902,385,NBE Fire and Security Limited,611.03,BAC003843
Liberty Leisure Limited,http://statistics.data.gov.uk/id/local-authority/37UD,Leisure,LEIS,Leisure Management,LMAN,Liberty Leisure Limited / Bramcote Leisure Centre,Repairs & Maintenance,1000,Central Pot,Central,28/05/2021,V005906,1140,Pumptec - Pump and Valve Repairs,1368,BAC003839
Liberty Leisure Limited,http://statistics.data.gov.uk/id/local-authority/37UD,Leisure,LEIS,Leisure Management,LMAN,Liberty Leisure Limited / Kimberley Leisure Centre,Water Charges,1410,Utilities,Utility,28/05/2021,V005907,624.81,The Kimberley School (EMET),1417.27,BAC003838
Liberty Leisure Limited,http://statistics.data.gov.uk/id/local-authority/37UD,Leisure,LEIS,Leisure Management,LMAN,Liberty Leisure Limited / Kimberley Leisure Centre,Water Charges,1410,Utilities,Utility,28/05/2021,V005908,556.25,The Kimberley School (EMET),1417.27,BAC003838
Liberty Leisure Limited,http://statistics.data.gov.uk/id/local-authority/37UD,Leisure,LEIS,Leisure Management,LMAN,Liberty Leisure Limited / Bramcote Leisure Centre,Water Charges,1410,Utilities,Utility,28/05/2021,V005891,602.85,Waterplus,602.85,BAC003847
Liberty Leisure Limited,http://statistics.data.gov.uk/id/local-authority/37UD,Culture and Heritage,CULT,Events,LEVE,Liberty Leisure Limited / Events,Promotion of The Arts,3066,Office Supplies,Offsup,04/06/2021,V005900,5336,Big TV (UK) Ltd,6403.2,BAC003856
Liberty Leisure Limited,http://statistics.data.gov.uk/id/local-authority/37UD,Culture and Heritage,CULT,Heritage,LHER,Liberty Leisure Limited / DHL Museum,Repairs & Maintenance,1000,Central Pot,Central,04/06/2021,V005925,60,FSE Fire Safety Systems Ltd,992.24,BAC003857
Liberty Leisure Limited,http://statistics.data.gov.uk/id/local-authority/37UD,Culture and Heritage,CULT,Heritage,LHER,Liberty Leisure Limited / DHL Museum,Repairs & Maintenance,1000,Central Pot,Central,04/06/2021,V005924,34.54,FSE Fire Safety Systems Ltd,992.24,BAC003857
Liberty Leisure Limited,http://statistics.data.gov.uk/id/local-authority/37UD,Culture and Heritage,CULT,Heritage,LHER,Liberty Leisure Limited / DHL Museum,Repairs & Maintenance,1000,Central Pot,Central,04/06/2021,V005921,18.49,FSE Fire Safety Systems Ltd,992.24,BAC003857
Liberty Leisure Limited,http://statistics.data.gov.uk/id/local-authority/37UD,Culture and Heritage,CULT,Heritage,LHER,Liberty Leisure Limited / DHL Museum,Service Contracts,3056,Other Supplies & Services,OtherSS,04/06/2021,V005923,432.64,FSE Fire Safety Systems Ltd,992.24,BAC003857
Liberty Leisure Limited,http://statistics.data.gov.uk/id/local-authority/37UD,Culture and Heritage,CULT,Heritage,LHER,Liberty Leisure Limited / DHL Museum,Service Contracts,3056,Other Supplies & Services,OtherSS,04/06/2021,V005922,281.22,FSE Fire Safety Systems Ltd,992.24,BAC003857
Liberty Leisure Limited,http://statistics.data.gov.uk/id/local-authority/37UD,Leisure,LEIS,Leisure Management,LMAN,Liberty Leisure Limited / Kimberley Leisure Centre,Repairs & Maintenance,1000,Central Pot,Central,04/06/2021,V005920,740,MG Lites,888,BAC003862
Liberty Leisure Limited,http://statistics.data.gov.uk/id/local-authority/37UD,Leisure,LEIS,Leisure Management,LMAN,Liberty Leisure Limited / Kimberley Leisure Centre,Repairs & Maintenance,1000,Central Pot,Central,04/06/2021,V005919,340.08,Slater Electrical Serv Limited,408.1,BAC003850
Liberty Leisure Limited,http://statistics.data.gov.uk/id/local-authority/37UD,Leisure,LEIS,Leisure Management,LMAN,Liberty Leisure Limited / Chilwell Olympia,Water Charges,1410,Utilities,Utility,18/06/2021,V005931,1245.79,Chilwell School,1245.79,BAC003874
Liberty Leisure Limited,http://statistics.data.gov.uk/id/local-authority/37UD,Leisure,LEIS,Leisure Management,LMAN,Liberty Leisure Limited / Kimberley Leisure Centre,Chemicals,3152,Other Supplies & Services,OtherSS,18/06/2021,V005932,219.52,Cryoservice Limited,344.94,BAC003865
Liberty Leisure Limited,http://statistics.data.gov.uk/id/local-authority/37UD,Leisure,LEIS,Leisure Management,LMAN,Liberty Leisure Limited / Kimberley Leisure Centre,Chemicals,3152,Other Supplies & Services,OtherSS,18/06/2021,V005950,10.54,Cryoservice Limited,344.94,BAC003865
Liberty Leisure Limited,http://statistics.data.gov.uk/id/local-authority/37UD,Leisure,LEIS,Leisure Management,LMAN,Liberty Leisure Limited / Kimberley Leisure Centre,Chemicals,3152,Other Supplies & Services,OtherSS,18/06/2021,V005932,13,Cryoservice Limited,344.94,BAC003865
Liberty Leisure Limited,http://statistics.data.gov.uk/id/local-authority/37UD,Leisure,LEIS,Leisure Management,LMAN,Liberty Leisure Limited / Kimberley Leisure Centre,Chemicals,3152,Other Supplies & Services,OtherSS,18/06/2021,V005932,44.39,Cryoservice Limited,344.94,BAC003865
Liberty Leisure Limited,http://statistics.data.gov.uk/id/local-authority/37UD,Leisure,LEIS,Leisure Management,LMAN,Liberty Leisure Limited / Bramcote Leisure Centre,Service Contracts,3056,Other Supplies & Services,OtherSS,18/06/2021,V005934,748,Gaffey Technical Services,897.6,BAC003867
Liberty Leisure Limited,http://statistics.data.gov.uk/id/local-authority/37UD,Leisure,LEIS,Leisure Management,LMAN,Liberty Leisure Limited / Kimberley Leisure Centre,Repairs & Maintenance,1000,Central Pot,Central,18/06/2021,V005943,99.99,Karcher (U.K.)Ltd,2511.25,BAC003876
Liberty Leisure Limited,http://statistics.data.gov.uk/id/local-authority/37UD,Leisure,LEIS,Leisure Management,LMAN,Liberty Leisure Limited / Kimberley Leisure Centre,Repairs & Maintenance,1000,Central Pot,Central,18/06/2021,V005943,1992.72,Karcher (U.K.)Ltd,2511.25,BAC003876
Liberty Leisure Limited,http://statistics.data.gov.uk/id/local-authority/37UD,Leisure,LEIS,Leisure Management,LMAN,Liberty Leisure Limited / Kimberley Leisure Centre,Cleaning Materials,1510,Other Prem,OthPrem,18/06/2021,V005951,244.26,Mark-Douglas Industrial Supplies Limited,293.12,BAC003875
Liberty Leisure Limited,http://statistics.data.gov.uk/id/local-authority/37UD,Leisure,LEIS,Leisure Management,LMAN,Liberty Leisure Limited / Bramcote Leisure Centre,Repairs & Maintenance,1000,Central Pot,Central,18/06/2021,V005938,236.32,NBE Fire and Security Limited,283.58,BAC003881
Liberty Leisure Limited,http://statistics.data.gov.uk/id/local-authority/37UD,Leisure,LEIS,Leisure Management,LMAN,Liberty Leisure Limited / Chilwell Olympia,NBA Expenditure,3520,Other Supplies & Services,OtherSS,18/06/2021,V005930,1165.9,Nottinghamshire Badminton Association,1165.9,BAC003873
Liberty Leisure Limited,http://statistics.data.gov.uk/id/local-authority/37UD,Leisure,LEIS,Leisure Management,LMAN,Liberty Leisure Limited / Bramcote Leisure Centre,Repairs & Maintenance,1000,Central Pot,Central,18/06/2021,V005928,547,Sterilizing Services,656.4,BAC003871
Liberty Leisure Limited,http://statistics.data.gov.uk/id/local-authority/37UD,Leisure,LEIS,Leisure Management,LMAN,Liberty Leisure Limited / Bramcote Leisure Centre,Gas,1320,Utilities,Utility,18/06/2021,V005929,4480.57,Total Gas & Power Ltd,8499.85,BAC003880
Liberty Leisure Limited,http://statistics.data.gov.uk/id/local-authority/37UD,Leisure,LEIS,Leisure Management,LMAN,Liberty Leisure Limited / Kimberley Leisure Centre,Electricity,1310,Utilities,Utility,18/06/2021,V005949,3349.39,Total Gas & Power Ltd,8499.85,BAC003880
Liberty Leisure Limited,http://statistics.data.gov.uk/id/local-authority/37UD,Leisure,LEIS,Leisure Management,LMAN,Liberty Leisure Limited / Bramcote Leisure Centre,Chemicals,3152,Other Supplies & Services,OtherSS,18/06/2021,V005935,29.5,Univar Solutions BV,495.87,BAC003872
Liberty Leisure Limited,http://statistics.data.gov.uk/id/local-authority/37UD,Leisure,LEIS,Leisure Management,LMAN,Liberty Leisure Limited / Bramcote Leisure Centre,Chemicals,3152,Other Supplies & Services,OtherSS,18/06/2021,V005936,14.5,Univar Solutions BV,495.87,BAC003872
Liberty Leisure Limited,http://statistics.data.gov.uk/id/local-authority/37UD,Leisure,LEIS,Leisure Management,LMAN,Liberty Leisure Limited / Bramcote Leisure Centre,Chemicals,3152,Other Supplies & Services,OtherSS,18/06/2021,V005936,35.55,Univar Solutions BV,495.87,BAC003872
Liberty Leisure Limited,http://statistics.data.gov.uk/id/local-authority/37UD,Leisure,LEIS,Leisure Management,LMAN,Liberty Leisure Limited / Bramcote Leisure Centre,Chemicals,3152,Other Supplies & Services,OtherSS,18/06/2021,V005948,23.78,Univar Solutions BV,495.87,BAC003872
Liberty Leisure Limited,http://statistics.data.gov.uk/id/local-authority/37UD,Leisure,LEIS,Leisure Management,LMAN,Liberty Leisure Limited / Bramcote Leisure Centre,Chemicals,3152,Other Supplies & Services,OtherSS,18/06/2021,V005948,24.02,Univar Solutions BV,495.87,BAC003872
Liberty Leisure Limited,http://statistics.data.gov.uk/id/local-authority/37UD,Leisure,LEIS,Leisure Management,LMAN,Liberty Leisure Limited / Bramcote Leisure Centre,Chemicals,3152,Other Supplies & Services,OtherSS,18/06/2021,V005948,26.86,Univar Solutions BV,495.87,BAC003872
Liberty Leisure Limited,http://statistics.data.gov.uk/id/local-authority/37UD,Leisure,LEIS,Leisure Management,LMAN,Liberty Leisure Limited / Bramcote Leisure Centre,Chemicals,3152,Other Supplies & Services,OtherSS,18/06/2021,V005935,259.02,Univar Solutions BV,495.87,BAC003872
Liberty Leisure Limited,http://statistics.data.gov.uk/id/local-authority/37UD,Culture and Heritage,CULT,Events,LEVE,Liberty Leisure Limited / Events,Promotion of The Arts,3066,Office Supplies,Offsup,02/07/2021,V005970,1296.5,Big TV (UK) Ltd,1555.8,BAC003900
Liberty Leisure Limited,http://statistics.data.gov.uk/id/local-authority/37UD,Leisure,LEIS,Leisure Management,LMAN,Liberty Leisure Limited / Kimberley Leisure Centre,Repairs & Maintenance,1000,Central Pot,Central,02/07/2021,V005974,18.32,Deltron Lifts Limited,1851.98,BAC003892
Liberty Leisure Limited,http://statistics.data.gov.uk/id/local-authority/37UD,Leisure,LEIS,Leisure Management,LMAN,Liberty Leisure Limited / Kimberley Leisure Centre,Repairs & Maintenance,1000,Central Pot,Central,02/07/2021,V005967,1300,Deltron Lifts Limited,1851.98,BAC003892
Liberty Leisure Limited,http://statistics.data.gov.uk/id/local-authority/37UD,Leisure,LEIS,Leisure Management,LMAN,Liberty Leisure Limited / Kimberley Leisure Centre,Service Contracts,3056,Other Supplies & Services,OtherSS,02/07/2021,V005973,225,Deltron Lifts Limited,1851.98,BAC003892
Liberty Leisure Limited,http://statistics.data.gov.uk/id/local-authority/37UD,Leisure,LEIS,Leisure Management,LMAN,Liberty Leisure Limited / Kimberley Leisure Centre,Service Contracts,3056,Other Supplies & Services,OtherSS,02/07/2021,V005964,300,FitServe Ltd,360,BAC003894
Liberty Leisure Limited,http://statistics.data.gov.uk/id/local-authority/37UD,Leisure,LEIS,Leisure Management,LMAN,Liberty Leisure Limited / Bramcote Leisure Centre,Repairs & Maintenance,1000,Central Pot,Central,02/07/2021,V005961,615,G & S Sign Services Ltd,738,BAC003903
Liberty Leisure Limited,http://statistics.data.gov.uk/id/local-authority/37UD,Leisure,LEIS,Leisure Management,LMAN,Liberty Leisure Limited / Bramcote Leisure Centre,Service Contracts,3056,Other Supplies & Services,OtherSS,02/07/2021,V005954,748,Gaffey Technical Services,897.6,BAC003885
Liberty Leisure Limited,http://statistics.data.gov.uk/id/local-authority/37UD,Leisure,LEIS,Leisure Management,LMAN,Liberty Leisure Limited / Chilwell Olympia,Cleaning Materials,1510,Other Prem,OthPrem,02/07/2021,V005960,78,Mark-Douglas Industrial Supplies Limited,287.4,BAC003891
Liberty Leisure Limited,http://statistics.data.gov.uk/id/local-authority/37UD,Leisure,LEIS,Leisure Management,LMAN,Liberty Leisure Limited / Chilwell Olympia,Cleaning Materials,1510,Other Prem,OthPrem,02/07/2021,V005960,10.5,Mark-Douglas Industrial Supplies Limited,287.4,BAC003891
Liberty Leisure Limited,http://statistics.data.gov.uk/id/local-authority/37UD,Leisure,LEIS,Leisure Management,LMAN,Liberty Leisure Limited / Chilwell Olympia,Cleaning Materials,1510,Other Prem,OthPrem,02/07/2021,V005960,65,Mark-Douglas Industrial Supplies Limited,287.4,BAC003891
Liberty Leisure Limited,http://statistics.data.gov.uk/id/local-authority/37UD,Leisure,LEIS,Leisure Management,LMAN,Liberty Leisure Limited / Chilwell Olympia,Cleaning Materials,1510,Other Prem,OthPrem,02/07/2021,V005960,86,Mark-Douglas Industrial Supplies Limited,287.4,BAC003891
Liberty Leisure Limited,http://statistics.data.gov.uk/id/local-authority/37UD,Leisure,LEIS,Leisure Management,LMAN,Liberty Leisure Limited / Kimberley Leisure Centre,Repairs & Maintenance,1000,Central Pot,Central,02/07/2021,V005968,223.12,Nottingham Audio Visual Service Limited,267.74,BAC003887
Liberty Leisure Limited,http://statistics.data.gov.uk/id/local-authority/37UD,Culture and Heritage,CULT,Heritage,LHER,Liberty Leisure Limited / DHL Museum,Service Contracts,3056,Other Supplies & Services,OtherSS,02/07/2021,V005959,300,Samson Technical Services,360,BAC003898
Liberty Leisure Limited,http://statistics.data.gov.uk/id/local-authority/37UD,Leisure,LEIS,Leisure Management,LMAN,Liberty Leisure Limited / Kimberley Leisure Centre,Service Contracts,3056,Other Supplies & Services,OtherSS,02/07/2021,V005965,67.2,Solutions For Leisure Ltd,942.24,BAC003890
Liberty Leisure Limited,http://statistics.data.gov.uk/id/local-authority/37UD,Leisure,LEIS,Leisure Management,LMAN,Liberty Leisure Limited / Kimberley Leisure Centre,Service Contracts,3056,Other Supplies & Services,OtherSS,02/07/2021,V005965,73.6,Solutions For Leisure Ltd,942.24,BAC003890
Liberty Leisure Limited,http://statistics.data.gov.uk/id/local-authority/37UD,Leisure,LEIS,Leisure Management,LMAN,Liberty Leisure Limited / Kimberley Leisure Centre,Service Contracts,3056,Other Supplies & Services,OtherSS,02/07/2021,V005965,54.4,Solutions For Leisure Ltd,942.24,BAC003890
Liberty Leisure Limited,http://statistics.data.gov.uk/id/local-authority/37UD,Leisure,LEIS,Leisure Management,LMAN,Liberty Leisure Limited / Kimberley Leisure Centre,Service Contracts,3056,Other Supplies & Services,OtherSS,02/07/2021,V005965,590,Solutions For Leisure Ltd,942.24,BAC003890
Liberty Leisure Limited,http://statistics.data.gov.uk/id/local-authority/37UD,Culture and Heritage,CULT,Heritage,LHER,Liberty Leisure Limited / DHL Museum,Electricity,1310,Utilities,Utility,02/07/2021,V005956,1135.38,Total Gas & Power Ltd,1362.45,BAC003897
Liberty Leisure Limited,http://statistics.data.gov.uk/id/local-authority/37UD,Leisure,LEIS,Leisure Management,LMAN,Liberty Leisure Limited / Bramcote Leisure Centre,Service Contracts,3056,Other Supplies & Services,OtherSS,02/07/2021,V005953,3235.75,Ylem Energy Limited,3882.9,BAC003902
Liberty Leisure Limited,http://statistics.data.gov.uk/id/local-authority/37UD,Leisure,LEIS,Leisure Management,LMAN,Liberty Leisure Limited / Kimberley Leisure Centre,Chemicals,3152,Other Supplies & Services,OtherSS,16/07/2021,V005985,513.09,Cryoservice Limited,615.71,BAC003907
Liberty Leisure Limited,http://statistics.data.gov.uk/id/local-authority/37UD,Leisure,LEIS,Leisure Management,LMAN,Liberty Leisure Limited / Bramcote Leisure Centre,Service Contracts,3056,Other Supplies & Services,OtherSS,16/07/2021,V005997,748,Gaffey Technical Services,897.6,BAC003908
